Workbook

Sheet TABLE (observations) (hidden)
B1: Name
AI2: SUN | DD2: Mars | EK2: Venus | FR2: Jupiter
C3: RA2000 | D3: DEC2000 | E3: SHApr | F3: Decpr | G3: nutdl | H3: nutde | I3: SHA | J3: decl | M3: t | N3: Om | O3: L | P3: L1 | Q3: e | R3: dp | S3: de | T3: e | U3: corr | V3: GHAAries | W3: L | X3: G | Y3: ec | Z3: l | AA3: E | AB3: e | AC3: declsun | AD3: Y | AE3: X | AF3: a | AG3: LST | AH3: GHAsun | AI3: Ns | AJ3: is | AK3: ws | AL3: as | AM3: es | AN3: Ms | AO3: Es | AP3: ecl | AQ3: xv | AR3: yv | AS3: vs | AT3: rs | AU3: lons | AV3: xs | AW3: ys | AX3: xe | AY3: ye | AZ3: ze | BA3: Ras | BB3: x | BC3: Decs | BD3: Nm | BE3: im | BF3: wm | BG3: am | BH3: em | BI3: Mm | BJ3: Em | BK3: xvm | BL3: yvm | BM3: vm | BN3: rm | BO3: xh | BP3: yh | BQ3: zh | BR3: loneclm | BS3: x | BT3: latecl | BU3: Ls | BV3: Lm | BW3: D | BX3: F | BY3: dlo1 | BZ3: dlo2 | CA3: dlo3 | CB3: dlo4 | CC3: dlo5 | CD3: dlo6 | CE3: dlo7 | CF3: dlo8 | CG3: dlo9 | CH3: dlo10 | CI3: dlo11 | CJ3: dlo12 | CK3: lonm | CL3: dla1 | CM3: dla2 | CN3: dla3 | CO3: dla4 | CP3: dla5 | CQ3: latm | CR3: rm1 | CS3: rm | CT3: xg | CU3: yg | CV3: zg | CW3: xe | CX3: ye | CY3: ze | CZ3: Ram | DA3: x | DB3: Declm | DC3: GHA | DD3: Nmars | DE3: imars | DF3: wmars | DG3: amars | DH3: emars | DI3: Mmars | DJ3: Emars | DK3: xvmars | DL3: yvmars | DM3: vmars | DN3: rmars | DO3: xhmars | DP3: yhmars | DQ3: zhmars | DR3: loneclmars | DS3: x | DT3: lateclmars | DU3: loncorr | DV3: xh | DW3: yh | DX3: zh | DY3: xs | DZ3: ys | EA3: xg | EB3: yg | EC3: zg | ED3: xe | EE3: ye | EF3: ze | EG3: Ramars | EI3: Decmars | EJ3: GHA | EK3: N | EL3: i | EM3: w | EN3: a | EO3: e | EP3: M | EQ3: E | ER3: xv | ES3: yv | ET3: v | EU3: r | EV3: xh | EW3: yh | EX3: zh | EY3: lonecl | EZ3: x | FA3: latecl | FB3: loncorr | FC3: xh | FD3: yh | FE3: zh | FF3: xs | FG3: ys | FH3: xg | FI3: yg | FJ3: zg | FK3: xe | FL3: ye | FM3: ze | FN3: RA | FP3: Dec | FQ3: GHA | FR3: N | FS3: i | FT3: w | FU3: a | FV3: e | FW3: M | FX3: E | FY3: xv | FZ3: yv | GA3: v | GB3: r | GC3: xh | GD3: yh | GE3: zh | GF3: lo1 | GG3: locorr | GH3: lonecl | GI3: x | GJ3: latecl | GK3: loncorr | GL3: xh | GM3: yh | GN3: zh | GO3: xs | GP3: ys | GQ3: xg | GR3: yg | GS3: zg | GT3: xe | GU3: ye | GV3: ze | GW3: RA | GY3: Dec | GZ3: GHA | HA3: N | HB3: i | HC3: w | HD3: a | HE3: e | HF3: M | HG3: E | HH3: xv | HI3: yv | HJ3: v | HK3: r | HL3: xh | HM3: yh | HN3: zh | HO3: lo1 | HP3: locorr | HQ3: lonecl | HR3: x | HS3: la1 | HT3: lacorr | HU3: latecl | HV3: loncorr | HW3: xh | HX3: yh | HY3: zh | HZ3: xs | IA3: ys | IB3: xg | IC3: yg | ID3: zg | IE3: xe | IF3: ye | IG3: ze | IH3: RA | IJ3: Dec | IK3: GHA
B4: Acamar | C4: =(2+58/60+16/3600) -> 2.971111111 | D4: =-40-18.6/60 -> -40.31 | E4: =MOD(360-(C4+((3.075+1.336*SIN(RADIANS(C4))*TAN(RADIANS(D4)))*(OBSERVATIONS!$U$35-36526)/365)/3600)*15,360) -> 315.1355989 | F4: =D4+(20.04*COS(RADIANS(C4*15))*(OBSERVATIONS!$U$35-36526)/365)/3600 -> -40.21604656 | G4: =-17.3*SIN(RADIANS(125-0.05295*(OBSERVATIONS!$U$35-2451545)))-1.4*SIN(RADIANS(200+1.97129*(OBSERVATIONS!$U$35-2451545))) -> -15.50721343 | H4: =9.4*COS(RADIANS(125-0.05295*(OBSERVATIONS!$U$35-2451545)))+0.7*COS(RADIANS(200+1.97129*(OBSERVATIONS!$U$35-2451545))) -> -2.104130078 | I4: =E4+(0.9175+0.3978*SIN(RADIANS(C4*15)*TAN(RADIANS(D4)))*G4-COS(RADIANS(C4*15))*TAN(RADIANS(D4))*H4)/3600 -> 315.136551 | J4: =F4+(0.3978*COS(RADIANS(C4*15))*G4+SIN(RADIANS(C4))*H4)/3600 -> -40.21729764 | K4: =-36525+OBSERVATIONS!$U$35-1.5+(OBSERVATIONS!U37+OBSERVATIONS!X37/60+OBSERVATIONS!AA37/3600)/24 -> 8646.506944 | L4: =360-MOD(280.46061837+360.98564736629*(K4),360) -> 14.63258423 | M4: =K4/36525 -> 0.2367284584 | N4: =MOD(125.04452-1934.136261*M4,360) -> 27.17942452 | O4: =MOD(280.4665+36000.7698*M4,360) -> 162.8732373 | P4: =MOD(218.3165+481267.8813*M4,360) -> 28.12013583 | Q4: =MOD(23.4393-0.0000003563*K4,360) -> 23.43621925 | R4: =-(17.2*SIN(RADIANS(N4))-1.32*SIN(RADIANS(2*O4))-0.23*SIN(RADIANS(2*P4))+0.21*SIN(RADIANS(2*N4))) -> -8.579006832 | S4: =9.2*COS(RADIANS(N4))+0.57*COS(RADIANS(2*O4))+0.1*COS(RADIANS(2*P4))-0.09*COS(RADIANS(2*N4)) -> 8.658404217 | T4: =S4+Q4 -> 32.09462347 | U4: =R4*COS(RADIANS(T4))/3600 -> -0.002018859032 | V4: =MOD(360-L4-U4,360) -> 345.3694346 | W4: =MOD(280.461+0.9856474*K4,360) -> 162.8680889 | X4: =MOD(357.528+35999.05*M4,360) -> 239.5276117 | Y4: =1.915*SIN(RADIANS(X4))+0.02*SIN(RADIANS(2*X4)) -> -1.633005001 | Z4: =W4+Y4 -> 161.2350839 | AA4: =-Y4+2.466*SIN(RADIANS(2*Z4))-0.053*SIN(RADIANS(4*Z4)) -> 0.1819892006 | AB4: =Q4 -> 23.43621925 | AC4: =DEGREES(ASIN(SIN(RADIANS(AB4))*SIN(RADIANS(Z4)))) -> 7.350771619 | AD4: =COS(RADIANS(AB4))*SIN(RADIANS(Z4)) -> 0.2951479707 | AE4: =COS(RADIANS(Z4)) -> -0.9468464153 | AF4: =MOD(IF(AE4<0,DEGREES(ATAN(AD4/AE4))+180,DEGREES(ATAN(AD4/AE4))),360) -> 162.6868642 | AG4: =180-L4 -> 165.3674158 | AH4: =MOD(AG4-AF4+180,360) -> 182.6805516 | AI4: 0 | AJ4: 0 | AK4: =RADIANS(282.9404+0.0000470935*(K4+1.5)) -> 4.945349681 | AL4: 1 | AM4: =0.016709-0.000000001151*(K4+1.5) -> 0.01669904614 | AN4: =MOD(RADIANS(356.047+0.9856002585*(K4+1.5)),2*PI()) -> 4.180497796 | AO4: =AN4+AM4*SIN(AN4)*(1+AM4*COS(AN4)) -> 4.16622762 | AP4: =RADIANS(MOD(23.4393-0.0000003563*(K4+1.5),360)) -> 0.4090391808 | AQ4: =COS(AO4)-AM4 -> -0.5361098976 | AR4: =SQRT(1-AM4*AM4)*SIN(AO4) -> -0.8544054902 | AS4: =MOD(RADIANS(IF(AQ4>0,DEGREES(ATAN(AR4/AQ4)),IF(AQ4=0,IF(AR4<0,-90,90),DEGREES(ATAN(AR4/AQ4))+180))),2*PI()) -> 4.152018745 | AT4: =SQRT(AQ4*AQ4+AR4*AR4) -> 1.008673666 | AU4: =AS4+AK4 -> 9.097368425 | AV4: =AT4*COS(AU4) -> -0.9550914988 | AW4: =AT4*SIN(AU4) -> 0.3243806298 | AX4: =AV4 -> -0.9550914988 | AY4: =AW4*COS(AP4) -> 0.2976203278 | AZ4: =AW4*SIN(AP4) -> 0.1290152451 | BA4: =DEGREES(MOD(RADIANS(IF(AX4>0,DEGREES(ATAN(AY4/AX4)),IF(AX4=0,IF(AY4<0,-90,90),DEGREES(ATAN(AY4/AX4))+180))),PI())) -> 162.6922103 | BB4: =SQRT(AX4*AX4+AY4*AY4) -> 1.00038874 | BC4: =DEGREES(RADIANS(IF(BB4>0,DEGREES(ATAN(AZ4/BB4)),IF(BB4=0,IF(AZ4<0,-90,90),DEGREES(ATAN(AZ4/BB4))+180)))) -> 7.348595104 | BD4: =RADIANS(125.1228-0.0529538083*(K4+1.5)) -> -5.808841502 | BE4: =RADIANS(5.1454) -> 0.08980417133 | BF4: =RADIANS(318.0634+0.1643573223*(K4+1.5)) -> 30.35872239 | BG4: =60.2666 -> 60.2666 | BH4: =0.0549 -> 0.0549 | BI4: =MOD(RADIANS(115.3654+13.0649929509*(K4+1.5)),2*PI()) -> 1.07364223 | BJ4: =BI4+BH4*SIN(BI4)*(1+BH4*COS(BI4)) -> 1.123159669 | BK4: =BG4*(COS(BJ4)-BH4) -> 22.7769332 | BL4: =BG4*(SQRT(1-BH4*BH4)*SIN(BJ4)) -> 54.24675075 | BM4: =MOD(RADIANS(IF(BK4>0,DEGREES(ATAN(BL4/BK4)),IF(BK4=0,IF(BL4<0,-90,90),DEGREES(ATAN(BL4/BK4))+180))),2*PI()) -> 1.173273363 | BN4: =SQRT(BK4*BK4+BL4*BL4) -> 58.83450223 | BO4: =BN4*(COS(BD4)*COS(BM4+BF4)-SIN(BD4)*SIN(BM4+BF4)*COS(BE4)) -> 48.88699825 | BP4: =BN4*(SIN(BD4)*COS(BM4+BF4)+COS(BD4)*SIN(BM4+BF4)*COS(BE4)) -> 32.72898802 | BQ4: =BN4*(SIN(BM4+BF4)*SIN(BE4)) -> 0.6110632694 | BR4: =DEGREES(RADIANS(IF(BO4>0,DEGREES(ATAN(BP4/BO4)),IF(BO4=0,IF(BP4<0,-90,90),DEGREES(ATAN(BP4/BO4))+180)))) -> 33.80161468 | BS4: =SQRT(BO4*BO4+BP4*BP4) -> 58.83132885 | BT4: =DEGREES(RADIANS(IF(BS4>0,DEGREES(ATAN(BQ4/BS4)),IF(BS4=0,IF(BQ4<0,-90,90),DEGREES(ATAN(BQ4/BS4))+180)))) -> 0.5950925819 | BU4: =AN4+AK4 -> 9.125847476 | BV4: =BI4+BF4+BD4 -> 25.62352312 | BW4: =BV4-BU4 -> 16.49767565 | BX4: =BV4-BD4 -> 31.43236462 | BY4: =-1.274*SIN(BI4-2*BW4) -> 0.6172429866 | BZ4: =BY4+0.658*SIN(2*BW4) -> 1.275218493 | CA4: =BZ4-0.186*SIN(AN4) -> 1.435522494 | CB4: =CA4-0.059*SIN(2*BI4-2*BW4) -> 1.40379059 | CC4: =CB4-0.057*SIN(BI4-2*BW4+AN4) -> 1.43275942 | CD4: =CC4+0.053*SIN(BI4+2*BW4) -> 1.457633619 | CE4: =CD4+0.046*SIN(2*BW4-AN4) -> 1.433962866 | CF4: =CE4+0.041*SIN(BI4-AN4) -> 1.432538931 | CG4: =CF4-0.035*SIN(BW4) -> 1.457394209 | CH4: =CG4-0.031*SIN(BI4+AN4) -> 1.483955229 | CI4: =CH4-0.015*SIN(2*BX4-2*BW4) -> 1.49895082 | CJ4: =CI4+0.011*SIN(BI4-4*BW4) -> 1.48937441 | CK4: =RADIANS(CJ4+BR4) -> 0.615943956 | CL4: =-0.173*SIN(BX4-2*BW4) -> 0.1729947243 | CM4: =CL4-0.055*SIN(BI4-BX4-2*BW4) -> 0.2004290546 | CN4: =CM4-0.046*SIN(BI4+BX4-2*BW4) -> 0.2220512333 | CO4: =CN4+0.033*SIN(BX4+2*BW4) -> 0.2550408664 | CP4: =CO4+0.017*SIN(2*BI4+BX4) -> 0.2691391209 | CQ4: =RADIANS(CP4+BT4) -> 0.01508368871 | CR4: =BN4-0.58*COS(BI4-2*BW4) -> 58.32712078 | CS4: =CR4-0.46*COS(2*BW4) -> 58.33108981 | CT4: =CS4*COS(CK4)*COS(CQ4) -> 47.60607946 | CU4: =CS4*SIN(CK4)*COS(CQ4) -> 33.69574399 | CV4: =CS4*SIN(CQ4) -> 0.8798146378 | CW4: =CT4 -> 47.60607946 | CX4: =CU4*COS(AP4)-CV4*SIN(AP4) -> 30.56603249 | CY4: =CU4*SIN(AP4)+CV4*COS(AP4) -> 14.20897232 | CZ4: =DEGREES(RADIANS(IF(CW4>0,DEGREES(ATAN(CX4/CW4)),IF(CW4=0,IF(CX4<0,-90,90),DEGREES(ATAN(CX4/CW4))+180)))) -> 32.70295956 | DA4: =SQRT(CW4*CW4+CX4*CX4) -> 56.57403241 | DB4: =DEGREES(RADIANS(IF(DA4>0,DEGREES(ATAN(CY4/DA4)),IF(DA4=0,IF(CY4<0,-90,90),DEGREES(ATAN(CY4/DA4))+180)))) -> 14.09862588 | DC4: =MOD(AG4-CZ4-180,360) -> 312.6644562 | DD4: =RADIANS(49.5574+0.0000211081*(K4+1.5)) -> 0.868125775 | DE4: =RADIANS(1.8497-0.0000000178*(K4+1.5)) -> 0.03228066851 | DF4: =RADIANS(286.5016+0.0000292961*(K4+1.5)) -> 5.004818074 | DG4: =1.523688 -> 1.523688 | DH4: =0.093405+0.000000002516*(K4+1.5) -> 0.09342675839 | DI4: =MOD(RADIANS(18.6021+0.5240207766*(K4+1.5)),2*PI()) -> 4.020146284 | DJ4: =DI4+DH4*SIN(DI4)*(1+DH4*COS(DI4)) -> 3.952513574 | DK4: =DG4*(COS(DJ4)-DH4) -> -1.191916957 | DL4: =DG4*(SQRT(1-DH4*DH4)*SIN(DJ4)) -> -1.099723558 | DM4: =MOD(RADIANS(IF(DK4>0,DEGREES(ATAN(DL4/DK4)),IF(DK4=0,IF(DL4<0,-90,90),DEGREES(ATAN(DL4/DK4))+180))),2*PI()) -> 3.886782194 | DN4: =SQRT(DK4*DK4+DL4*DL4) -> 1.621745337 | DO4: =DN4*(COS(DD4)*COS(DM4+DF4)-SIN(DD4)*SIN(DM4+DF4)*COS(DE4)) -> -1.531292985 | DP4: =DN4*(SIN(DD4)*COS(DM4+DF4)+COS(DD4)*SIN(DM4+DF4)*COS(DE4)) -> -0.5333778763 | DQ4: =DN4*(SIN(DM4+DF4)*SIN(DE4)) -> 0.02660396572 | DR4: =DEGREES(RADIANS(IF(DO4>0,DEGREES(ATAN(DP4/DO4)),IF(DO4=0,IF(DP4<0,-90,90),DEGREES(ATAN(DP4/DO4))+180))))+DU4 -> 199.20436 | DS4: =SQRT(DO4*DO4+DP4*DP4) -> 1.621527109 | DT4: =DEGREES(RADIANS(IF(DS4>0,DEGREES(ATAN(DQ4/DS4)),IF(DS4=0,IF(DQ4<0,-90,90),DEGREES(ATAN(DQ4/DS4))+180)))) -> 0.939952343 | DU4: =0.0000382394*(365.2422*((2000-(36526-OBSERVATIONS!$U$35)/365)-2000)-($K4+1.5)) -> 0.0001809057484 | DV4: =DN4*COS(RADIANS(DR4))*COS(RADIANS(DT4)) -> -1.531291301 | DW4: =DN4*SIN(RADIANS(DR4))*COS(RADIANS(DT4)) -> -0.5333827112 | DX4: =DN4*SIN(RADIANS(DT4)) -> 0.02660396572 | DY4: =$AT4*COS($AU4+RADIANS(DU4)) -> -0.955092523 | DZ4: =$AT4*SIN($AU4+RADIANS(DU4)) -> 0.3243776142 | EA4: =DV4+DY4 -> -2.486383824 | EB4: =DW4+DZ4 -> -0.209005097 | EC4: =DX4 -> 0.02660396572 | ED4: =EA4 -> -2.486383824 | EE4: =EB4*COS(RADIANS($AB4))-EC4*SIN(RADIANS($AB4)) -> -0.2023440256 | EF4: =EB4*SIN(RADIANS($AB4))+EC4*COS(RADIANS($AB4)) -> -0.05871794332 | EG4: =DEGREES(RADIANS(IF(ED4>0,DEGREES(ATAN(EE4/ED4)),IF(ED4=0,IF(EE4<0,-90,90),DEGREES(ATAN(EE4/ED4))+180)))) -> 184.6525263 | EH4: =SQRT(ED4*ED4+EE4*EE4) -> 2.494603701 | EI4: =DEGREES(RADIANS(IF(EH4>0,DEGREES(ATAN(EF4/EH4)),IF(EH4=0,IF(EF4<0,-90,90),DEGREES(ATAN(EF4/EH4))+180)))) -> -1.348378191 | EJ4: =MOD($AG4-EG4-180,360) -> 160.7148895 | EK4: =RADIANS(76.6799+0.000024659*(K4+1.5)) -> 1.342038661 | EL4: =RADIANS(3.3946+0.0000000275*(K4+1.5)) -> 0.05925109753 | EM4: =RADIANS(54.891+0.0000138374*(K4+1.5)) -> 0.9601172442 | EN4: =0.72333 -> 0.72333 | EO4: =0.006773-0.000000001302*(K4+1.5) -> 0.006761740295 | EP4: =MOD(RADIANS(48.0052+1.6021302244*(K4+1.5)),2*PI()) -> 3.896246956 | EQ4: =EP4+EO4*SIN(EP4)*(1+EO4*COS(EP4)) -> 3.891637732 | ER4: =EN4*(COS(EQ4)-EO4) -> -0.5341212527 | ES4: =EN4*(SQRT(1-EO4*EO4)*SIN(EQ4)) -> -0.4930623495 | ET4: =MOD(RADIANS(IF(ER4>0,DEGREES(ATAN(ES4/ER4)),IF(ER4=0,IF(ES4<0,-90,90),DEGREES(ATAN(ES4/ER4))+180))),2*PI()) -> 3.887039774 | EU4: =SQRT(ER4*ER4+ES4*ES4) -> 0.7269085177 | EV4: =EU4*(COS(EK4)*COS(ET4+EM4)-SIN(EK4)*SIN(ET4+EM4)*COS(EL4)) -> 0.7224690007 | EW4: =EU4*(SIN(EK4)*COS(ET4+EM4)+COS(EK4)*SIN(ET4+EM4)*COS(EL4)) -> -0.06793467005 | EX4: =EU4*(SIN(ET4+EM4)*SIN(EL4)) -> -0.04265462205 | EY4: =DEGREES(RADIANS(IF(EV4>0,DEGREES(ATAN(EW4/EV4)),IF(EV4=0,IF(EW4<0,-90,90),DEGREES(ATAN(EW4/EV4))+180))))+FB4 -> -5.371618297 | EZ4: =SQRT(EV4*EV4+EW4*EW4) -> 0.7256559628 | FA4: =DEGREES(RADIANS(IF(EZ4>0,DEGREES(ATAN(EX4/EZ4)),IF(EZ4=0,IF(EX4<0,-90,90),DEGREES(ATAN(EX4/EZ4))+180)))) -> -3.364019628 | FB4: =0.0000382394*(365.2422*((2000-(36526-OBSERVATIONS!$U$35)/365)-2000)-($K4+1.5)) -> 0.0001809057484 | FC4: =EU4*COS(RADIANS(EY4))*COS(RADIANS(FA4)) -> 0.7224692152 | FD4: =EU4*SIN(RADIANS(EY4))*COS(RADIANS(FA4)) -> -0.06793238893 | FE4: =EU4*SIN(RADIANS(FA4)) -> -0.04265462205 | FF4: =$AT4*COS($AU4+RADIANS(FB4)) -> -0.955092523 | FG4: =$AT4*SIN($AU4+RADIANS(FB4)) -> 0.3243776142 | FH4: =FC4+FF4 -> -0.2326233078 | FI4: =FD4+FG4 -> 0.2564452253 | FJ4: =FE4 -> -0.04265462205 | FK4: =FH4 -> -0.2326233078 | FL4: =FI4*COS(RADIANS($AB4))-FJ4*SIN(RADIANS($AB4)) -> 0.2522542988 | FM4: =FI4*SIN(RADIANS($AB4))+FJ4*COS(RADIANS($AB4)) -> 0.06285967746 | FN4: =DEGREES(RADIANS(IF(FK4>0,DEGREES(ATAN(FL4/FK4)),IF(FK4=0,IF(FL4<0,-90,90),DEGREES(ATAN(FL4/FK4))+180)))) -> 132.6815614 | FO4: =SQRT(FK4*FK4+FL4*FL4) -> 0.3431411293 | FP4: =DEGREES(RADIANS(IF(FO4>0,DEGREES(ATAN(FM4/FO4)),IF(FO4=0,IF(FM4<0,-90,90),DEGREES(ATAN(FM4/FO4))+180)))) -> 10.38085637 | FQ4: =MOD($AG4-FN4-180,360) -> 212.6858544 | FR4: =RADIANS(100.4542+0.0000276854*(K4+1.5)) -> 1.757435266 | FS4: =RADIANS(1.303-0.0000001557*(K4+1.5)) -> 0.02271813939 | FT4: =RADIANS(273.8777+0.0000164505*(K4+1.5)) -> 4.782550589 | FU4: =5.20256 -> 5.20256 | FV4: =0.048498+0.000000004469*(K4+1.5) -> 0.04853664794 | FW4: =MOD(RADIANS(19.895+0.0830853001*(K4+1.5)),2*PI()) -> 0.3214416909 | FX4: =FW4+FV4*SIN(FW4)*(1+FV4*COS(FW4)) -> 0.3374822636 | FY4: =FU4*(COS(FX4)-FV4) -> 4.656575578 | FZ4: =FU4*(SQRT(1-FV4*FV4)*SIN(FX4)) -> 1.720601993 | GA4: =MOD(RADIANS(IF(FY4>0,DEGREES(ATAN(FZ4/FY4)),IF(FY4=0,IF(FZ4<0,-90,90),DEGREES(ATAN(FZ4/FY4))+180))),2*PI()) -> 0.3539395482 | GB4: =SQRT(FY4*FY4+FZ4*FZ4) -> 4.964289207 | GC4: =GB4*(COS(FR4)*COS(GA4+FT4)-SIN(FR4)*SIN(GA4+FT4)*COS(FS4)) -> 4.065716699 | GD4: =GB4*(SIN(FR4)*COS(GA4+FT4)+COS(FR4)*SIN(GA4+FT4)*COS(FS4)) -> 2.846673756 | GE4: =GB4*(SIN(GA4+FT4)*SIN(FS4)) -> -0.102779329 | GF4: =DEGREES(RADIANS(IF(GC4>0,DEGREES(ATAN(GD4/GC4)),IF(GC4=0,IF(GD4<0,-90,90),DEGREES(ATAN(GD4/GC4))+180))))+GK4 -> 34.99855701 | GG4: =(-0.332*SIN(2*FW4-5*HF4-RADIANS(67.6))-0.056*SIN(2*FW4-2*HF4+RADIANS(21))+0.042*SIN(3*FW4-5*HF4+RADIANS(21))-0.036*SIN(FW4-2*HF4)+0.022*COS(FW4-HF4)+0.023*SIN(2*FW4-3*HF4+RADIANS(52))-0.016*SIN(FW4-5*HF4-RADIANS(69))) -> 0.03732175984 | GH4: =GF4+GG4 -> 35.03587877 | GI4: =SQRT(GC4*GC4+GD4*GD4) -> 4.963225135 | GJ4: =DEGREES(RADIANS(IF(GI4>0,DEGREES(ATAN(GE4/GI4)),IF(GI4=0,IF(GE4<0,-90,90),DEGREES(ATAN(GE4/GI4))+180)))) -> -1.186321406 | GK4: =0.0000382394*(365.2422*((2000-(36526-OBSERVATIONS!$U$35)/365)-2000)-($K4+1.5)) -> 0.0001809057484 | GL4: =GB4*COS(RADIANS(GH4))*COS(RADIANS(GJ4)) -> 4.063852552 | GM4: =GB4*SIN(RADIANS(GH4))*COS(RADIANS(GJ4)) -> 2.84933434 | GN4: =GB4*SIN(RADIANS(GJ4)) -> -0.102779329 | GO4: =$AT4*COS($AU4+RADIANS(GK4)) -> -0.955092523 | GP4: =$AT4*SIN($AU4+RADIANS(GK4)) -> 0.3243776142 | GQ4: =GL4+GO4 -> 3.108760029 | GR4: =GM4+GP4 -> 3.173711954 | GS4: =GN4 -> -0.102779329 | GT4: =GQ4 -> 3.108760029 | GU4: =GR4*COS(RADIANS($AB4))-GS4*SIN(RADIANS($AB4)) -> 2.952769682 | GV4: =GR4*SIN(RADIANS($AB4))+GS4*COS(RADIANS($AB4)) -> 1.167973616 | GW4: =DEGREES(RADIANS(IF(GT4>0,DEGREES(ATAN(GU4/GT4)),IF(GT4=0,IF(GU4<0,-90,90),DEGREES(ATAN(GU4/GT4))+180)))) -> 43.52584797 | GX4: =SQRT(GT4*GT4+GU4*GU4) -> 4.287567808 | GY4: =DEGREES(RADIANS(IF(GX4>0,DEGREES(ATAN(GV4/GX4)),IF(GX4=0,IF(GV4<0,-90,90),DEGREES(ATAN(GV4/GX4))+180)))) -> 15.23816349 | GZ4: =MOD($AG4-GW4-180,360) -> 301.8415678 | HA4: =RADIANS(113.6634+0.000023898*(K4+1.5)) -> 1.987407642 | HB4: =RADIANS(2.4886-0.0000001081*(K4+1.5)) -> 0.04341794756 | HC4: =RADIANS(339.3939+0.0000297661*(K4+1.5)) -> 5.928033798 | HD4: =9.55475 -> 9.55475 | HE4: =0.055546-0.000000009499*(K4+1.5) -> 0.05546385258 | HF4: =MOD(RADIANS(316.967+0.0334442282*(K4+1.5)),2*PI()) -> 4.296877009 | HG4: =HF4+HE4*SIN(HF4)*(1+HE4*COS(HF4)) -> 4.247268677 | HH4: =HD4*(COS(HG4)-HE4) -> -4.815538395 | HI4: =HD4*(SQRT(1-HE4*HE4)*SIN(HG4)) -> -8.526580859 | HJ4: =MOD(RADIANS(IF(HH4>0,DEGREES(ATAN(HI4/HH4)),IF(HH4=0,IF(HI4<0,-90,90),DEGREES(ATAN(HI4/HH4))+180))),2*PI()) -> 4.198278462 | HK4: =SQRT(HH4*HH4+HI4*HI4) -> 9.792445618 | HL4: =HK4*(COS(HA4)*COS(HJ4+HC4)-SIN(HA4)*SIN(HJ4+HC4)*COS(HB4)) -> 8.800811388 | HM4: =HK4*(SIN(HA4)*COS(HJ4+HC4)+COS(HA4)*SIN(HJ4+HC4)*COS(HB4)) -> -4.285144388 | HN4: =HK4*(SIN(HJ4+HC4)*SIN(HB4)) -> -0.2743130811 | HO4: =DEGREES(RADIANS(IF(HL4>0,DEGREES(ATAN(HM4/HL4)),IF(HL4=0,IF(HM4<0,-90,90),DEGREES(ATAN(HM4/HL4))+180))))+HV4 -> -25.96142417 | HP4: =0.812*SIN(2*FW4-5*HF4-RADIANS(67.6))-0.229*COS(2*FW4-4*HF4-RADIANS(2))+0.119*SIN(FW4-2*HF4-RADIANS(3))+0.046*SIN(2*FW4-6*HF4-RADIANS(69))+0.014*SIN(FW4-3*HF4+RADIANS(32)) -> 0.03019484847 | HQ4: =HO4+HP4 -> -25.93122932 | HR4: =SQRT(HL4*HL4+HM4*HM4) -> 9.788602735 | HS4: =DEGREES(RADIANS(IF(HR4>0,DEGREES(ATAN(HN4/HR4)),IF(HR4=0,IF(HN4<0,-90,90),DEGREES(ATAN(HN4/HR4))+180)))) -> -1.605220872 | HT4: =-0.02*COS(2*FW4-4*HF4-RADIANS(2))+0.018*SIN(2*FW4-6*HF4-RADIANS(49)) -> -0.0007785830166 | HU4: =HS4+HT4 -> -1.605999455 | HV4: =0.0000382394*(365.2422*((2000-(36526-OBSERVATIONS!$U$35)/365)-2000)-($K4+1.5)) -> 0.0001809057484 | HW4: =HK4*COS(RADIANS(HQ4))*COS(RADIANS(HU4)) -> 8.803078597 | HX4: =HK4*SIN(RADIANS(HQ4))*COS(RADIANS(HU4)) -> -4.280476345 | HY4: =HK4*SIN(RADIANS(HU4)) -> -0.2744460968 | HZ4: =$AT4*COS($AU4+RADIANS(HV4)) -> -0.955092523 | IA4: =$AT4*SIN($AU4+RADIANS(HV4)) -> 0.3243776142 | IB4: =HW4+HZ4 -> 7.847986074 | IC4: =HX4+IA4 -> -3.95609873 | ID4: =HY4 -> -0.2744460968 | IE4: =IB4 -> 7.847986074 | IF4: =IC4*COS(RADIANS($AB4))-ID4*SIN(RADIANS($AB4)) -> -3.520579098 | IG4: =IC4*SIN(RADIANS($AB4))+ID4*COS(RADIANS($AB4)) -> -1.825256322 | IH4: =DEGREES(RADIANS(IF(IE4>0,DEGREES(ATAN(IF4/IE4)),IF(IE4=0,IF(IF4<0,-90,90),DEGREES(ATAN(IF4/IE4))+180)))) -> -24.16083742 | II4: =SQRT(IE4*IE4+IF4*IF4) -> 8.601474443 | IJ4: =DEGREES(RADIANS(IF(II4>0,DEGREES(ATAN(IG4/II4)),IF(II4=0,IF(IG4<0,-90,90),DEGREES(ATAN(IG4/II4))+180)))) -> -11.98060166 | IK4: =MOD($AG4-IH4-180,360) -> 9.528253186
B5: Achernar | C5: =(1+37/60+43/3600) -> 1.628611111 | D5: =-57-14.6/60 -> -57.24333333 | E5: =MOD(360-(C5+((3.075+1.336*SIN(RADIANS(C5))*TAN(RADIANS(D5)))*(OBSERVATIONS!$U$35-36526)/365)/3600)*15,360) -> 335.2731254 | F5: =D5+(20.04*COS(RADIANS(C5*15))*(OBSERVATIONS!$U$35-36526)/365)/3600 -> -57.1232632 | G5: =-17.3*SIN(RADIANS(125-0.05295*(OBSERVATIONS!$U$35-2451545)))-1.4*SIN(RADIANS(200+1.97129*(OBSERVATIONS!$U$35-2451545))) -> -15.50721343 | H5: =9.4*COS(RADIANS(125-0.05295*(OBSERVATIONS!$U$35-2451545)))+0.7*COS(RADIANS(200+1.97129*(OBSERVATIONS!$U$35-2451545))) -> -2.104130078 | I5: =E5+(0.9175+0.3978*SIN(RADIANS(C5*15)*TAN(RADIANS(D5)))*G5-COS(RADIANS(C5*15))*TAN(RADIANS(D5))*H5)/3600 -> 335.2736074 | J5: =F5+(0.3978*COS(RADIANS(C5*15))*G5+SIN(RADIANS(C5))*H5)/3600 -> -57.12483995 | K5: =-36525+OBSERVATIONS!$U$35-1.5+OBSERVATIONS!U37/24 -> 8646.5 | L5: =360-MOD(280.46061837+360.98564736629*(K5),360) -> 17.139429 | M5: =K5/36525 -> 0.2367282683 | N5: =MOD(125.04452-1934.136261*M5,360) -> 27.17979226 | O5: =MOD(280.4665+36000.7698*M5,360) -> 162.8663926 | P5: =MOD(218.3165+481267.8813*M5,360) -> 28.02863307 | Q5: =MOD(23.4393-0.0000003563*K5,360) -> 23.43621925 | R5: =-(17.2*SIN(RADIANS(N5))-1.32*SIN(RADIANS(2*O5))-0.23*SIN(RADIANS(2*P5))+0.21*SIN(RADIANS(2*N5))) -> -8.579776485 | S5: =9.2*COS(RADIANS(N5))+0.57*COS(RADIANS(2*O5))+0.1*COS(RADIANS(2*P5))-0.09*COS(RADIANS(2*N5)) -> 8.658566777 | T5: =S5+Q5 -> 32.09478603 | U5: =R5*COS(RADIANS(T5))/3600 -> -0.002019036558 | V5: =MOD(360-L5-U5,360) -> 342.86259 | W5: =MOD(280.461+0.9856474*K5,360) -> 162.8612441 | X5: =MOD(357.528+35999.05*M5,360) -> 239.5207673 | Y5: =1.915*SIN(RADIANS(X5))+0.02*SIN(RADIANS(2*X5)) -> -1.632886659 | Z5: =W5+Y5 -> 161.2283574 | AA5: =-Y5+2.466*SIN(RADIANS(2*Z5))-0.053*SIN(RADIANS(4*Z5)) -> 0.1814181354 | AB5: =Q5 -> 23.43621925 | AC5: =DEGREES(ASIN(SIN(RADIANS(AB5))*SIN(RADIANS(Z5)))) -> 7.353325655 | AD5: =COS(RADIANS(AB5))*SIN(RADIANS(Z5)) -> 0.2952499567 | AE5: =COS(RADIANS(Z5)) -> -0.9468086434 | AF5: =MOD(IF(AE5<0,DEGREES(ATAN(AD5/AE5))+180,DEGREES(ATAN(AD5/AE5))),360) -> 162.6805899 | AG5: =180-L5 -> 162.860571 | AH5: =MOD(AG5-AF5+180,360) -> 180.1799811 | AI5: 0 | AJ5: 0 | AK5: =RADIANS(282.9404+0.0000470935*(K5+1.5)) -> 4.945349675 | AL5: 1 | AM5: =0.016709-0.000000001151*(K5+1.5) -> 0.01669904615 | AN5: =MOD(RADIANS(356.047+0.9856002585*(K5+1.5)),2*PI()) -> 4.180378338 | AO5: 6.043931548 | AP5: =RADIANS(MOD(23.4393-0.0000003563*(K5+1.5),360)) -> 0.4090391808 | AQ5: =COS(AO5)-AM5 -> 0.9548160417 | AR5: =SQRT(1-AM5*AM5)*SIN(AO5) -> -0.236944664 | AS5: =MOD(RADIANS(IF(AQ5>0,DEGREES(ATAN(AR5/AQ5)),IF(AQ5=0,IF(AR5<0,-90,90),DEGREES(ATAN(AR5/AQ5))+180))),2*PI()) -> 6.039941609 | AT5: =SQRT(AQ5*AQ5+AR5*AR5) -> 0.9837766247 | AU5: =AS5+AK5 -> 10.98529128 | AV5: =AT5*COS(AU5) -> -0.01011600068 | AW5: =AT5*SIN(AU5) -> -0.9837246128 | AX5: =AV5 -> -0.01011600068 | AY5: =AW5*COS(AP5) -> -0.902570668 | AZ5: =AW5*SIN(AP5) -> -0.3912547804 | BA5: =DEGREES(MOD(RADIANS(IF(AX5>0,DEGREES(ATAN(AY5/AX5)),IF(AX5=0,IF(AY5<0,-90,90),DEGREES(ATAN(AY5/AX5))+180))),PI())) -> 89.35785651 | BB5: =SQRT(AX5*AX5+AY5*AY5) -> 0.9026273562 | BC5: =DEGREES(RADIANS(IF(BB5>0,DEGREES(ATAN(AZ5/BB5)),IF(BB5=0,IF(AZ5<0,-90,90),DEGREES(ATAN(AZ5/BB5))+180)))) -> -23.4349056 | BD5: =RADIANS(125.1228-0.0529538083*(K5+1.5)) -> -5.808835084 | BE5: =RADIANS(5.1454) -> 0.08980417133 | BF5: =RADIANS(318.0634+0.1643573223*(K5+1.5)) -> 30.35870247 | BG5: =60.2666 -> 60.2666 | BH5: =0.0549 -> 0.0549 | BI5: =MOD(RADIANS(115.3654+13.0649929509*(K5+1.5)),2*PI()) -> 1.072058708 | BJ5: =BI5+BH5*SIN(BI5)*(1+BH5*COS(BI5)) -> 1.12153722 | BK5: =BG5*(COS(BJ5)-BH5) -> 22.86504434 | BL5: =BG5*(SQRT(1-BH5*BH5)*SIN(BJ5)) -> 54.2044207 | BM5: =MOD(RADIANS(IF(BK5>0,DEGREES(ATAN(BL5/BK5)),IF(BK5=0,IF(BL5<0,-90,90),DEGREES(ATAN(BL5/BK5))+180))),2*PI()) -> 1.17161386 | BN5: =SQRT(BK5*BK5+BL5*BL5) -> 58.82966493 | BO5: =BN5*(COS(BD5)*COS(BM5+BF5)-SIN(BD5)*SIN(BM5+BF5)*COS(BE5)) -> 48.93752204 | BP5: =BN5*(SIN(BD5)*COS(BM5+BF5)+COS(BD5)*SIN(BM5+BF5)*COS(BE5)) -> 32.64484269 | BQ5: =BN5*(SIN(BM5+BF5)*SIN(BE5)) -> 0.6022110661 | BR5: =DEGREES(RADIANS(IF(BO5>0,DEGREES(ATAN(BP5/BO5)),IF(BO5=0,IF(BP5<0,-90,90),DEGREES(ATAN(BP5/BO5))+180)))) -> 33.7061361 | BS5: =SQRT(BO5*BO5+BP5*BP5) -> 58.82658258 | BT5: =DEGREES(RADIANS(IF(BS5>0,DEGREES(ATAN(BQ5/BS5)),IF(BS5=0,IF(BQ5<0,-90,90),DEGREES(ATAN(BQ5/BS5))+180)))) -> 0.5865196602 | BU5: =AN5+AK5 -> 9.125728012 | BV5: =BI5+BF5+BD5 -> 25.6219261 | BW5: =BV5-BU5 -> 16.49619809 | BX5: =BV5-BD5 -> 31.43076118 | BY5: =-1.274*SIN(BI5-2*BW5) -> 0.6157137735 | BZ5: =BY5+0.658*SIN(2*BW5) -> 1.273703184 | CA5: =BZ5-0.186*SIN(AN5) -> 1.433995916 | CB5: =CA5-0.059*SIN(2*BI5-2*BW5) -> 1.402274553 | CC5: =CB5-0.057*SIN(BI5-2*BW5+AN5) -> 1.431304827 | CD5: =CC5+0.053*SIN(BI5+2*BW5) -> 1.45639118 | CE5: =CD5+0.046*SIN(2*BW5-AN5) -> 1.432832367 | CF5: =CE5+0.041*SIN(BI5-AN5) -> 1.431468424 | CG5: =CF5-0.035*SIN(BW5) -> 1.456287266 | CH5: =CG5-0.031*SIN(BI5+AN5) -> 1.482875469 | CI5: =CH5-0.015*SIN(2*BX5-2*BW5) -> 1.49787115 | CJ5: =CI5+0.011*SIN(BI5-4*BW5) -> 1.488271413 | CK5: =RADIANS(CJ5+BR5) -> 0.6142582894 | CL5: =-0.173*SIN(BX5-2*BW5) -> 0.1729927401 | CM5: =CL5-0.055*SIN(BI5-BX5-2*BW5) -> 0.2002851312 | CN5: =CM5-0.046*SIN(BI5+BX5-2*BW5) -> 0.2219167225 | CO5: =CN5+0.033*SIN(BX5+2*BW5) -> 0.2549097832 | CP5: =CO5+0.017*SIN(2*BI5+BX5) -> 0.269053194 | CQ5: =RADIANS(CP5+BT5) -> 0.0149325633 | CR5: =BN5-0.58*COS(BI5-2*BW5) -> 58.32189853 | CS5: =CR5-0.46*COS(2*BW5) -> 58.32450823 | CT5: =CS5*COS(CK5)*COS(CQ5) -> 47.65754183 | CU5: =CS5*SIN(CK5)*COS(CQ5) -> 33.61173154 | CV5: =CS5*SIN(CQ5) -> 0.8709020443 | CW5: =CT5 -> 47.65754183 | CX5: =CU5*COS(AP5)-CV5*SIN(AP5) -> 30.49249557 | CY5: =CU5*SIN(AP5)+CV5*COS(AP5) -> 14.16738089 | CZ5: =DEGREES(RADIANS(IF(CW5>0,DEGREES(ATAN(CX5/CW5)),IF(CW5=0,IF(CX5<0,-90,90),DEGREES(ATAN(CX5/CW5))+180)))) -> 32.61213688 | DA5: =SQRT(CW5*CW5+CX5*CX5) -> 56.57767739 | DB5: =DEGREES(RADIANS(IF(DA5>0,DEGREES(ATAN(CY5/DA5)),IF(DA5=0,IF(CY5<0,-90,90),DEGREES(ATAN(CY5/DA5))+180)))) -> 14.05812653 | DC5: =MOD(AG5-CZ5-180,360) -> 310.2484341 | DD5: =RADIANS(49.5574+0.0000211081*(K5+1.5)) -> 0.8681257725 | DE5: =RADIANS(1.8497-0.0000000178*(K5+1.5)) -> 0.03228066851 | DF5: =RADIANS(286.5016+0.0000292961*(K5+1.5)) -> 5.004818071 | DG5: =1.523688 -> 1.523688 | DH5: =0.093405+0.000000002516*(K5+1.5) -> 0.09342675837 | DI5: =MOD(RADIANS(18.6021+0.5240207766*(K5+1.5)),2*PI()) -> 4.02008277 | DJ5: =DI5+DH5*SIN(DI5)*(1+DH5*COS(DI5)) -> 3.952453951 | DK5: =DG5*(COS(DJ5)-DH5) -> -1.191982812 | DL5: =DG5*(SQRT(1-DH5*DH5)*SIN(DJ5)) -> -1.099661252 | DM5: =MOD(RADIANS(IF(DK5>0,DEGREES(ATAN(DL5/DK5)),IF(DK5=0,IF(DL5<0,-90,90),DEGREES(ATAN(DL5/DK5))+180))),2*PI()) -> 3.886726421 | DN5: =SQRT(DK5*DK5+DL5*DL5) -> 1.621751489 | DO5: =DN5*(COS(DD5)*COS(DM5+DF5)-SIN(DD5)*SIN(DM5+DF5)*COS(DE5)) -> -1.531328497 | DP5: =DN5*(SIN(DD5)*COS(DM5+DF5)+COS(DD5)*SIN(DM5+DF5)*COS(DE5)) -> -0.5332944928 | DQ5: =DN5*(SIN(DM5+DF5)*SIN(DE5)) -> 0.02660658083 | DR5: =DEGREES(RADIANS(IF(DO5>0,DEGREES(ATAN(DP5/DO5)),IF(DO5=0,IF(DP5<0,-90,90),DEGREES(ATAN(DP5/DO5))+180))))+DU5 -> 199.2011652 | DS5: =SQRT(DO5*DO5+DP5*DP5) -> 1.62153322 | DT5: =DEGREES(RADIANS(IF(DS5>0,DEGREES(ATAN(DQ5/DS5)),IF(DS5=0,IF(DQ5<0,-90,90),DEGREES(ATAN(DQ5/DS5))+180)))) -> 0.9400411799 | DU5: =0.0000382394*(365.2422*((2000-(36526-OBSERVATIONS!$U$35)/365)-2000)-($K5+1.5)) -> 0.0001811712998 | DV5: =DN5*COS(RADIANS(DR5))*COS(RADIANS(DT5)) -> -1.531326811 | DW5: =DN5*SIN(RADIANS(DR5))*COS(RADIANS(DT5)) -> -0.5332993349 | DX5: =DN5*SIN(RADIANS(DT5)) -> 0.02660658083 | DY5: =$AT5*COS($AU5+RADIANS(DU5)) -> -0.01011289011 | DZ5: =$AT5*SIN($AU5+RADIANS(DU5)) -> -0.9837246448 | EA5: =DV5+DY5 -> -1.541439701 | EB5: =DW5+DZ5 -> -1.51702398 | EC5: =DX5 -> 0.02660658083 | ED5: =EA5 -> -1.541439701 | EE5: =EB5*COS(RADIANS($AB5))-EC5*SIN(RADIANS($AB5)) -> -1.402456821 | EF5: =EB5*SIN(RADIANS($AB5))+EC5*COS(RADIANS($AB5)) -> -0.5789512329 | EG5: =DEGREES(RADIANS(IF(ED5>0,DEGREES(ATAN(EE5/ED5)),IF(ED5=0,IF(EE5<0,-90,90),DEGREES(ATAN(EE5/ED5))+180)))) -> 222.2970435 | EH5: =SQRT(ED5*ED5+EE5*EE5) -> 2.083967727 | EI5: =DEGREES(RADIANS(IF(EH5>0,DEGREES(ATAN(EF5/EH5)),IF(EH5=0,IF(EF5<0,-90,90),DEGREES(ATAN(EF5/EH5))+180)))) -> -15.52593108 | EJ5: =MOD($AG5-EG5-180,360) -> 120.5635275 | EK5: =RADIANS(76.6799+0.000024659*(K5+1.5)) -> 1.342038658 | EL5: =RADIANS(3.3946+0.0000000275*(K5+1.5)) -> 0.05925109753 | EM5: =RADIANS(54.891+0.0000138374*(K5+1.5)) -> 0.9601172425 | EN5: =0.72333 -> 0.72333 | EO5: =0.006773-0.000000001302*(K5+1.5) -> 0.006761740304 | EP5: =MOD(RADIANS(48.0052+1.6021302244*(K5+1.5)),2*PI()) -> 3.896052772 | EQ5: =EP5+EO5*SIN(EP5)*(1+EO5*COS(EP5)) -> 3.891444504 | ER5: =EN5*(COS(EQ5)-EO5) -> -0.5342165183 | ES5: =EN5*(SQRT(1-EO5*EO5)*SIN(EQ5)) -> -0.4929600808 | ET5: =MOD(RADIANS(IF(ER5>0,DEGREES(ATAN(ES5/ER5)),IF(ER5=0,IF(ES5<0,-90,90),DEGREES(ATAN(ES5/ER5))+180))),2*PI()) -> 3.886847502 | EU5: =SQRT(ER5*ER5+ES5*ES5) -> 0.7269091619 | EV5: =EU5*(COS(EK5)*COS(ET5+EM5)-SIN(EK5)*SIN(ET5+EM5)*COS(EL5)) -> 0.7224564781 | EW5: =EU5*(SIN(EK5)*COS(ET5+EM5)+COS(EK5)*SIN(ET5+EM5)*COS(EL5)) -> -0.06807387219 | EX5: =EU5*(SIN(ET5+EM5)*SIN(EL5)) -> -0.04265577108 | EY5: =DEGREES(RADIANS(IF(EV5>0,DEGREES(ATAN(EW5/EV5)),IF(EV5=0,IF(EW5<0,-90,90),DEGREES(ATAN(EW5/EV5))+180))))+FB5 -> -5.382653331 | EZ5: =SQRT(EV5*EV5+EW5*EW5) -> 0.7256565405 | FA5: =DEGREES(RADIANS(IF(EZ5>0,DEGREES(ATAN(EX5/EZ5)),IF(EZ5=0,IF(EX5<0,-90,90),DEGREES(ATAN(EX5/EZ5))+180)))) -> -3.364107368 | FB5: =0.0000382394*(365.2422*((2000-(36526-OBSERVATIONS!$U$35)/365)-2000)-($K5+1.5)) -> 0.0001811712998 | FC5: =EU5*COS(RADIANS(EY5))*COS(RADIANS(FA5)) -> 0.7224566934 | FD5: =EU5*SIN(RADIANS(EY5))*COS(RADIANS(FA5)) -> -0.06807158776 | FE5: =EU5*SIN(RADIANS(FA5)) -> -0.04265577108 | FF5: =$AT5*COS($AU5+RADIANS(FB5)) -> -0.01011289011 | FG5: =$AT5*SIN($AU5+RADIANS(FB5)) -> -0.9837246448 | FH5: =FC5+FF5 -> 0.7123438033 | FI5: =FD5+FG5 -> -1.051796233 | FJ5: =FE5 -> -0.04265577108 | FK5: =FH5 -> 0.7123438033 | FL5: =FI5*COS(RADIANS($AB5))-FJ5*SIN(RADIANS($AB5)) -> -0.948061213 | FM5: =FI5*SIN(RADIANS($AB5))+FJ5*COS(RADIANS($AB5)) -> -0.4574655901 | FN5: =DEGREES(RADIANS(IF(FK5>0,DEGREES(ATAN(FL5/FK5)),IF(FK5=0,IF(FL5<0,-90,90),DEGREES(ATAN(FL5/FK5))+180)))) -> -53.07993515 | FO5: =SQRT(FK5*FK5+FL5*FL5) -> 1.185855707 | FP5: =DEGREES(RADIANS(IF(FO5>0,DEGREES(ATAN(FM5/FO5)),IF(FO5=0,IF(FM5<0,-90,90),DEGREES(ATAN(FM5/FO5))+180)))) -> -21.09503555 | FQ5: =MOD($AG5-FN5-180,360) -> 35.94050615 | FR5: =RADIANS(100.4542+0.0000276854*(K5+1.5)) -> 1.757435263 | FS5: =RADIANS(1.303-0.0000001557*(K5+1.5)) -> 0.02271813941 | FT5: =RADIANS(273.8777+0.0000164505*(K5+1.5)) -> 4.782550587 | FU5: =5.20256 -> 5.20256 | FV5: =0.048498+0.000000004469*(K5+1.5) -> 0.04853664791 | FW5: =MOD(RADIANS(19.895+0.0830853001*(K5+1.5)),2*PI()) -> 0.3214316206 | FX5: =FW5+FV5*SIN(FW5)*(1+FV5*COS(FW5)) -> 0.3374717106 | FY5: =FU5*(COS(FX5)-FV5) -> 4.656593757 | FZ5: =FU5*(SQRT(1-FV5*FV5)*SIN(FX5)) -> 1.720550249 | GA5: =MOD(RADIANS(IF(FY5>0,DEGREES(ATAN(FZ5/FY5)),IF(FY5=0,IF(FZ5<0,-90,90),DEGREES(ATAN(FZ5/FY5))+180))),2*PI()) -> 0.3539285017 | GB5: =SQRT(FY5*FY5+FZ5*FZ5) -> 4.964288325 | GC5: =GB5*(COS(FR5)*COS(GA5+FT5)-SIN(FR5)*SIN(GA5+FT5)*COS(FS5)) -> 4.065747433 | GD5: =GB5*(SIN(FR5)*COS(GA5+FT5)+COS(FR5)*SIN(GA5+FT5)*COS(FS5)) -> 2.846628302 | GE5: =GB5*(SIN(GA5+FT5)*SIN(FS5)) -> -0.1027798235 | GF5: =DEGREES(RADIANS(IF(GC5>0,DEGREES(ATAN(GD5/GC5)),IF(GC5=0,IF(GD5<0,-90,90),DEGREES(ATAN(GD5/GC5))+180))))+GK5 -> 34.99792395 | GG5: =(-0.332*SIN(2*FW5-5*HF5-RADIANS(67.6))-0.056*SIN(2*FW5-2*HF5+RADIANS(21))+0.042*SIN(3*FW5-5*HF5+RADIANS(21))-0.036*SIN(FW5-2*HF5)+0.022*COS(FW5-HF5)+0.023*SIN(2*FW5-3*HF5+RADIANS(52))-0.016*SIN(FW5-5*HF5-RADIANS(69))) -> 0.03732203056 | GH5: =GF5+GG5 -> 35.03524598 | GI5: =SQRT(GC5*GC5+GD5*GD5) -> 4.963224243 | GJ5: =DEGREES(RADIANS(IF(GI5>0,DEGREES(ATAN(GE5/GI5)),IF(GI5=0,IF(GE5<0,-90,90),DEGREES(ATAN(GE5/GI5))+180)))) -> -1.186327326 | GK5: =0.0000382394*(365.2422*((2000-(36526-OBSERVATIONS!$U$35)/365)-2000)-($K5+1.5)) -> 0.0001811712998 | GL5: =GB5*COS(RADIANS(GH5))*COS(RADIANS(GJ5)) -> 4.06388329 | GM5: =GB5*SIN(RADIANS(GH5))*COS(RADIANS(GJ5)) -> 2.849288945 | GN5: =GB5*SIN(RADIANS(GJ5)) -> -0.1027798235 | GO5: =$AT5*COS($AU5+RADIANS(GK5)) -> -0.01011289011 | GP5: =$AT5*SIN($AU5+RADIANS(GK5)) -> -0.9837246448 | GQ5: =GL5+GO5 -> 4.0537704 | GR5: =GM5+GP5 -> 1.8655643 | GS5: =GN5 -> -0.1027798235 | GT5: =GQ5 -> 4.0537704 | GU5: =GR5*COS(RADIANS($AB5))-GS5*SIN(RADIANS($AB5)) -> 1.752539975 | GV5: =GR5*SIN(RADIANS($AB5))+GS5*COS(RADIANS($AB5)) -> 0.6476862573 | GW5: =DEGREES(RADIANS(IF(GT5>0,DEGREES(ATAN(GU5/GT5)),IF(GT5=0,IF(GU5<0,-90,90),DEGREES(ATAN(GU5/GT5))+180)))) -> 23.37995996 | GX5: =SQRT(GT5*GT5+GU5*GU5) -> 4.41638436 | GY5: =DEGREES(RADIANS(IF(GX5>0,DEGREES(ATAN(GV5/GX5)),IF(GX5=0,IF(GV5<0,-90,90),DEGREES(ATAN(GV5/GX5))+180)))) -> 8.343255103 | GZ5: =MOD($AG5-GW5-180,360) -> 319.480611 | HA5: =RADIANS(113.6634+0.000023898*(K5+1.5)) -> 1.987407639 | HB5: =RADIANS(2.4886-0.0000001081*(K5+1.5)) -> 0.04341794758 | HC5: =RADIANS(339.3939+0.0000297661*(K5+1.5)) -> 5.928033794 | HD5: =9.55475 -> 9.55475 | HE5: =0.055546-0.000000009499*(K5+1.5) -> 0.05546385265 | HF5: =MOD(RADIANS(316.967+0.0334442282*(K5+1.5)),2*PI()) -> 4.296872956 | HG5: =HF5+HE5*SIN(HF5)*(1+HE5*COS(HF5)) -> 4.247264723 | HH5: =HD5*(COS(HG5)-HE5) -> -4.815572165 | HI5: =HD5*(SQRT(1-HE5*HE5)*SIN(HG5)) -> -8.526563938 | HJ5: =MOD(RADIANS(IF(HH5>0,DEGREES(ATAN(HI5/HH5)),IF(HH5=0,IF(HI5<0,-90,90),DEGREES(ATAN(HI5/HH5))+180))),2*PI()) -> 4.198274609 | HK5: =SQRT(HH5*HH5+HI5*HI5) -> 9.792447491 | HL5: =HK5*(COS(HA5)*COS(HJ5+HC5)-SIN(HA5)*SIN(HJ5+HC5)*COS(HB5)) -> 8.800796569 | HM5: =HK5*(SIN(HA5)*COS(HJ5+HC5)+COS(HA5)*SIN(HJ5+HC5)*COS(HB5)) -> -4.285179181 | HN5: =HK5*(SIN(HJ5+HC5)*SIN(HB5)) -> -0.2743118817 | HO5: =DEGREES(RADIANS(IF(HL5>0,DEGREES(ATAN(HM5/HL5)),IF(HL5=0,IF(HM5<0,-90,90),DEGREES(ATAN(HM5/HL5))+180))))+HV5 -> -25.96164498 | HP5: =0.812*SIN(2*FW5-5*HF5-RADIANS(67.6))-0.229*COS(2*FW5-4*HF5-RADIANS(2))+0.119*SIN(FW5-2*HF5-RADIANS(3))+0.046*SIN(2*FW5-6*HF5-RADIANS(69))+0.014*SIN(FW5-3*HF5+RADIANS(32)) -> 0.03019425572 | HQ5: =HO5+HP5 -> -25.93145072 | HR5: =SQRT(HL5*HL5+HM5*HM5) -> 9.788604643 | HS5: =DEGREES(RADIANS(IF(HR5>0,DEGREES(ATAN(HN5/HR5)),IF(HR5=0,IF(HN5<0,-90,90),DEGREES(ATAN(HN5/HR5))+180)))) -> -1.605213544 | HT5: =-0.02*COS(2*FW5-4*HF5-RADIANS(2))+0.018*SIN(2*FW5-6*HF5-RADIANS(49)) -> -0.0007785940631 | HU5: =HS5+HT5 -> -1.605992138 | HV5: =0.0000382394*(365.2422*((2000-(36526-OBSERVATIONS!$U$35)/365)-2000)-($K5+1.5)) -> 0.0001811712998 | HW5: =HK5*COS(RADIANS(HQ5))*COS(RADIANS(HU5)) -> 8.803063771 | HX5: =HK5*SIN(RADIANS(HQ5))*COS(RADIANS(HU5)) -> -4.280511196 | HY5: =HK5*SIN(RADIANS(HU5)) -> -0.2744448993 | HZ5: =$AT5*COS($AU5+RADIANS(HV5)) -> -0.01011289011 | IA5: =$AT5*SIN($AU5+RADIANS(HV5)) -> -0.9837246448 | IB5: =HW5+HZ5 -> 8.792950881 | IC5: =HX5+IA5 -> -5.26423584 | ID5: =HY5 -> -0.2744448993 | IE5: =IB5 -> 8.792950881 | IF5: =IC5*COS(RADIANS($AB5))-ID5*SIN(RADIANS($AB5)) -> -4.720799803 | IG5: =IC5*SIN(RADIANS($AB5))+ID5*COS(RADIANS($AB5)) -> -2.345537935 | IH5: =DEGREES(RADIANS(IF(IE5>0,DEGREES(ATAN(IF5/IE5)),IF(IE5=0,IF(IF5<0,-90,90),DEGREES(ATAN(IF5/IE5))+180)))) -> -28.23066563 | II5: =SQRT(IE5*IE5+IF5*IF5) -> 9.980076953 | IJ5: =DEGREES(RADIANS(IF(II5>0,DEGREES(ATAN(IG5/II5)),IF(II5=0,IF(IG5<0,-90,90),DEGREES(ATAN(IG5/II5))+180)))) -> -13.2257473 | IK5: =MOD($AG5-IH5-180,360) -> 11.09123663
B6: Acrux | C6: =(12+26/60+36/3600) -> 12.44333333 | D6: =-63-5.5/60 -> -63.09166667 | E6: =MOD(360-(C6+((3.075+1.336*SIN(RADIANS(C6))*TAN(RADIANS(D6)))*(OBSERVATIONS!$U$35-36526)/365)/3600)*15,360) -> 173.1024574 | F6: =D6+(20.04*COS(RADIANS(C6*15))*(OBSERVATIONS!$U$35-36526)/365)/3600 -> -63.22265603 | G6: =-17.3*SIN(RADIANS(125-0.05295*(OBSERVATIONS!$U$35-2451545)))-1.4*SIN(RADIANS(200+1.97129*(OBSERVATIONS!$U$35-2451545))) -> -15.50721343 | H6: =9.4*COS(RADIANS(125-0.05295*(OBSERVATIONS!$U$35-2451545)))+0.7*COS(RADIANS(200+1.97129*(OBSERVATIONS!$U$35-2451545))) -> -2.104130078 | I6: 173.1040879 | J6: -63.22107995 | K6: =-36525+OBSERVATIONS!$U$35-1.5+(OBSERVATIONS!U37+1)/24 -> 8646.541667 | L6: =360-MOD(280.46061837+360.98564736629*(K6),360) -> 2.098360363 | M6: =K6/36525 -> 0.2367294091 | N6: =MOD(125.04452-1934.136261*M6,360) -> 27.17758585 | O6: =MOD(280.4665+36000.7698*M6,360) -> 162.9074612 | P6: =MOD(218.3165+481267.8813*M6,360) -> 28.57764959 | Q6: =MOD(23.4393-0.0000003563*K6,360) -> 23.43621924 | R6: =-(17.2*SIN(RADIANS(N6))-1.32*SIN(RADIANS(2*O6))-0.23*SIN(RADIANS(2*P6))+0.21*SIN(RADIANS(2*N6))) -> -8.575187272 | S6: =9.2*COS(RADIANS(N6))+0.57*COS(RADIANS(2*O6))+0.1*COS(RADIANS(2*P6))-0.09*COS(RADIANS(2*N6)) -> 8.657582556 | T6: =S6+Q6 -> 32.09380179 | U6: =R6*COS(RADIANS(T6))/3600 -> -0.002017978342 | V6: =MOD(360-L6-U6,360) -> 357.9036576 | W6: =MOD(280.461+0.9856474*K6,360) -> 162.9023127 | X6: =MOD(357.528+35999.05*M6,360) -> 239.561834 | Y6: =1.915*SIN(RADIANS(X6))+0.02*SIN(RADIANS(2*X6)) -> -1.633596375 | Z6: =W6+Y6 -> 161.2687164 | AA6: =-Y6+2.466*SIN(RADIANS(2*Z6))-0.053*SIN(RADIANS(4*Z6)) -> 0.1848452831 | AB6: =Q6 -> 23.43621924 | AC6: =DEGREES(ASIN(SIN(RADIANS(AB6))*SIN(RADIANS(Z6)))) -> 7.338000001 | AD6: =COS(RADIANS(AB6))*SIN(RADIANS(Z6)) -> 0.2946379746 | AE6: =COS(RADIANS(Z6)) -> -0.9470350811 | AF6: =MOD(IF(AE6<0,DEGREES(ATAN(AD6/AE6))+180,DEGREES(ATAN(AD6/AE6))),360) -> 162.7182347 | AG6: =180-L6 -> 177.9016396 | AH6: =MOD(AG6-AF6+180,360) -> 195.1834049 | AI6: 0 | AJ6: 0 | AK6: =RADIANS(282.9404+0.0000470935*(K6+1.5)) -> 4.945349709 | AL6: 1 | AM6: =0.016709-0.000000001151*(K6+1.5) -> 0.0166990461 | AN6: =MOD(RADIANS(356.047+0.9856002585*(K6+1.5)),2*PI()) -> 4.181095086 | AO6: =AN6+AM6*SIN(AN6)*(1+AM6*COS(AN6)) -> 4.166819774 | AP6: =RADIANS(MOD(23.4393-0.0000003563*(K6+1.5),360)) -> 0.4090391806 | AQ6: =COS(AO6)-AM6 -> -0.5356037966 | AR6: =SQRT(1-AM6*AM6)*SIN(AO6) -> -0.8547128686 | AS6: =MOD(RADIANS(IF(AQ6>0,DEGREES(ATAN(AR6/AQ6)),IF(AQ6=0,IF(AR6<0,-90,90),DEGREES(ATAN(AR6/AQ6))+180))),2*PI()) -> 4.152605727 | AT6: =SQRT(AQ6*AQ6+AR6*AR6) -> 1.008665214 | AU6: =AS6+AK6 -> 9.097955436 | AV6: =AT6*COS(AU6) -> -0.9552737451 | AW6: =AT6*SIN(AU6) -> 0.3238172116 | AX6: =AV6 -> -0.9552737451 | AY6: =AW6*COS(AP6) -> 0.2971033897 | AZ6: =AW6*SIN(AP6) -> 0.1287911579 | BA6: =DEGREES(MOD(RADIANS(IF(AX6>0,DEGREES(ATAN(AY6/AX6)),IF(AX6=0,IF(AY6<0,-90,90),DEGREES(ATAN(AY6/AX6))+180))),PI())) -> 162.7235813 | BB6: =SQRT(AX6*AX6+AY6*AY6) -> 1.000409092 | BC6: =DEGREES(RADIANS(IF(BB6>0,DEGREES(ATAN(AZ6/BB6)),IF(BB6=0,IF(AZ6<0,-90,90),DEGREES(ATAN(AZ6/BB6))+180)))) -> 7.335822829 | BD6: =RADIANS(125.1228-0.0529538083*(K6+1.5)) -> -5.808873593 | BE6: =RADIANS(5.1454) -> 0.08980417133 | BF6: =RADIANS(318.0634+0.1643573223*(K6+1.5)) -> 30.358822 | BG6: =60.2666 -> 60.2666 | BH6: =0.0549 -> 0.0549 | BI6: =MOD(RADIANS(115.3654+13.0649929509*(K6+1.5)),2*PI()) -> 1.081559839 | BJ6: =BI6+BH6*SIN(BI6)*(1+BH6*COS(BI6)) -> 1.131269907 | BK6: =BG6*(COS(BJ6)-BH6) -> 22.33546158 | BL6: =BG6*(SQRT(1-BH6*BH6)*SIN(BJ6)) -> 54.45620548 | BM6: =MOD(RADIANS(IF(BK6>0,DEGREES(ATAN(BL6/BK6)),IF(BK6=0,IF(BL6<0,-90,90),DEGREES(ATAN(BL6/BK6))+180))),2*PI()) -> 1.181566776 | BN6: =SQRT(BK6*BK6+BL6*BL6) -> 58.85873902 | BO6: =BN6*(COS(BD6)*COS(BM6+BF6)-SIN(BD6)*SIN(BM6+BF6)*COS(BE6)) -> 48.63237155 | BP6: =BN6*(SIN(BD6)*COS(BM6+BF6)+COS(BD6)*SIN(BM6+BF6)*COS(BE6)) -> 33.14836618 | BQ6: =BN6*(SIN(BM6+BF6)*SIN(BE6)) -> 0.6552987209 | BR6: =DEGREES(RADIANS(IF(BO6>0,DEGREES(ATAN(BP6/BO6)),IF(BO6=0,IF(BP6<0,-90,90),DEGREES(ATAN(BP6/BO6))+180)))) -> 34.27877813 | BS6: =SQRT(BO6*BO6+BP6*BP6) -> 58.85509106 | BT6: =DEGREES(RADIANS(IF(BS6>0,DEGREES(ATAN(BQ6/BS6)),IF(BS6=0,IF(BQ6<0,-90,90),DEGREES(ATAN(BQ6/BS6))+180)))) -> 0.6379108242 | BU6: =AN6+AK6 -> 9.126444795 | BV6: =BI6+BF6+BD6 -> 25.63150824 | BW6: =BV6-BU6 -> 16.50506345 | BX6: =BV6-BD6 -> 31.44038184 | BY6: =-1.274*SIN(BI6-2*BW6) -> 0.6248715767 | BZ6: =BY6+0.658*SIN(2*BW6) -> 1.282691376 | CA6: =BZ6-0.186*SIN(AN6) -> 1.443051692 | CB6: =CA6-0.059*SIN(2*BI6-2*BW6) -> 1.4112671 | CC6: =CB6-0.057*SIN(BI6-2*BW6+AN6) -> 1.439928028 | CD6: =CC6+0.053*SIN(BI6+2*BW6) -> 1.463733863 | CE6: =CD6+0.046*SIN(2*BW6-AN6) -> 1.439506282 | CF6: =CE6+0.041*SIN(BI6-AN6) -> 1.437782437 | CG6: =CF6-0.035*SIN(BW6) -> 1.462819083 | CH6: =CG6-0.031*SIN(BI6+AN6) -> 1.489243033 | CI6: =CH6-0.015*SIN(2*BX6-2*BW6) -> 1.504238154 | CJ6: =CI6+0.011*SIN(BI6-4*BW6) -> 1.494781062 | CK6: =RADIANS(CJ6+BR6) -> 0.6243663931 | CL6: =-0.173*SIN(BX6-2*BW6) -> 0.1729999044 | CM6: =CL6-0.055*SIN(BI6-BX6-2*BW6) -> 0.2011402634 | CN6: =CM6-0.046*SIN(BI6+BX6-2*BW6) -> 0.2227153617 | CO6: =CN6+0.033*SIN(BX6+2*BW6) -> 0.2556775754 | CP6: =CO6+0.017*SIN(2*BI6+BX6) -> 0.2695452564 | CQ6: =RADIANS(CP6+BT6) -> 0.01583809643 | CR6: =BN6-0.58*COS(BI6-2*BW6) -> 58.35329662 | CS6: =CR6-0.46*COS(2*BW6) -> 58.36406149 | CT6: =CS6*COS(CK6)*COS(CQ6) -> 47.34678971 | CU6: =CS6*SIN(CK6)*COS(CQ6) -> 34.11437789 | CV6: =CS6*SIN(CQ6) -> 0.9243369883 | CW6: =CT6 -> 47.34678971 | CX6: =CU6*COS(AP6)-CV6*SIN(AP6) -> 30.93242273 | CY6: =CU6*SIN(AP6)+CV6*COS(AP6) -> 14.41632413 | CZ6: =DEGREES(RADIANS(IF(CW6>0,DEGREES(ATAN(CX6/CW6)),IF(CW6=0,IF(CX6<0,-90,90),DEGREES(ATAN(CX6/CW6))+180)))) -> 33.15723418 | DA6: =SQRT(CW6*CW6+CX6*CX6) -> 56.55557685 | DB6: =DEGREES(RADIANS(IF(DA6>0,DEGREES(ATAN(CY6/DA6)),IF(DA6=0,IF(CY6<0,-90,90),DEGREES(ATAN(CY6/DA6))+180)))) -> 14.30046456 | DC6: =MOD(AG6-CZ6-180,360) -> 324.7444055 | DD6: =RADIANS(49.5574+0.0000211081*(K6+1.5)) -> 0.8681257878 | DE6: =RADIANS(1.8497-0.0000000178*(K6+1.5)) -> 0.0322806685 | DF6: =RADIANS(286.5016+0.0000292961*(K6+1.5)) -> 5.004818092 | DG6: =1.523688 -> 1.523688 | DH6: =0.093405+0.000000002516*(K6+1.5) -> 0.09342675847 | DI6: =MOD(RADIANS(18.6021+0.5240207766*(K6+1.5)),2*PI()) -> 4.020463849 | DJ6: =DI6+DH6*SIN(DI6)*(1+DH6*COS(DI6)) -> 3.952811692 | DK6: =DG6*(COS(DJ6)-DH6) -> -1.191587623 | DL6: =DG6*(SQRT(1-DH6*DH6)*SIN(DJ6)) -> -1.100035035 | DM6: =MOD(RADIANS(IF(DK6>0,DEGREES(ATAN(DL6/DK6)),IF(DK6=0,IF(DL6<0,-90,90),DEGREES(ATAN(DL6/DK6))+180))),2*PI()) -> 3.887061064 | DN6: =SQRT(DK6*DK6+DL6*DL6) -> 1.621714568 | DO6: =DN6*(COS(DD6)*COS(DM6+DF6)-SIN(DD6)*SIN(DM6+DF6)*COS(DE6)) -> -1.531115349 | DP6: =DN6*(SIN(DD6)*COS(DM6+DF6)+COS(DD6)*SIN(DM6+DF6)*COS(DE6)) -> -0.5337947668 | DQ6: =DN6*(SIN(DM6+DF6)*SIN(DE6)) -> 0.02659088883 | DR6: =DEGREES(RADIANS(IF(DO6>0,DEGREES(ATAN(DP6/DO6)),IF(DO6=0,IF(DP6<0,-90,90),DEGREES(ATAN(DP6/DO6))+180))))+DU6 -> 199.2203345 | DS6: =SQRT(DO6*DO6+DP6*DP6) -> 1.621496551 | DT6: =DEGREES(RADIANS(IF(DS6>0,DEGREES(ATAN(DQ6/DS6)),IF(DS6=0,IF(DQ6<0,-90,90),DEGREES(ATAN(DQ6/DS6))+180)))) -> 0.9395081048 | DU6: =0.0000382394*(365.2422*((2000-(36526-OBSERVATIONS!$U$35)/365)-2000)-($K6+1.5)) -> 0.0001795779915 | DV6: =DN6*COS(RADIANS(DR6))*COS(RADIANS(DT6)) -> -1.531113676 | DW6: =DN6*SIN(RADIANS(DR6))*COS(RADIANS(DT6)) -> -0.5337995656 | DX6: =DN6*SIN(RADIANS(DT6)) -> 0.02659088883 | DY6: =$AT6*COS($AU6+RADIANS(DU6)) -> -0.95527476 | DZ6: =$AT6*SIN($AU6+RADIANS(DU6)) -> 0.3238142176 | EA6: =DV6+DY6 -> -2.486388436 | EB6: =DW6+DZ6 -> -0.2099853481 | EC6: =DX6 -> 0.02659088883 | ED6: =EA6 -> -2.486388436 | EE6: =EB6*COS(RADIANS($AB6))-EC6*SIN(RADIANS($AB6)) -> -0.2032382082 | EF6: =EB6*SIN(RADIANS($AB6))+EC6*COS(RADIANS($AB6)) -> -0.05911981463 | EG6: =DEGREES(RADIANS(IF(ED6>0,DEGREES(ATAN(EE6/ED6)),IF(ED6=0,IF(EE6<0,-90,90),DEGREES(ATAN(EE6/ED6))+180)))) -> 184.6729868 | EH6: =SQRT(ED6*ED6+EE6*EE6) -> 2.494680986 | EI6: =DEGREES(RADIANS(IF(EH6>0,DEGREES(ATAN(EF6/EH6)),IF(EH6=0,IF(EF6<0,-90,90),DEGREES(ATAN(EF6/EH6))+180)))) -> -1.357561138 | EJ6: =MOD($AG6-EG6-180,360) -> 173.2286528 | EK6: =RADIANS(76.6799+0.000024659*(K6+1.5)) -> 1.342038676 | EL6: =RADIANS(3.3946+0.0000000275*(K6+1.5)) -> 0.05925109755 | EM6: =RADIANS(54.891+0.0000138374*(K6+1.5)) -> 0.9601172526 | EN6: =0.72333 -> 0.72333 | EO6: =0.006773-0.000000001302*(K6+1.5) -> 0.00676174025 | EP6: =MOD(RADIANS(48.0052+1.6021302244*(K6+1.5)),2*PI()) -> 3.897217874 | EQ6: =EP6+EO6*SIN(EP6)*(1+EO6*COS(EP6)) -> 3.892603872 | ER6: =EN6*(COS(EQ6)-EO6) -> -0.5336446274 | ES6: =EN6*(SQRT(1-EO6*EO6)*SIN(EQ6)) -> -0.4935734184 | ET6: =MOD(RADIANS(IF(ER6>0,DEGREES(ATAN(ES6/ER6)),IF(ER6=0,IF(ES6<0,-90,90),DEGREES(ATAN(ES6/ER6))+180))),2*PI()) -> 3.888001138 | EU6: =SQRT(ER6*ER6+ES6*ES6) -> 0.7269052949 | EV6: =EU6*(COS(EK6)*COS(ET6+EM6)-SIN(EK6)*SIN(ET6+EM6)*COS(EL6)) -> 0.722531211 | EW6: =EU6*(SIN(EK6)*COS(ET6+EM6)+COS(EK6)*SIN(ET6+EM6)*COS(EL6)) -> -0.06723862161 | EX6: =EU6*(SIN(ET6+EM6)*SIN(EL6)) -> -0.04264885313 | EY6: =DEGREES(RADIANS(IF(EV6>0,DEGREES(ATAN(EW6/EV6)),IF(EV6=0,IF(EW6<0,-90,90),DEGREES(ATAN(EW6/EV6))+180))))+FB6 -> -5.316442863 | EZ6: =SQRT(EV6*EV6+EW6*EW6) -> 0.7256530735 | FA6: =DEGREES(RADIANS(IF(EZ6>0,DEGREES(ATAN(EX6/EZ6)),IF(EZ6=0,IF(EX6<0,-90,90),DEGREES(ATAN(EX6/EZ6))+180)))) -> -3.36357906 | FB6: =0.0000382394*(365.2422*((2000-(36526-OBSERVATIONS!$U$35)/365)-2000)-($K6+1.5)) -> 0.0001795779915 | FC6: =EU6*COS(RADIANS(EY6))*COS(RADIANS(FA6)) -> 0.7225314217 | FD6: =EU6*SIN(RADIANS(EY6))*COS(RADIANS(FA6)) -> -0.06723635703 | FE6: =EU6*SIN(RADIANS(FA6)) -> -0.04264885313 | FF6: =$AT6*COS($AU6+RADIANS(FB6)) -> -0.95527476 | FG6: =$AT6*SIN($AU6+RADIANS(FB6)) -> 0.3238142176 | FH6: =FC6+FF6 -> -0.2327433383 | FI6: =FD6+FG6 -> 0.2565778605 | FJ6: =FE6 -> -0.04264885313 | FK6: =FH6 -> -0.2327433383 | FL6: =FI6*COS(RADIANS($AB6))-FJ6*SIN(RADIANS($AB6)) -> 0.2523736977 | FM6: =FI6*SIN(RADIANS($AB6))+FJ6*COS(RADIANS($AB6)) -> 0.06291772317 | FN6: =DEGREES(RADIANS(IF(FK6>0,DEGREES(ATAN(FL6/FK6)),IF(FK6=0,IF(FL6<0,-90,90),DEGREES(ATAN(FL6/FK6))+180)))) -> 132.6827789 | FO6: =SQRT(FK6*FK6+FL6*FL6) -> 0.3433102749 | FP6: =DEGREES(RADIANS(IF(FO6>0,DEGREES(ATAN(FM6/FO6)),IF(FO6=0,IF(FM6<0,-90,90),DEGREES(ATAN(FM6/FO6))+180)))) -> 10.3852258 | FQ6: =MOD($AG6-FN6-180,360) -> 225.2188608 | FR6: =RADIANS(100.4542+0.0000276854*(K6+1.5)) -> 1.757435283 | FS6: =RADIANS(1.303-0.0000001557*(K6+1.5)) -> 0.02271813929 | FT6: =RADIANS(273.8777+0.0000164505*(K6+1.5)) -> 4.782550599 | FU6: =5.20256 -> 5.20256 | FV6: =0.048498+0.000000004469*(K6+1.5) -> 0.0485366481 | FW6: =MOD(RADIANS(19.895+0.0830853001*(K6+1.5)),2*PI()) -> 0.321492042 | FX6: =FW6+FV6*SIN(FW6)*(1+FV6*COS(FW6)) -> 0.3375350284 | FY6: =FU6*(COS(FX6)-FV6) -> 4.656484676 | FZ6: =FU6*(SQRT(1-FV6*FV6)*SIN(FX6)) -> 1.720860712 | GA6: =MOD(RADIANS(IF(FY6>0,DEGREES(ATAN(FZ6/FY6)),IF(FY6=0,IF(FZ6<0,-90,90),DEGREES(ATAN(FZ6/FY6))+180))),2*PI()) -> 0.3539947804 | GB6: =SQRT(FY6*FY6+FZ6*FZ6) -> 4.964293619 | GC6: =GB6*(COS(FR6)*COS(GA6+FT6)-SIN(FR6)*SIN(GA6+FT6)*COS(FS6)) -> 4.065563018 | GD6: =GB6*(SIN(FR6)*COS(GA6+FT6)+COS(FR6)*SIN(GA6+FT6)*COS(FS6)) -> 2.846901017 | GE6: =GB6*(SIN(GA6+FT6)*SIN(FS6)) -> -0.1027768562 | GF6: =DEGREES(RADIANS(IF(GC6>0,DEGREES(ATAN(GD6/GC6)),IF(GC6=0,IF(GD6<0,-90,90),DEGREES(ATAN(GD6/GC6))+180))))+GK6 -> 35.00172233 | GG6: =(-0.332*SIN(2*FW6-5*HF6-RADIANS(67.6))-0.056*SIN(2*FW6-2*HF6+RADIANS(21))+0.042*SIN(3*FW6-5*HF6+RADIANS(21))-0.036*SIN(FW6-2*HF6)+0.022*COS(FW6-HF6)+0.023*SIN(2*FW6-3*HF6+RADIANS(52))-0.016*SIN(FW6-5*HF6-RADIANS(69))) -> 0.0373204062 | GH6: =GF6+GG6 -> 35.03904274 | GI6: =SQRT(GC6*GC6+GD6*GD6) -> 4.963229599 | GJ6: =DEGREES(RADIANS(IF(GI6>0,DEGREES(ATAN(GE6/GI6)),IF(GI6=0,IF(GE6<0,-90,90),DEGREES(ATAN(GE6/GI6))+180)))) -> -1.186291806 | GK6: =0.0000382394*(365.2422*((2000-(36526-OBSERVATIONS!$U$35)/365)-2000)-($K6+1.5)) -> 0.0001795779915 | GL6: =GB6*COS(RADIANS(GH6))*COS(RADIANS(GJ6)) -> 4.063698855 | GM6: =GB6*SIN(RADIANS(GH6))*COS(RADIANS(GJ6)) -> 2.849561311 | GN6: =GB6*SIN(RADIANS(GJ6)) -> -0.1027768562 | GO6: =$AT6*COS($AU6+RADIANS(GK6)) -> -0.95527476 | GP6: =$AT6*SIN($AU6+RADIANS(GK6)) -> 0.3238142176 | GQ6: =GL6+GO6 -> 3.108424095 | GR6: =GM6+GP6 -> 3.173375528 | GS6: =GN6 -> -0.1027768562 | GT6: =GQ6 -> 3.108424095 | GU6: =GR6*COS(RADIANS($AB6))-GS6*SIN(RADIANS($AB6)) -> 2.952460026 | GV6: =GR6*SIN(RADIANS($AB6))+GS6*COS(RADIANS($AB6)) -> 1.167842078 | GW6: =DEGREES(RADIANS(IF(GT6>0,DEGREES(ATAN(GU6/GT6)),IF(GT6=0,IF(GU6<0,-90,90),DEGREES(ATAN(GU6/GT6))+180)))) -> 43.52593927 | GX6: =SQRT(GT6*GT6+GU6*GU6) -> 4.287110981 | GY6: =DEGREES(RADIANS(IF(GX6>0,DEGREES(ATAN(GV6/GX6)),IF(GX6=0,IF(GV6<0,-90,90),DEGREES(ATAN(GV6/GX6))+180)))) -> 15.23807523 | GZ6: =MOD($AG6-GW6-180,360) -> 314.3757004 | HA6: =RADIANS(113.6634+0.000023898*(K6+1.5)) -> 1.987407657 | HB6: =RADIANS(2.4886-0.0000001081*(K6+1.5)) -> 0.0434179475 | HC6: =RADIANS(339.3939+0.0000297661*(K6+1.5)) -> 5.928033816 | HD6: =9.55475 -> 9.55475 | HE6: =0.055546-0.000000009499*(K6+1.5) -> 0.05546385225 | HF6: =MOD(RADIANS(316.967+0.0334442282*(K6+1.5)),2*PI()) -> 4.296897277 | HG6: =HF6+HE6*SIN(HF6)*(1+HE6*COS(HF6)) -> 4.247288449 | HH6: =HD6*(COS(HG6)-HE6) -> -4.815369541 | HI6: =HD6*(SQRT(1-HE6*HE6)*SIN(HG6)) -> -8.526665463 | HJ6: =MOD(RADIANS(IF(HH6>0,DEGREES(ATAN(HI6/HH6)),IF(HH6=0,IF(HI6<0,-90,90),DEGREES(ATAN(HI6/HH6))+180))),2*PI()) -> 4.198297725 | HK6: =SQRT(HH6*HH6+HI6*HI6) -> 9.792436251 | HL6: =HK6*(COS(HA6)*COS(HJ6+HC6)-SIN(HA6)*SIN(HJ6+HC6)*COS(HB6)) -> 8.800885481 | HM6: =HK6*(SIN(HA6)*COS(HJ6+HC6)+COS(HA6)*SIN(HJ6+HC6)*COS(HB6)) -> -4.284970423 | HN6: =HK6*(SIN(HJ6+HC6)*SIN(HB6)) -> -0.2743190781 | HO6: =DEGREES(RADIANS(IF(HL6>0,DEGREES(ATAN(HM6/HL6)),IF(HL6=0,IF(HM6<0,-90,90),DEGREES(ATAN(HM6/HL6))+180))))+HV6 -> -25.96032012 | HP6: =0.812*SIN(2*FW6-5*HF6-RADIANS(67.6))-0.229*COS(2*FW6-4*HF6-RADIANS(2))+0.119*SIN(FW6-2*HF6-RADIANS(3))+0.046*SIN(2*FW6-6*HF6-RADIANS(69))+0.014*SIN(FW6-3*HF6+RADIANS(32)) -> 0.03019781221 | HQ6: =HO6+HP6 -> -25.93012231 | HR6: =SQRT(HL6*HL6+HM6*HM6) -> 9.788593197 | HS6: =DEGREES(RADIANS(IF(HR6>0,DEGREES(ATAN(HN6/HR6)),IF(HR6=0,IF(HN6<0,-90,90),DEGREES(ATAN(HN6/HR6))+180)))) -> -1.60525751 | HT6: =-0.02*COS(2*FW6-4*HF6-RADIANS(2))+0.018*SIN(2*FW6-6*HF6-RADIANS(49)) -> -0.0007785277834 | HU6: =HS6+HT6 -> -1.606036038 | HV6: =0.0000382394*(365.2422*((2000-(36526-OBSERVATIONS!$U$35)/365)-2000)-($K6+1.5)) -> 0.0001795779915 | HW6: =HK6*COS(RADIANS(HQ6))*COS(RADIANS(HU6)) -> 8.80315272 | HX6: =HK6*SIN(RADIANS(HQ6))*COS(RADIANS(HU6)) -> -4.280302089 | HY6: =HK6*SIN(RADIANS(HU6)) -> -0.2744520842 | HZ6: =$AT6*COS($AU6+RADIANS(HV6)) -> -0.95527476 | IA6: =$AT6*SIN($AU6+RADIANS(HV6)) -> 0.3238142176 | IB6: =HW6+HZ6 -> 7.84787796 | IC6: =HX6+IA6 -> -3.956487871 | ID6: =HY6 -> -0.2744520842 | IE6: =IB6 -> 7.84787796 | IF6: =IC6*COS(RADIANS($AB6))-ID6*SIN(RADIANS($AB6)) -> -3.520933755 | IG6: =IC6*SIN(RADIANS($AB6))+ID6*COS(RADIANS($AB6)) -> -1.825416587 | IH6: =DEGREES(RADIANS(IF(IE6>0,DEGREES(ATAN(IF6/IE6)),IF(IE6=0,IF(IF6<0,-90,90),DEGREES(ATAN(IF6/IE6))+180)))) -> -24.16328764 | II6: =SQRT(IE6*IE6+IF6*IF6) -> 8.601520969 | IJ6: =DEGREES(RADIANS(IF(II6>0,DEGREES(ATAN(IG6/II6)),IF(II6=0,IF(IG6<0,-90,90),DEGREES(ATAN(IG6/II6))+180)))) -> -11.98156027 | IK6: =MOD($AG6-IH6-180,360) -> 22.06492728
B7: Adhara | C7: =(6+58/60+39/3600) -> 6.9775 | D7: =-28-58.4/60 -> -28.97333333 | E7: =MOD(360-(C7+((3.075+1.336*SIN(RADIANS(C7))*TAN(RADIANS(D7)))*(OBSERVATIONS!$U$35-36526)/365)/3600)*15,360) -> 255.0428371 | F7: =D7+(20.04*COS(RADIANS(C7*15))*(OBSERVATIONS!$U$35-36526)/365)/3600 -> -29.00671458 | G7: =-17.3*SIN(RADIANS(125-0.05295*(OBSERVATIONS!$U$35-2451545)))-1.4*SIN(RADIANS(200+1.97129*(OBSERVATIONS!$U$35-2451545))) -> -15.50721343 | H7: =9.4*COS(RADIANS(125-0.05295*(OBSERVATIONS!$U$35-2451545)))+0.7*COS(RADIANS(200+1.97129*(OBSERVATIONS!$U$35-2451545))) -> -2.104130078 | I7: 255.0446263 | J7: -29.00635184 | K7: =VLOOKUP(OBSERVATIONS!U7,O7:P69,2,FALSE) -> 0 | O7: Sun | P7: 1 | Q7: =AH4 -> 182.6805516 | R7: =AH5 -> 180.1799811 | S7: =AH6 -> 195.1834049 | T7: =AC4 -> 7.350771619 | U7: =AC5 -> 7.353325655 | V7: =AC6 -> 7.338000001 | Y7: =MOD(Q7+OBSERVATIONS!$AO$13,360) -> 189.4638849 | Z7: =IF(Y7>180,360-Y7,Y7) -> 170.5361151 | AA7: =T7 -> 7.350771619 | AB7: =IF(Y7>90,IF(Y7<270,1,0),0) -> 1 | AC7: =ABS(TAN(RADIANS(ABS(OBSERVATIONS!$AO$12)))/TAN(RADIANS(ABS(Z7)))) -> 8.752563961 | AD7: =IF(AB7=0,IF(OBSERVATIONS!$AY$35="N",-AC7,AC7),IF(OBSERVATIONS!$AY$35="N",AC7,-AC7)) -> 8.752563961 | AE7: =IF(AA7>0,ABS(TAN(RADIANS(AA7))/SIN(RADIANS(Y7))),-ABS(TAN(RADIANS(AA7))/SIN(RADIANS(Y7)))) -> 0.7845706668 | AF7: =AD7+AE7 -> 9.537134627 | AG7: =ABS(DEGREES(ATAN(1/(COS(RADIANS(ABS(OBSERVATIONS!$AO$12)))*AF7)))) -> 10.50702378 | AH7: =IF(AF7<0,IF(Y7<180,180+AG7,180-AG7),IF(Y7<180,360-AG7,AG7)) -> 10.50702378 | AI7: =AA7-OBSERVATIONS!$AO$12 -> -48.22256171 | AJ7: =DEGREES(ASIN(SIN(RADIANS(OBSERVATIONS!$AO$12))*SIN(RADIANS(AA7))+COS(RADIANS(OBSERVATIONS!$AO$12))*COS(RADIANS(AA7))*COS(RADIANS(Y7)))) -> -26.58588785 | AK7: =AJ7 -> -26.58588785 | AL7: Sun | AM7: =AH7 -> 10.50702378 | AN7: =AJ7 -> -26.58588785 | AO7: 1.205954868
B8: Aldebaran | C8: =(4+35/60+56/3600) -> 4.598888889 | D8: =16+30.5/60 -> 16.50833333 | E8: =MOD(360-(C8+((3.075+1.336*SIN(RADIANS(C8))*TAN(RADIANS(D8)))*(OBSERVATIONS!$U$35-36526)/365)/3600)*15,360) -> 290.7099995 | F8: =D8+(20.04*COS(RADIANS(C8*15))*(OBSERVATIONS!$U$35-36526)/365)/3600 -> 16.5556295 | G8: =-17.3*SIN(RADIANS(125-0.05295*(OBSERVATIONS!$U$35-2451545)))-1.4*SIN(RADIANS(200+1.97129*(OBSERVATIONS!$U$35-2451545))) -> -15.50721343 | H8: =9.4*COS(RADIANS(125-0.05295*(OBSERVATIONS!$U$35-2451545)))+0.7*COS(RADIANS(200+1.97129*(OBSERVATIONS!$U$35-2451545))) -> -2.104130078 | I8: 290.7097179 | J8: 16.55496809 | O8: Moon | P8: 1 | Q8: =DC4 -> 312.6644562 | R8: =DC5 -> 310.2484341 | S8: =DC6 -> 324.7444055 | T8: =DB4 -> 14.09862588 | U8: =DB5 -> 14.05812653 | V8: =DB6 -> 14.30046456 | Y8: =MOD(Q8+OBSERVATIONS!$AO$13,360) -> 319.4477895 | Z8: =IF(Y8>180,360-Y8,Y8) -> 40.55221046 | AA8: =T8 -> 14.09862588 | AB8: =IF(Y8>90,IF(Y8<270,1,0),0) -> 0 | AC8: =ABS(TAN(RADIANS(ABS(OBSERVATIONS!$AO$12)))/TAN(RADIANS(ABS(Z8)))) -> 1.705127794 | AD8: =IF(AB8=0,IF(OBSERVATIONS!$AY$35="N",-AC8,AC8),IF(OBSERVATIONS!$AY$35="N",AC8,-AC8)) -> -1.705127794 | AE8: =IF(AA8>0,ABS(TAN(RADIANS(AA8))/SIN(RADIANS(Y8))),-ABS(TAN(RADIANS(AA8))/SIN(RADIANS(Y8)))) -> 0.3863119857 | AF8: =AD8+AE8 -> -1.318815808 | AG8: =ABS(DEGREES(ATAN(1/(COS(RADIANS(ABS(OBSERVATIONS!$AO$12)))*AF8)))) -> 53.29201689 | AH8: =IF(AF8<0,IF(Y8<180,180+AG8,180-AG8),IF(Y8<180,360-AG8,AG8)) -> 126.7079831 | AI8: =AA8-OBSERVATIONS!$AO$12 -> -41.47470745 | AJ8: =DEGREES(ASIN(SIN(RADIANS(OBSERVATIONS!$AO$12))*SIN(RADIANS(AA8))+COS(RADIANS(OBSERVATIONS!$AO$12))*COS(RADIANS(AA8))*COS(RADIANS(Y8)))) -> 38.13736576 | AK8: =AJ8 -> 38.13736576 | AL8: Moon | AM8: =AH8 -> 126.7079831 | AN8: =AJ8 -> 38.13736576
B9: Alioth | C9: =(12+54/60+0/3600) -> 12.9 | D9: =55+57.4/60 -> 55.95666667 | E9: =MOD(360-(C9+((3.075+1.336*SIN(RADIANS(C9))*TAN(RADIANS(D9)))*(OBSERVATIONS!$U$35-36526)/365)/3600)*15,360) -> 166.152889 | F9: =D9+(20.04*COS(RADIANS(C9*15))*(OBSERVATIONS!$U$35-36526)/365)/3600 -> 55.82843381 | G9: =-17.3*SIN(RADIANS(125-0.05295*(OBSERVATIONS!$U$35-2451545)))-1.4*SIN(RADIANS(200+1.97129*(OBSERVATIONS!$U$35-2451545))) -> -15.50721343 | H9: =9.4*COS(RADIANS(125-0.05295*(OBSERVATIONS!$U$35-2451545)))+0.7*COS(RADIANS(200+1.97129*(OBSERVATIONS!$U$35-2451545))) -> -2.104130078 | I9: 166.1539464 | J9: 55.82996952 | O9: Acamar | P9: 0 | Y9: =MOD(V$4+OBSERVATIONS!$AO$13+I4,360) -> 307.2893189 | Z9: 52.71068108 | AA9: =J4 -> -40.21729764 | AB9: 0 | AC9: =ABS(TAN(RADIANS(ABS(OBSERVATIONS!$AO$12)))/TAN(RADIANS(ABS(Z9)))) -> 1.111034963 | AD9: =IF(AB9=0,IF(OBSERVATIONS!$AY$35="N",-AC9,AC9),IF(OBSERVATIONS!$AY$35="N",AC9,-AC9)) -> -1.111034963 | AE9: -1.062842594 | AF9: -2.173877556 | AG9: =ABS(DEGREES(ATAN(1/(COS(RADIANS(ABS(OBSERVATIONS!$AO$12)))*AF9)))) -> 39.13411681 | AH9: 140.8658832 | AI9: =AA9-OBSERVATIONS!$AO$12 -> -95.79063097 | AJ9: =DEGREES(ASIN(SIN(RADIANS(OBSERVATIONS!$AO$12))*SIN(RADIANS(AA9))+COS(RADIANS(OBSERVATIONS!$AO$12))*COS(RADIANS(AA9))*COS(RADIANS(Y9)))) -> -15.72696478 | AK9: -15.72696478 | AL9: Acamar | AM9: 140.8658832 | AN9: -15.72696478
B10: Alkaid | C10: =(13+47/60+31/3600) -> 13.79194444 | D10: =49+18.7/60 -> 49.31166667 | E10: =MOD(360-(C10+((3.075+1.336*SIN(RADIANS(C10))*TAN(RADIANS(D10)))*(OBSERVATIONS!$U$35-36526)/365)/3600)*15,360) -> 152.7807337 | F10: =D10+(20.04*COS(RADIANS(C10*15))*(OBSERVATIONS!$U$35-36526)/365)/3600 -> 49.19403773 | G10: =-17.3*SIN(RADIANS(125-0.05295*(OBSERVATIONS!$U$35-2451545)))-1.4*SIN(RADIANS(200+1.97129*(OBSERVATIONS!$U$35-2451545))) -> -15.50721343 | H10: =9.4*COS(RADIANS(125-0.05295*(OBSERVATIONS!$U$35-2451545)))+0.7*COS(RADIANS(200+1.97129*(OBSERVATIONS!$U$35-2451545))) -> -2.104130078 | I10: 152.7818753 | J10: 49.19542682 | O10: Achernar | P10: 0 | Y10: =MOD(V$4+OBSERVATIONS!$AO$13+I5,360) -> 327.4263754 | Z10: 32.57362461 | AA10: =J5 -> -57.12483995 | AB10: 0 | AC10: =ABS(TAN(RADIANS(ABS(OBSERVATIONS!$AO$12)))/TAN(RADIANS(ABS(Z10)))) -> 2.283699584 | AD10: =IF(AB10=0,IF(OBSERVATIONS!$AY$35="N",-AC10,AC10),IF(OBSERVATIONS!$AY$35="N",AC10,-AC10)) -> -2.283699584 | AE10: -2.87385618 | AF10: -5.157555764 | AG10: =ABS(DEGREES(ATAN(1/(COS(RADIANS(ABS(OBSERVATIONS!$AO$12)))*AF10)))) -> 18.92969325 | AH10: 161.0703067 | AI10: =AA10-OBSERVATIONS!$AO$12 -> -112.6981733 | AJ10: =DEGREES(ASIN(SIN(RADIANS(OBSERVATIONS!$AO$12))*SIN(RADIANS(AA10))+COS(RADIANS(OBSERVATIONS!$AO$12))*COS(RADIANS(AA10))*COS(RADIANS(Y10)))) -> -25.73112393 | AK10: -25.73112393 | AL10: Achernar | AM10: 161.0703067 | AN10: -25.73112393
B11: Al Na'ir | C11: =(22+8/60+11/3600) -> 22.13638889 | D11: =-46-57.9/60 -> -46.965 | E11: =MOD(360-(C11+((3.075+1.336*SIN(RADIANS(C11))*TAN(RADIANS(D11)))*(OBSERVATIONS!$U$35-36526)/365)/3600)*15,360) -> 27.70385703 | F11: =D11+(20.04*COS(RADIANS(C11*15))*(OBSERVATIONS!$U$35-36526)/365)/3600 -> -46.84851037 | G11: =-17.3*SIN(RADIANS(125-0.05295*(OBSERVATIONS!$U$35-2451545)))-1.4*SIN(RADIANS(200+1.97129*(OBSERVATIONS!$U$35-2451545))) -> -15.50721343 | H11: =9.4*COS(RADIANS(125-0.05295*(OBSERVATIONS!$U$35-2451545)))+0.7*COS(RADIANS(200+1.97129*(OBSERVATIONS!$U$35-2451545))) -> -2.104130078 | I11: 27.70342865 | J11: -46.85024422 | O11: Acrux | P11: 0 | Y11: =MOD(V$4+OBSERVATIONS!$AO$13+I6,360) -> 165.2568559 | Z11: 165.2568559 | AA11: -63.22107995 | AB11: 1 | AC11: =ABS(TAN(RADIANS(ABS(OBSERVATIONS!$AO$12)))/TAN(RADIANS(ABS(Z11)))) -> 5.544387495 | AD11: =IF(AB11=0,IF(OBSERVATIONS!$AY$35="N",-AC11,AC11),IF(OBSERVATIONS!$AY$35="N",AC11,-AC11)) -> 5.544387495 | AE11: -7.786176184 | AF11: -2.241788689 | AG11: =ABS(DEGREES(ATAN(1/(COS(RADIANS(ABS(OBSERVATIONS!$AO$12)))*AF11)))) -> 38.27409324 | AH11: 218.2740932 | AI11: =AA11-OBSERVATIONS!$AO$12 -> -118.7944133 | AJ11: =DEGREES(ASIN(SIN(RADIANS(OBSERVATIONS!$AO$12))*SIN(RADIANS(AA11))+COS(RADIANS(OBSERVATIONS!$AO$12))*COS(RADIANS(AA11))*COS(RADIANS(Y11)))) -> -79.33274171 | AK11: -79.33274171 | AL11: Acrux | AM11: 218.2740932 | AN11: -79.33274171
B12: Alnilam | C12: =(5+36/60+13/3600) -> 5.603611111 | D12: =-1-11.7/60 -> -1.195 | E12: =MOD(360-(C12+((3.075+1.336*SIN(RADIANS(C12))*TAN(RADIANS(D12)))*(OBSERVATIONS!$U$35-36526)/365)/3600)*15,360) -> 275.6425686 | F12: =D12+(20.04*COS(RADIANS(C12*15))*(OBSERVATIONS!$U$35-36526)/365)/3600 -> -1.181339137 | G12: =-17.3*SIN(RADIANS(125-0.05295*(OBSERVATIONS!$U$35-2451545)))-1.4*SIN(RADIANS(200+1.97129*(OBSERVATIONS!$U$35-2451545))) -> -15.50721343 | H12: =9.4*COS(RADIANS(125-0.05295*(OBSERVATIONS!$U$35-2451545)))+0.7*COS(RADIANS(200+1.97129*(OBSERVATIONS!$U$35-2451545))) -> -2.104130078 | I12: 275.6428746 | J12: -1.181573712 | O12: Adhara | P12: 0 | Y12: =MOD(V$4+OBSERVATIONS!$AO$13+I7,360) -> 247.1973942 | Z12: 112.8026058 | AA12: -29.00635184 | AB12: 1 | AC12: =ABS(TAN(RADIANS(ABS(OBSERVATIONS!$AO$12)))/TAN(RADIANS(ABS(Z12)))) -> 0.613387736 | AD12: =IF(AB12=0,IF(OBSERVATIONS!$AY$35="N",-AC12,AC12),IF(OBSERVATIONS!$AY$35="N",AC12,-AC12)) -> 0.613387736 | AE12: -0.6014608388 | AF12: 0.01192689716 | AG12: =ABS(DEGREES(ATAN(1/(COS(RADIANS(ABS(OBSERVATIONS!$AO$12)))*AF12)))) -> 89.61366713 | AH12: 89.61366713 | AI12: =AA12-OBSERVATIONS!$AO$12 -> -84.57968517 | AJ12: =DEGREES(ASIN(SIN(RADIANS(OBSERVATIONS!$AO$12))*SIN(RADIANS(AA12))+COS(RADIANS(OBSERVATIONS!$AO$12))*COS(RADIANS(AA12))*COS(RADIANS(Y12)))) -> -36.27049467 | AK12: -36.27049467 | AL12: Adhara | AM12: 89.61366713 | AN12: -36.27049467
B13: Alphard | C13: =(9+27/60+36/3600) -> 9.46 | D13: =-8-39.5/60 -> -8.658333333 | E13: =MOD(360-(C13+((3.075+1.336*SIN(RADIANS(C13))*TAN(RADIANS(D13)))*(OBSERVATIONS!$U$35-36526)/365)/3600)*15,360) -> 217.7997672 | F13: =D13+(20.04*COS(RADIANS(C13*15))*(OBSERVATIONS!$U$35-36526)/365)/3600 -> -8.762111665 | G13: =-17.3*SIN(RADIANS(125-0.05295*(OBSERVATIONS!$U$35-2451545)))-1.4*SIN(RADIANS(200+1.97129*(OBSERVATIONS!$U$35-2451545))) -> -15.50721343 | H13: =9.4*COS(RADIANS(125-0.05295*(OBSERVATIONS!$U$35-2451545)))+0.7*COS(RADIANS(200+1.97129*(OBSERVATIONS!$U$35-2451545))) -> -2.104130078 | I13: 217.8007232 | J13: -8.760859279 | O13: Aldebaran | P13: 0 | Y13: =MOD(V$4+OBSERVATIONS!$AO$13+I8,360) -> 282.8624859 | Z13: 77.1375141 | AA13: 16.55496809 | AB13: 0 | AC13: =ABS(TAN(RADIANS(ABS(OBSERVATIONS!$AO$12)))/TAN(RADIANS(ABS(Z13)))) -> 0.3331517503 | AD13: =IF(AB13=0,IF(OBSERVATIONS!$AY$35="N",-AC13,AC13),IF(OBSERVATIONS!$AY$35="N",AC13,-AC13)) -> -0.3331517503 | AE13: 0.3049083615 | AF13: -0.02824338879 | AG13: =ABS(DEGREES(ATAN(1/(COS(RADIANS(ABS(OBSERVATIONS!$AO$12)))*AF13)))) -> 89.08521155 | AH13: 90.91478845 | AI13: =AA13-OBSERVATIONS!$AO$12 -> -39.01836524 | AJ13: =DEGREES(ASIN(SIN(RADIANS(OBSERVATIONS!$AO$12))*SIN(RADIANS(AA13))+COS(RADIANS(OBSERVATIONS!$AO$12))*COS(RADIANS(AA13))*COS(RADIANS(Y13)))) -> 20.8342439 | AK13: 20.8342439 | AL13: Aldebaran | AM13: 90.91478845 | AN13: 20.8342439
B14: Alphecca | C14: =(15+34/60+39/3600) -> 15.5775 | D14: =26+42.9/60 -> 26.715 | E14: =MOD(360-(C14+((3.075+1.336*SIN(RADIANS(C14))*TAN(RADIANS(D14)))*(OBSERVATIONS!$U$35-36526)/365)/3600)*15,360) -> 126.0161434 | F14: =D14+(20.04*COS(RADIANS(C14*15))*(OBSERVATIONS!$U$35-36526)/365)/3600 -> 26.63685776 | G14: =-17.3*SIN(RADIANS(125-0.05295*(OBSERVATIONS!$U$35-2451545)))-1.4*SIN(RADIANS(200+1.97129*(OBSERVATIONS!$U$35-2451545))) -> -15.50721343 | H14: =9.4*COS(RADIANS(125-0.05295*(OBSERVATIONS!$U$35-2451545)))+0.7*COS(RADIANS(200+1.97129*(OBSERVATIONS!$U$35-2451545))) -> -2.104130078 | I14: 126.0147054 | J14: 26.63771615 | O14: Alioth | P14: 0 | Y14: =MOD(V$4+OBSERVATIONS!$AO$13+I9,360) -> 158.3067143 | Z14: 158.3067143 | AA14: 55.82996952 | AB14: 1 | AC14: =ABS(TAN(RADIANS(ABS(OBSERVATIONS!$AO$12)))/TAN(RADIANS(ABS(Z14)))) -> 3.66757121 | AD14: =IF(AB14=0,IF(OBSERVATIONS!$AY$35="N",-AC14,AC14),IF(OBSERVATIONS!$AY$35="N",AC14,-AC14)) -> 3.66757121 | AE14: 3.985284796 | AF14: 7.652856006 | AG14: =ABS(DEGREES(ATAN(1/(COS(RADIANS(ABS(OBSERVATIONS!$AO$12)))*AF14)))) -> 13.01429852 | AH14: 346.9857015 | AI14: =AA14-OBSERVATIONS!$AO$12 -> 0.2566361902 | AJ14: =DEGREES(ASIN(SIN(RADIANS(OBSERVATIONS!$AO$12))*SIN(RADIANS(AA14))+COS(RADIANS(OBSERVATIONS!$AO$12))*COS(RADIANS(AA14))*COS(RADIANS(Y14)))) -> 22.7940105 | AK14: 22.7940105 | AL14: Alioth | AM14: 346.9857015 | AN14: 22.7940105
B15: Alpheratz | C15: =(0+8/60+22/3600) -> 0.1394444444 | D15: =29+5.5/60 -> 29.09166667 | E15: =MOD(360-(C15+((3.075+1.336*SIN(RADIANS(C15))*TAN(RADIANS(D15)))*(OBSERVATIONS!$U$35-36526)/365)/3600)*15,360) -> 357.6046214 | F15: =D15+(20.04*COS(RADIANS(C15*15))*(OBSERVATIONS!$U$35-36526)/365)/3600 -> 29.22345542 | G15: =-17.3*SIN(RADIANS(125-0.05295*(OBSERVATIONS!$U$35-2451545)))-1.4*SIN(RADIANS(200+1.97129*(OBSERVATIONS!$U$35-2451545))) -> -15.50721343 | H15: =9.4*COS(RADIANS(125-0.05295*(OBSERVATIONS!$U$35-2451545)))+0.7*COS(RADIANS(200+1.97129*(OBSERVATIONS!$U$35-2451545))) -> -2.104130078 | I15: 357.6051664 | J15: 29.22174159 | O15: Alkaid | P15: 0 | Y15: =MOD(V$4+OBSERVATIONS!$AO$13+I10,360) -> 144.9346433 | Z15: 144.9346433 | AA15: 49.19542682 | AB15: 1 | AC15: =ABS(TAN(RADIANS(ABS(OBSERVATIONS!$AO$12)))/TAN(RADIANS(ABS(Z15)))) -> 2.07862602 | AD15: =IF(AB15=0,IF(OBSERVATIONS!$AY$35="N",-AC15,AC15),IF(OBSERVATIONS!$AY$35="N",AC15,-AC15)) -> 2.07862602 | AE15: 2.016193442 | AF15: 4.094819462 | AG15: =ABS(DEGREES(ATAN(1/(COS(RADIANS(ABS(OBSERVATIONS!$AO$12)))*AF15)))) -> 23.36258447 | AH15: 336.6374155 | AI15: =AA15-OBSERVATIONS!$AO$12 -> -6.377906518 | AJ15: =DEGREES(ASIN(SIN(RADIANS(OBSERVATIONS!$AO$12))*SIN(RADIANS(AA15))+COS(RADIANS(OBSERVATIONS!$AO$12))*COS(RADIANS(AA15))*COS(RADIANS(Y15)))) -> 18.78234996 | AK15: 18.78234996 | AL15: Alkaid | AM15: 336.6374155 | AN15: 18.78234996
B16: Altair | C16: =(19+50/60+45/3600) -> 19.84583333 | D16: =8+52.1/60 -> 8.868333333 | E16: =MOD(360-(C16+((3.075+1.336*SIN(RADIANS(C16))*TAN(RADIANS(D16)))*(OBSERVATIONS!$U$35-36526)/365)/3600)*15,360) -> 62.00198103 | F16: =D16+(20.04*COS(RADIANS(C16*15))*(OBSERVATIONS!$U$35-36526)/365)/3600 -> 8.929609656 | G16: =-17.3*SIN(RADIANS(125-0.05295*(OBSERVATIONS!$U$35-2451545)))-1.4*SIN(RADIANS(200+1.97129*(OBSERVATIONS!$U$35-2451545))) -> -15.50721343 | H16: =9.4*COS(RADIANS(125-0.05295*(OBSERVATIONS!$U$35-2451545)))+0.7*COS(RADIANS(200+1.97129*(OBSERVATIONS!$U$35-2451545))) -> -2.104130078 | I16: 62.00103637 | J16: 8.928615033 | O16: Al Na'ir | P16: 0 | Y16: =MOD(V$4+OBSERVATIONS!$AO$13+I11,360) -> 19.85619661 | Z16: 19.85619661 | AA16: -46.85024422 | AB16: 0 | AC16: =ABS(TAN(RADIANS(ABS(OBSERVATIONS!$AO$12)))/TAN(RADIANS(ABS(Z16)))) -> 4.040107533 | AD16: =IF(AB16=0,IF(OBSERVATIONS!$AY$35="N",-AC16,AC16),IF(OBSERVATIONS!$AY$35="N",AC16,-AC16)) -> -4.040107533 | AE16: -3.140679212 | AF16: -7.180786745 | AG16: =ABS(DEGREES(ATAN(1/(COS(RADIANS(ABS(OBSERVATIONS!$AO$12)))*AF16)))) -> 13.8379378 | AH16: 193.8379378 | AI16: =AA16-OBSERVATIONS!$AO$12 -> -102.4235776 | AJ16: =DEGREES(ASIN(SIN(RADIANS(OBSERVATIONS!$AO$12))*SIN(RADIANS(AA16))+COS(RADIANS(OBSERVATIONS!$AO$12))*COS(RADIANS(AA16))*COS(RADIANS(Y16)))) -> -13.77585387 | AK16: -13.77585387 | AL16: Al Na'ir | AM16: 193.8379378 | AN16: -13.77585387
B17: Ankaa | C17: =(0+26/60+16/3600) -> 0.4377777778 | D17: =-42-18.7/60 -> -42.31166667 | E17: =MOD(360-(C17+((3.075+1.336*SIN(RADIANS(C17))*TAN(RADIANS(D17)))*(OBSERVATIONS!$U$35-36526)/365)/3600)*15,360) -> 353.1307172 | F17: =D17+(20.04*COS(RADIANS(C17*15))*(OBSERVATIONS!$U$35-36526)/365)/3600 -> -42.18065523 | G17: =-17.3*SIN(RADIANS(125-0.05295*(OBSERVATIONS!$U$35-2451545)))-1.4*SIN(RADIANS(200+1.97129*(OBSERVATIONS!$U$35-2451545))) -> -15.50721343 | H17: =9.4*COS(RADIANS(125-0.05295*(OBSERVATIONS!$U$35-2451545)))+0.7*COS(RADIANS(200+1.97129*(OBSERVATIONS!$U$35-2451545))) -> -2.104130078 | I17: 353.1306219 | J17: -42.182362 | O17: Alnilam | P17: 0 | Y17: =MOD(V$4+OBSERVATIONS!$AO$13+I12,360) -> 267.7956425 | Z17: 92.20435745 | AA17: -1.181573712 | AB17: 1 | AC17: =ABS(TAN(RADIANS(ABS(OBSERVATIONS!$AO$12)))/TAN(RADIANS(ABS(Z17)))) -> 0.05616048163 | AD17: =IF(AB17=0,IF(OBSERVATIONS!$AY$35="N",-AC17,AC17),IF(OBSERVATIONS!$AY$35="N",AC17,-AC17)) -> 0.05616048163 | AE17: -0.0206405497 | AF17: 0.03551993193 | AG17: =ABS(DEGREES(ATAN(1/(COS(RADIANS(ABS(OBSERVATIONS!$AO$12)))*AF17)))) -> 88.84958502 | AH17: 88.84958502 | AI17: =AA17-OBSERVATIONS!$AO$12 -> -56.75490705 | AJ17: =DEGREES(ASIN(SIN(RADIANS(OBSERVATIONS!$AO$12))*SIN(RADIANS(AA17))+COS(RADIANS(OBSERVATIONS!$AO$12))*COS(RADIANS(AA17))*COS(RADIANS(Y17)))) -> -2.220771822 | AK17: -2.220771822 | AL17: Alnilam | AM17: 88.84958502 | AN17: -2.220771822
B18: Antares | C18: =(16+29/60+22/3600) -> 16.48944444 | D18: =-26-25.7/60 -> -26.42833333 | E18: =MOD(360-(C18+((3.075+1.336*SIN(RADIANS(C18))*TAN(RADIANS(D18)))*(OBSERVATIONS!$U$35-36526)/365)/3600)*15,360) -> 112.3734043 | F18: =D18+(20.04*COS(RADIANS(C18*15))*(OBSERVATIONS!$U$35-36526)/365)/3600 -> -26.47913683 | G18: =-17.3*SIN(RADIANS(125-0.05295*(OBSERVATIONS!$U$35-2451545)))-1.4*SIN(RADIANS(200+1.97129*(OBSERVATIONS!$U$35-2451545))) -> -15.50721343 | H18: =9.4*COS(RADIANS(125-0.05295*(OBSERVATIONS!$U$35-2451545)))+0.7*COS(RADIANS(200+1.97129*(OBSERVATIONS!$U$35-2451545))) -> -2.104130078 | I18: 112.3752092 | J18: -26.47864261 | O18: Alphard | P18: 0 | Y18: =MOD(V$4+OBSERVATIONS!$AO$13+I13,360) -> 209.9534911 | Z18: 150.0465089 | AA18: -8.760859279 | AB18: 1 | AC18: =ABS(TAN(RADIANS(ABS(OBSERVATIONS!$AO$12)))/TAN(RADIANS(ABS(Z18)))) -> 2.531816508 | AD18: =IF(AB18=0,IF(OBSERVATIONS!$AY$35="N",-AC18,AC18),IF(OBSERVATIONS!$AY$35="N",AC18,-AC18)) -> 2.531816508 | AE18: -0.3086515479 | AF18: 2.22316496 | AG18: =ABS(DEGREES(ATAN(1/(COS(RADIANS(ABS(OBSERVATIONS!$AO$12)))*AF18)))) -> 38.50674727 | AH18: 38.50674727 | AI18: =AA18-OBSERVATIONS!$AO$12 -> -64.33419261 | AJ18: =DEGREES(ASIN(SIN(RADIANS(OBSERVATIONS!$AO$12))*SIN(RADIANS(AA18))+COS(RADIANS(OBSERVATIONS!$AO$12))*COS(RADIANS(AA18))*COS(RADIANS(Y18)))) -> -37.57186601 | AK18: -37.57186601 | AL18: Alphard | AM18: 38.50674727 | AN18: -37.57186601
B19: Arcturus | C19: =(14+15/60+39/3600) -> 14.26083333 | D19: =19+11.2/60 -> 19.18666667 | E19: =MOD(360-(C19+((3.075+1.336*SIN(RADIANS(C19))*TAN(RADIANS(D19)))*(OBSERVATIONS!$U$35-36526)/365)/3600)*15,360) -> 145.7726623 | F19: =D19+(20.04*COS(RADIANS(C19*15))*(OBSERVATIONS!$U$35-36526)/365)/3600 -> 19.0772235 | G19: =-17.3*SIN(RADIANS(125-0.05295*(OBSERVATIONS!$U$35-2451545)))-1.4*SIN(RADIANS(200+1.97129*(OBSERVATIONS!$U$35-2451545))) -> -15.50721343 | H19: =9.4*COS(RADIANS(125-0.05295*(OBSERVATIONS!$U$35-2451545)))+0.7*COS(RADIANS(200+1.97129*(OBSERVATIONS!$U$35-2451545))) -> -2.104130078 | I19: 145.7710976 | J19: 19.07850158 | O19: Alphecca | P19: 0 | Y19: =MOD(V$4+OBSERVATIONS!$AO$13+I14,360) -> 118.1674734 | Z19: 118.1674734 | AA19: 26.63771615 | AB19: 1 | AC19: =ABS(TAN(RADIANS(ABS(OBSERVATIONS!$AO$12)))/TAN(RADIANS(ABS(Z19)))) -> 0.7812460784 | AD19: =IF(AB19=0,IF(OBSERVATIONS!$AY$35="N",-AC19,AC19),IF(OBSERVATIONS!$AY$35="N",AC19,-AC19)) -> 0.7812460784 | AE19: 0.5689683337 | AF19: 1.350214412 | AG19: =ABS(DEGREES(ATAN(1/(COS(RADIANS(ABS(OBSERVATIONS!$AO$12)))*AF19)))) -> 52.643876 | AH19: 307.356124 | AI19: =AA19-OBSERVATIONS!$AO$12 -> -28.93561719 | AJ19: =DEGREES(ASIN(SIN(RADIANS(OBSERVATIONS!$AO$12))*SIN(RADIANS(AA19))+COS(RADIANS(OBSERVATIONS!$AO$12))*COS(RADIANS(AA19))*COS(RADIANS(Y19)))) -> 7.543090126 | AK19: 7.543090126 | AL19: Alphecca | AM19: 307.356124 | AN19: 7.543090126
B20: Atria | C20: =(16+48/60+35/3600) -> 16.80972222 | D20: =-69-1.4/60 -> -69.02333333 | E20: =MOD(360-(C20+((3.075+1.336*SIN(RADIANS(C20))*TAN(RADIANS(D20)))*(OBSERVATIONS!$U$35-36526)/365)/3600)*15,360) -> 107.6501071 | F20: =D20+(20.04*COS(RADIANS(C20*15))*(OBSERVATIONS!$U$35-36526)/365)/3600 -> -69.06376609 | G20: =-17.3*SIN(RADIANS(125-0.05295*(OBSERVATIONS!$U$35-2451545)))-1.4*SIN(RADIANS(200+1.97129*(OBSERVATIONS!$U$35-2451545))) -> -15.50721343 | H20: =9.4*COS(RADIANS(125-0.05295*(OBSERVATIONS!$U$35-2451545)))+0.7*COS(RADIANS(200+1.97129*(OBSERVATIONS!$U$35-2451545))) -> -2.104130078 | I20: 107.6493117 | J20: -69.06340975 | O20: Alpheratz | P20: 0 | Y20: =MOD(V$4+OBSERVATIONS!$AO$13+I15,360) -> 349.7579344 | Z20: 10.24206563 | AA20: 29.22174159 | AB20: 0 | AC20: =ABS(TAN(RADIANS(ABS(OBSERVATIONS!$AO$12)))/TAN(RADIANS(ABS(Z20)))) -> 8.074794752 | AD20: =IF(AB20=0,IF(OBSERVATIONS!$AY$35="N",-AC20,AC20),IF(OBSERVATIONS!$AY$35="N",AC20,-AC20)) -> -8.074794752 | AE20: 3.14598606 | AF20: -4.928808692 | AG20: =ABS(DEGREES(ATAN(1/(COS(RADIANS(ABS(OBSERVATIONS!$AO$12)))*AF20)))) -> 19.74165475 | AH20: 160.2583453 | AI20: =AA20-OBSERVATIONS!$AO$12 -> -26.35159174 | AJ20: =DEGREES(ASIN(SIN(RADIANS(OBSERVATIONS!$AO$12))*SIN(RADIANS(AA20))+COS(RADIANS(OBSERVATIONS!$AO$12))*COS(RADIANS(AA20))*COS(RADIANS(Y20)))) -> 62.65102889 | AK20: 62.65102889 | AL20: Alpheratz | AM20: 160.2583453 | AN20: 62.65102889
B21: Avior | C21: =(8+22/60+33/3600) -> 8.375833333 | D21: =-59-30.5/60 -> -59.50833333 | E21: =MOD(360-(C21+((3.075+1.336*SIN(RADIANS(C21))*TAN(RADIANS(D21)))*(OBSERVATIONS!$U$35-36526)/365)/3600)*15,360) -> 234.0915894 | F21: =D21+(20.04*COS(RADIANS(C21*15))*(OBSERVATIONS!$U$35-36526)/365)/3600 -> -59.58517191 | G21: =-17.3*SIN(RADIANS(125-0.05295*(OBSERVATIONS!$U$35-2451545)))-1.4*SIN(RADIANS(200+1.97129*(OBSERVATIONS!$U$35-2451545))) -> -15.50721343 | H21: =9.4*COS(RADIANS(125-0.05295*(OBSERVATIONS!$U$35-2451545)))+0.7*COS(RADIANS(200+1.97129*(OBSERVATIONS!$U$35-2451545))) -> -2.104130078 | I21: 234.0914803 | J21: -59.58425864 | O21: Altair | P21: 0 | Y21: =MOD(V$4+OBSERVATIONS!$AO$13+I16,360) -> 54.15380433 | Z21: 54.15380433 | AA21: 8.928615033 | AB21: 0 | AC21: =ABS(TAN(RADIANS(ABS(OBSERVATIONS!$AO$12)))/TAN(RADIANS(ABS(Z21)))) -> 1.054057604 | AD21: =IF(AB21=0,IF(OBSERVATIONS!$AY$35="N",-AC21,AC21),IF(OBSERVATIONS!$AY$35="N",AC21,-AC21)) -> -1.054057604 | AE21: 0.1938182828 | AF21: -0.8602393214 | AG21: =ABS(DEGREES(ATAN(1/(COS(RADIANS(ABS(OBSERVATIONS!$AO$12)))*AF21)))) -> 64.06462459 | AH21: 244.0646246 | AI21: =AA21-OBSERVATIONS!$AO$12 -> -46.6447183 | AJ21: =DEGREES(ASIN(SIN(RADIANS(OBSERVATIONS!$AO$12))*SIN(RADIANS(AA21))+COS(RADIANS(OBSERVATIONS!$AO$12))*COS(RADIANS(AA21))*COS(RADIANS(Y21)))) -> 27.07034361 | AK21: 27.07034361 | AL21: Altair | AM21: 244.0646246 | AN21: 27.07034361
B22: Bellatrix | C22: =(5+25/60+8/3600) -> 5.418888889 | D22: =6+20.9/60 -> 6.348333333 | E22: =MOD(360-(C22+((3.075+1.336*SIN(RADIANS(C22))*TAN(RADIANS(D22)))*(OBSERVATIONS!$U$35-36526)/365)/3600)*15,360) -> 278.4117477 | F22: =D22+(20.04*COS(RADIANS(C22*15))*(OBSERVATIONS!$U$35-36526)/365)/3600 -> 6.368319018 | G22: =-17.3*SIN(RADIANS(125-0.05295*(OBSERVATIONS!$U$35-2451545)))-1.4*SIN(RADIANS(200+1.97129*(OBSERVATIONS!$U$35-2451545))) -> -15.50721343 | H22: =9.4*COS(RADIANS(125-0.05295*(OBSERVATIONS!$U$35-2451545)))+0.7*COS(RADIANS(200+1.97129*(OBSERVATIONS!$U$35-2451545))) -> -2.104130078 | I22: 278.4117431 | J22: 6.368004137 | O22: Ankaa | P22: 0 | Y22: =MOD(V$4+OBSERVATIONS!$AO$13+I17,360) -> 345.2833899 | Z22: 14.71661011 | AA22: -42.182362 | AB22: 0 | AC22: =ABS(TAN(RADIANS(ABS(OBSERVATIONS!$AO$12)))/TAN(RADIANS(ABS(Z22)))) -> 5.554838865 | AD22: =IF(AB22=0,IF(OBSERVATIONS!$AY$35="N",-AC22,AC22),IF(OBSERVATIONS!$AY$35="N",AC22,-AC22)) -> -5.554838865 | AE22: -3.567114401 | AF22: -9.121953266 | AG22: =ABS(DEGREES(ATAN(1/(COS(RADIANS(ABS(OBSERVATIONS!$AO$12)))*AF22)))) -> 10.97387947 | AH22: 169.0261205 | AI22: =AA22-OBSERVATIONS!$AO$12 -> -97.75569533 | AJ22: =DEGREES(ASIN(SIN(RADIANS(OBSERVATIONS!$AO$12))*SIN(RADIANS(AA22))+COS(RADIANS(OBSERVATIONS!$AO$12))*COS(RADIANS(AA22))*COS(RADIANS(Y22)))) -> -8.551181649 | AK22: -8.551181649 | AL22: Ankaa | AM22: 169.0261205 | AN22: -8.551181649
B23: Betelgeuse | C23: =(5+55/60+11/3600) -> 5.919722222 | D23: =7+24.3/60 -> 7.405 | E23: =MOD(360-(C23+((3.075+1.336*SIN(RADIANS(C23))*TAN(RADIANS(D23)))*(OBSERVATIONS!$U$35-36526)/365)/3600)*15,360) -> 270.8988656 | F23: =D23+(20.04*COS(RADIANS(C23*15))*(OBSERVATIONS!$U$35-36526)/365)/3600 -> 7.407771404 | G23: =-17.3*SIN(RADIANS(125-0.05295*(OBSERVATIONS!$U$35-2451545)))-1.4*SIN(RADIANS(200+1.97129*(OBSERVATIONS!$U$35-2451545))) -> -15.50721343 | H23: =9.4*COS(RADIANS(125-0.05295*(OBSERVATIONS!$U$35-2451545)))+0.7*COS(RADIANS(200+1.97129*(OBSERVATIONS!$U$35-2451545))) -> -2.104130078 | I23: 270.8987792 | J23: 7.407675113 | O23: Antares | P23: 0 | Y23: =MOD(V$4+OBSERVATIONS!$AO$13+I18,360) -> 104.5279772 | Z23: 104.5279772 | AA23: -26.47864261 | AB23: 1 | AC23: =ABS(TAN(RADIANS(ABS(OBSERVATIONS!$AO$12)))/TAN(RADIANS(ABS(Z23)))) -> 0.3780847797 | AD23: =IF(AB23=0,IF(OBSERVATIONS!$AY$35="N",-AC23,AC23),IF(OBSERVATIONS!$AY$35="N",AC23,-AC23)) -> 0.3780847797 | AE23: -0.5145694994 | AF23: -0.1364847197 | AG23: =ABS(DEGREES(ATAN(1/(COS(RADIANS(ABS(OBSERVATIONS!$AO$12)))*AF23)))) -> 85.58769933 | AH23: 265.5876993 | AI23: =AA23-OBSERVATIONS!$AO$12 -> -82.05197594 | AJ23: =DEGREES(ASIN(SIN(RADIANS(OBSERVATIONS!$AO$12))*SIN(RADIANS(AA23))+COS(RADIANS(OBSERVATIONS!$AO$12))*COS(RADIANS(AA23))*COS(RADIANS(Y23)))) -> -29.65091245 | AK23: -29.65091245 | AL23: Antares | AM23: 265.5876993 | AN23: -29.65091245
B24: Canopus | C24: =(6+23/60+59/3600) -> 6.399722222 | D24: =-52-41.9/60 -> -52.69833333 | E24: =MOD(360-(C24+((3.075+1.336*SIN(RADIANS(C24))*TAN(RADIANS(D24)))*(OBSERVATIONS!$U$35-36526)/365)/3600)*15,360) -> 263.719928 | F24: =D24+(20.04*COS(RADIANS(C24*15))*(OBSERVATIONS!$U$35-36526)/365)/3600 -> -52.71210866 | G24: =-17.3*SIN(RADIANS(125-0.05295*(OBSERVATIONS!$U$35-2451545)))-1.4*SIN(RADIANS(200+1.97129*(OBSERVATIONS!$U$35-2451545))) -> -15.50721343 | H24: =9.4*COS(RADIANS(125-0.05295*(OBSERVATIONS!$U$35-2451545)))+0.7*COS(RADIANS(200+1.97129*(OBSERVATIONS!$U$35-2451545))) -> -2.104130078 | I24: 263.7216492 | J24: -52.71199481 | O24: Arcturus | P24: 0 | Y24: =MOD(V$4+OBSERVATIONS!$AO$13+I19,360) -> 137.9238656 | Z24: 137.9238656 | AA24: 19.07850158 | AB24: 1 | AC24: =ABS(TAN(RADIANS(ABS(OBSERVATIONS!$AO$12)))/TAN(RADIANS(ABS(Z24)))) -> 1.616066658 | AD24: =IF(AB24=0,IF(OBSERVATIONS!$AY$35="N",-AC24,AC24),IF(OBSERVATIONS!$AY$35="N",AC24,-AC24)) -> 1.616066658 | AE24: 0.5161197689 | AF24: 2.132186427 | AG24: =ABS(DEGREES(ATAN(1/(COS(RADIANS(ABS(OBSERVATIONS!$AO$12)))*AF24)))) -> 39.67831884 | AH24: 320.3216812 | AI24: =AA24-OBSERVATIONS!$AO$12 -> -36.49483176 | AJ24: =DEGREES(ASIN(SIN(RADIANS(OBSERVATIONS!$AO$12))*SIN(RADIANS(AA24))+COS(RADIANS(OBSERVATIONS!$AO$12))*COS(RADIANS(AA24))*COS(RADIANS(Y24)))) -> -7.294615794 | AK24: -7.294615794 | AL24: Arcturus | AM24: 320.3216812 | AN24: -7.294615794
B25: Capella | C25: =(5+16/60+42/3600) -> 5.278333333 | D25: =45+59.9/60 -> 45.99833333 | E25: =MOD(360-(C25+((3.075+1.336*SIN(RADIANS(C25))*TAN(RADIANS(D25)))*(OBSERVATIONS!$U$35-36526)/365)/3600)*15,360) -> 280.5089044 | F25: =D25+(20.04*COS(RADIANS(C25*15))*(OBSERVATIONS!$U$35-36526)/365)/3600 -> 46.02310107 | G25: =-17.3*SIN(RADIANS(125-0.05295*(OBSERVATIONS!$U$35-2451545)))-1.4*SIN(RADIANS(200+1.97129*(OBSERVATIONS!$U$35-2451545))) -> -15.50721343 | H25: =9.4*COS(RADIANS(125-0.05295*(OBSERVATIONS!$U$35-2451545)))+0.7*COS(RADIANS(200+1.97129*(OBSERVATIONS!$U$35-2451545))) -> -2.104130078 | I25: 280.5075762 | J25: 46.02272548 | O25: Atria | P25: 0 | Y25: =MOD(V$4+OBSERVATIONS!$AO$13+I20,360) -> 99.80207966 | Z25: 99.80207966 | AA25: -69.06340975 | AB25: 1 | AC25: =ABS(TAN(RADIANS(ABS(OBSERVATIONS!$AO$12)))/TAN(RADIANS(ABS(Z25)))) -> 0.2520686359 | AD25: =IF(AB25=0,IF(OBSERVATIONS!$AY$35="N",-AC25,AC25),IF(OBSERVATIONS!$AY$35="N",AC25,-AC25)) -> 0.2520686359 | AE25: -2.652452608 | AF25: -2.400383972 | AG25: =ABS(DEGREES(ATAN(1/(COS(RADIANS(ABS(OBSERVATIONS!$AO$12)))*AF25)))) -> 36.38603449 | AH25: 216.3860345 | AI25: =AA25-OBSERVATIONS!$AO$12 -> -124.6367431 | AJ25: =DEGREES(ASIN(SIN(RADIANS(OBSERVATIONS!$AO$12))*SIN(RADIANS(AA25))+COS(RADIANS(OBSERVATIONS!$AO$12))*COS(RADIANS(AA25))*COS(RADIANS(Y25)))) -> -53.5893777 | AK25: -53.5893777 | AL25: Atria | AM25: 216.3860345 | AN25: -53.5893777
B26: Deneb | C26: =(20+41/60+24/3600) -> 20.69 | D26: =45+16.9/60 -> 45.28166667 | E26: =MOD(360-(C26+((3.075+1.336*SIN(RADIANS(C26))*TAN(RADIANS(D26)))*(OBSERVATIONS!$U$35-36526)/365)/3600)*15,360) -> 49.2994127 | F26: =D26+(20.04*COS(RADIANS(C26*15))*(OBSERVATIONS!$U$35-36526)/365)/3600 -> 45.36705086 | G26: =-17.3*SIN(RADIANS(125-0.05295*(OBSERVATIONS!$U$35-2451545)))-1.4*SIN(RADIANS(200+1.97129*(OBSERVATIONS!$U$35-2451545))) -> -15.50721343 | H26: =9.4*COS(RADIANS(125-0.05295*(OBSERVATIONS!$U$35-2451545)))+0.7*COS(RADIANS(200+1.97129*(OBSERVATIONS!$U$35-2451545))) -> -2.104130078 | I26: 49.3012944 | J26: 45.36573491 | O26: Avior | P26: 0 | Y26: =MOD(V$4+OBSERVATIONS!$AO$13+I21,360) -> 226.2442483 | Z26: 133.7557517 | AA26: -59.58425864 | AB26: 1 | AC26: =ABS(TAN(RADIANS(ABS(OBSERVATIONS!$AO$12)))/TAN(RADIANS(ABS(Z26)))) -> 1.396975122 | AD26: =IF(AB26=0,IF(OBSERVATIONS!$AY$35="N",-AC26,AC26),IF(OBSERVATIONS!$AY$35="N",AC26,-AC26)) -> 1.396975122 | AE26: -2.358298782 | AF26: -0.9613236601 | AG26: =ABS(DEGREES(ATAN(1/(COS(RADIANS(ABS(OBSERVATIONS!$AO$12)))*AF26)))) -> 61.47657176 | AH26: 118.5234282 | AI26: =AA26-OBSERVATIONS!$AO$12 -> -115.157592 | AJ26: =DEGREES(ASIN(SIN(RADIANS(OBSERVATIONS!$AO$12))*SIN(RADIANS(AA26))+COS(RADIANS(OBSERVATIONS!$AO$12))*COS(RADIANS(AA26))*COS(RADIANS(Y26)))) -> -65.40551252 | AK26: -65.40551252 | AL26: Avior | AM26: 118.5234282 | AN26: -65.40551252
B27: Denebola | C27: =(11+49/60+3/3600) -> 11.8175 | D27: =14+34.3/60 -> 14.57166667 | E27: =MOD(360-(C27+((3.075+1.336*SIN(RADIANS(C27))*TAN(RADIANS(D27)))*(OBSERVATIONS!$U$35-36526)/365)/3600)*15,360) -> 182.4269459 | F27: =D27+(20.04*COS(RADIANS(C27*15))*(OBSERVATIONS!$U$35-36526)/365)/3600 -> 14.43994054 | G27: =-17.3*SIN(RADIANS(125-0.05295*(OBSERVATIONS!$U$35-2451545)))-1.4*SIN(RADIANS(200+1.97129*(OBSERVATIONS!$U$35-2451545))) -> -15.50721343 | H27: =9.4*COS(RADIANS(125-0.05295*(OBSERVATIONS!$U$35-2451545)))+0.7*COS(RADIANS(200+1.97129*(OBSERVATIONS!$U$35-2451545))) -> -2.104130078 | I27: 182.4258147 | J27: 14.44153243 | O27: Bellatrix | P27: 0 | Y27: =MOD(V$4+OBSERVATIONS!$AO$13+I22,360) -> 270.5645111 | Z27: 89.43548894 | AA27: 6.368004137 | AB27: 0 | AC27: =ABS(TAN(RADIANS(ABS(OBSERVATIONS!$AO$12)))/TAN(RADIANS(ABS(Z27)))) -> 0.01437543365 | AD27: =IF(AB27=0,IF(OBSERVATIONS!$AY$35="N",-AC27,AC27),IF(OBSERVATIONS!$AY$35="N",AC27,-AC27)) -> -0.01437543365 | AE27: 0.1116079653 | AF27: 0.09723253164 | AG27: =ABS(DEGREES(ATAN(1/(COS(RADIANS(ABS(OBSERVATIONS!$AO$12)))*AF27)))) -> 86.8535887 | AH27: 86.8535887 | AI27: =AA27-OBSERVATIONS!$AO$12 -> -49.2053292 | AJ27: =DEGREES(ASIN(SIN(RADIANS(OBSERVATIONS!$AO$12))*SIN(RADIANS(AA27))+COS(RADIANS(OBSERVATIONS!$AO$12))*COS(RADIANS(AA27))*COS(RADIANS(Y27)))) -> 5.567775154 | AK27: 5.567775154 | AL27: Bellatrix | AM27: 86.8535887 | AN27: 5.567775154
B28: Diphda | C28: =(0+43/60+34/3600) -> 0.7261111111 | D28: =-17-59.4/60 -> -17.99 | E28: =MOD(360-(C28+((3.075+1.336*SIN(RADIANS(C28))*TAN(RADIANS(D28)))*(OBSERVATIONS!$U$35-36526)/365)/3600)*15,360) -> 348.8053426 | F28: =D28+(20.04*COS(RADIANS(C28*15))*(OBSERVATIONS!$U$35-36526)/365)/3600 -> -17.86049898 | G28: =-17.3*SIN(RADIANS(125-0.05295*(OBSERVATIONS!$U$35-2451545)))-1.4*SIN(RADIANS(200+1.97129*(OBSERVATIONS!$U$35-2451545))) -> -15.50721343 | H28: =9.4*COS(RADIANS(125-0.05295*(OBSERVATIONS!$U$35-2451545)))+0.7*COS(RADIANS(200+1.97129*(OBSERVATIONS!$U$35-2451545))) -> -2.104130078 | I28: 348.8055168 | J28: -17.86218906 | O28: Betelgeuse | P28: 0 | Y28: =MOD(V$4+OBSERVATIONS!$AO$13+I23,360) -> 263.0515472 | Z28: 96.94845279 | AA28: 7.407675113 | AB28: 1 | AC28: =ABS(TAN(RADIANS(ABS(OBSERVATIONS!$AO$12)))/TAN(RADIANS(ABS(Z28)))) -> 0.1778111487 | AD28: =IF(AB28=0,IF(OBSERVATIONS!$AY$35="N",-AC28,AC28),IF(OBSERVATIONS!$AY$35="N",AC28,-AC28)) -> 0.1778111487 | AE28: 0.1309755054 | AF28: 0.3087866541 | AG28: =ABS(DEGREES(ATAN(1/(COS(RADIANS(ABS(OBSERVATIONS!$AO$12)))*AF28)))) -> 80.09750377 | AH28: 80.09750377 | AI28: =AA28-OBSERVATIONS!$AO$12 -> -48.16565822 | AJ28: =DEGREES(ASIN(SIN(RADIANS(OBSERVATIONS!$AO$12))*SIN(RADIANS(AA28))+COS(RADIANS(OBSERVATIONS!$AO$12))*COS(RADIANS(AA28))*COS(RADIANS(Y28)))) -> 2.207775532 | AK28: 2.207775532 | AL28: Betelgeuse | AM28: 80.09750377 | AN28: 2.207775532
B29: Dubhe | C29: =(11+3/60+43/3600) -> 11.06194444 | D29: =61+44.8/60 -> 61.74666667 | E29: =MOD(360-(C29+((3.075+1.336*SIN(RADIANS(C29))*TAN(RADIANS(D29)))*(OBSERVATIONS!$U$35-36526)/365)/3600)*15,360) -> 193.720215 | F29: =D29+(20.04*COS(RADIANS(C29*15))*(OBSERVATIONS!$U$35-36526)/365)/3600 -> 61.61874688 | G29: =-17.3*SIN(RADIANS(125-0.05295*(OBSERVATIONS!$U$35-2451545)))-1.4*SIN(RADIANS(200+1.97129*(OBSERVATIONS!$U$35-2451545))) -> -15.50721343 | H29: =9.4*COS(RADIANS(125-0.05295*(OBSERVATIONS!$U$35-2451545)))+0.7*COS(RADIANS(200+1.97129*(OBSERVATIONS!$U$35-2451545))) -> -2.104130078 | I29: 193.7207509 | J29: 61.62029687 | O29: Canopus | P29: 0 | Y29: =MOD(V$4+OBSERVATIONS!$AO$13+I24,360) -> 255.8744171 | Z29: 104.1255829 | AA29: -52.71199481 | AB29: 1 | AC29: =ABS(TAN(RADIANS(ABS(OBSERVATIONS!$AO$12)))/TAN(RADIANS(ABS(Z29)))) -> 0.3671696134 | AD29: =IF(AB29=0,IF(OBSERVATIONS!$AY$35="N",-AC29,AC29),IF(OBSERVATIONS!$AY$35="N",AC29,-AC29)) -> 0.3671696134 | AE29: -1.354204777 | AF29: -0.9870351641 | AG29: =ABS(DEGREES(ATAN(1/(COS(RADIANS(ABS(OBSERVATIONS!$AO$12)))*AF29)))) -> 60.83755281 | AH29: 119.1624472 | AI29: =AA29-OBSERVATIONS!$AO$12 -> -108.2853281 | AJ29: =DEGREES(ASIN(SIN(RADIANS(OBSERVATIONS!$AO$12))*SIN(RADIANS(AA29))+COS(RADIANS(OBSERVATIONS!$AO$12))*COS(RADIANS(AA29))*COS(RADIANS(Y29)))) -> -47.71763719 | AK29: -47.71763719 | AL29: Canopus | AM29: 119.1624472 | AN29: -47.71763719
B30: Elnath | C30: =(5+26/60+18/3600) -> 5.438333333 | D30: =28+36.4/60 -> 28.60666667 | E30: =MOD(360-(C30+((3.075+1.336*SIN(RADIANS(C30))*TAN(RADIANS(D30)))*(OBSERVATIONS!$U$35-36526)/365)/3600)*15,360) -> 278.1146503 | F30: =D30+(20.04*COS(RADIANS(C30*15))*(OBSERVATIONS!$U$35-36526)/365)/3600 -> 28.62598853 | G30: =-17.3*SIN(RADIANS(125-0.05295*(OBSERVATIONS!$U$35-2451545)))-1.4*SIN(RADIANS(200+1.97129*(OBSERVATIONS!$U$35-2451545))) -> -15.50721343 | H30: =9.4*COS(RADIANS(125-0.05295*(OBSERVATIONS!$U$35-2451545)))+0.7*COS(RADIANS(200+1.97129*(OBSERVATIONS!$U$35-2451545))) -> -2.104130078 | I30: 278.1137511 | J30: 28.62568207 | O30: Capella | P30: 0 | Y30: =MOD(V$4+OBSERVATIONS!$AO$13+I25,360) -> 272.6603441 | Z30: 87.33965588 | AA30: 46.02272548 | AB30: 0 | AC30: =ABS(TAN(RADIANS(ABS(OBSERVATIONS!$AO$12)))/TAN(RADIANS(ABS(Z30)))) -> 0.06779294845 | AD30: =IF(AB30=0,IF(OBSERVATIONS!$AY$35="N",-AC30,AC30),IF(OBSERVATIONS!$AY$35="N",AC30,-AC30)) -> -0.06779294845 | AE30: 1.037470751 | AF30: 0.969677803 | AG30: =ABS(DEGREES(ATAN(1/(COS(RADIANS(ABS(OBSERVATIONS!$AO$12)))*AF30)))) -> 61.26808182 | AH30: 61.26808182 | AI30: =AA30-OBSERVATIONS!$AO$12 -> -9.550607855 | AJ30: =DEGREES(ASIN(SIN(RADIANS(OBSERVATIONS!$AO$12))*SIN(RADIANS(AA30))+COS(RADIANS(OBSERVATIONS!$AO$12))*COS(RADIANS(AA30))*COS(RADIANS(Y30)))) -> 37.71947166 | AK30: 37.71947166 | AL30: Capella | AM30: 61.26808182 | AN30: 37.71947166
B31: Eltanin | C31: =(17+56/60+34/3600) -> 17.94277778 | D31: =51+29.3/60 -> 51.48833333 | E31: =MOD(360-(C31+((3.075+1.336*SIN(RADIANS(C31))*TAN(RADIANS(D31)))*(OBSERVATIONS!$U$35-36526)/365)/3600)*15,360) -> 90.50374635 | F31: =D31+(20.04*COS(RADIANS(C31*15))*(OBSERVATIONS!$U$35-36526)/365)/3600 -> 51.4863578 | G31: =-17.3*SIN(RADIANS(125-0.05295*(OBSERVATIONS!$U$35-2451545)))-1.4*SIN(RADIANS(200+1.97129*(OBSERVATIONS!$U$35-2451545))) -> -15.50721343 | H31: =9.4*COS(RADIANS(125-0.05295*(OBSERVATIONS!$U$35-2451545)))+0.7*COS(RADIANS(200+1.97129*(OBSERVATIONS!$U$35-2451545))) -> -2.104130078 | I31: 90.50462612 | J31: 51.48620341 | O31: Deneb | P31: 0 | Y31: =MOD(V$4+OBSERVATIONS!$AO$13+I26,360) -> 41.45406237 | Z31: 41.45406237 | AA31: 45.36573491 | AB31: 0 | AC31: =ABS(TAN(RADIANS(ABS(OBSERVATIONS!$AO$12)))/TAN(RADIANS(ABS(Z31)))) -> 1.651772968 | AD31: =IF(AB31=0,IF(OBSERVATIONS!$AY$35="N",-AC31,AC31),IF(OBSERVATIONS!$AY$35="N",AC31,-AC31)) -> -1.651772968 | AE31: 1.529938283 | AF31: -0.1218346844 | AG31: =ABS(DEGREES(ATAN(1/(COS(RADIANS(ABS(OBSERVATIONS!$AO$12)))*AF31)))) -> 86.05972707 | AH31: 266.0597271 | AI31: =AA31-OBSERVATIONS!$AO$12 -> -10.20759843 | AJ31: =DEGREES(ASIN(SIN(RADIANS(OBSERVATIONS!$AO$12))*SIN(RADIANS(AA31))+COS(RADIANS(OBSERVATIONS!$AO$12))*COS(RADIANS(AA31))*COS(RADIANS(Y31)))) -> 62.21061356 | AK31: 62.21061356 | AL31: Deneb | AM31: 266.0597271 | AN31: 62.21061356
B32: Enif | C32: =(21+44/60+10/3600) -> 21.73611111 | D32: =9+52.5/60 -> 9.875 | E32: =MOD(360-(C32+((3.075+1.336*SIN(RADIANS(C32))*TAN(RADIANS(D32)))*(OBSERVATIONS!$U$35-36526)/365)/3600)*15,360) -> 33.64629827 | F32: =D32+(20.04*COS(RADIANS(C32*15))*(OBSERVATIONS!$U$35-36526)/365)/3600 -> 9.984384273 | G32: =-17.3*SIN(RADIANS(125-0.05295*(OBSERVATIONS!$U$35-2451545)))-1.4*SIN(RADIANS(200+1.97129*(OBSERVATIONS!$U$35-2451545))) -> -15.50721343 | H32: =9.4*COS(RADIANS(125-0.05295*(OBSERVATIONS!$U$35-2451545)))+0.7*COS(RADIANS(200+1.97129*(OBSERVATIONS!$U$35-2451545))) -> -2.104130078 | I32: 33.6452044 | J32: 9.98274653 | O32: Denebola | P32: 0 | Y32: =MOD(V$4+OBSERVATIONS!$AO$13+I27,360) -> 174.5785827 | Z32: 174.5785827 | AA32: 14.44153243 | AB32: 1 | AC32: =ABS(TAN(RADIANS(ABS(OBSERVATIONS!$AO$12)))/TAN(RADIANS(ABS(Z32)))) -> 15.3733334 | AD32: =IF(AB32=0,IF(OBSERVATIONS!$AY$35="N",-AC32,AC32),IF(OBSERVATIONS!$AY$35="N",AC32,-AC32)) -> 15.3733334 | AE32: 2.725740268 | AF32: 18.09907367 | AG32: =ABS(DEGREES(ATAN(1/(COS(RADIANS(ABS(OBSERVATIONS!$AO$12)))*AF32)))) -> 5.581760247 | AH32: 354.4182398 | AI32: =AA32-OBSERVATIONS!$AO$12 -> -41.1318009 | AJ32: =DEGREES(ASIN(SIN(RADIANS(OBSERVATIONS!$AO$12))*SIN(RADIANS(AA32))+COS(RADIANS(OBSERVATIONS!$AO$12))*COS(RADIANS(AA32))*COS(RADIANS(Y32)))) -> -19.83589221 | AK32: -19.83589221 | AL32: Denebola | AM32: 354.4182398 | AN32: -19.83589221
B33: Formalhaut | C33: =(22+57/60+37/3600) -> 22.96027778 | D33: =-29-37.6/60 -> -29.62666667 | E33: =MOD(360-(C33+((3.075+1.336*SIN(RADIANS(C33))*TAN(RADIANS(D33)))*(OBSERVATIONS!$U$35-36526)/365)/3600)*15,360) -> 15.32155595 | F33: =D33+(20.04*COS(RADIANS(C33*15))*(OBSERVATIONS!$U$35-36526)/365)/3600 -> -29.49964546 | G33: =-17.3*SIN(RADIANS(125-0.05295*(OBSERVATIONS!$U$35-2451545)))-1.4*SIN(RADIANS(200+1.97129*(OBSERVATIONS!$U$35-2451545))) -> -15.50721343 | H33: =9.4*COS(RADIANS(125-0.05295*(OBSERVATIONS!$U$35-2451545)))+0.7*COS(RADIANS(200+1.97129*(OBSERVATIONS!$U$35-2451545))) -> -2.104130078 | I33: 15.32102235 | J33: -29.50152392 | O33: Diphda | P33: 0 | Y33: =MOD(V$4+OBSERVATIONS!$AO$13+I28,360) -> 340.9582848 | Z33: 19.04171521 | AA33: -17.86218906 | AB33: 0 | AC33: =ABS(TAN(RADIANS(ABS(OBSERVATIONS!$AO$12)))/TAN(RADIANS(ABS(Z33)))) -> 4.227260496 | AD33: =IF(AB33=0,IF(OBSERVATIONS!$AY$35="N",-AC33,AC33),IF(OBSERVATIONS!$AY$35="N",AC33,-AC33)) -> -4.227260496 | AE33: -0.9877584464 | AF33: -5.215018942 | AG33: =ABS(DEGREES(ATAN(1/(COS(RADIANS(ABS(OBSERVATIONS!$AO$12)))*AF33)))) -> 18.73573737 | AH33: 161.2642626 | AI33: =AA33-OBSERVATIONS!$AO$12 -> -73.4355224 | AJ33: =DEGREES(ASIN(SIN(RADIANS(OBSERVATIONS!$AO$12))*SIN(RADIANS(AA33))+COS(RADIANS(OBSERVATIONS!$AO$12))*COS(RADIANS(AA33))*COS(RADIANS(Y33)))) -> 14.81210797 | AK33: 14.81210797 | AL33: Diphda | AM33: 161.2642626 | AN33: 14.81210797
B34: Gacrux | C34: =(12+31/60+10/3600) -> 12.51944444 | D34: =-57-6.4/60 -> -57.10666667 | E34: =MOD(360-(C34+((3.075+1.336*SIN(RADIANS(C34))*TAN(RADIANS(D34)))*(OBSERVATIONS!$U$35-36526)/365)/3600)*15,360) -> 171.949 | F34: =D34+(20.04*COS(RADIANS(C34*15))*(OBSERVATIONS!$U$35-36526)/365)/3600 -> -57.23732575 | G34: =-17.3*SIN(RADIANS(125-0.05295*(OBSERVATIONS!$U$35-2451545)))-1.4*SIN(RADIANS(200+1.97129*(OBSERVATIONS!$U$35-2451545))) -> -15.50721343 | H34: =9.4*COS(RADIANS(125-0.05295*(OBSERVATIONS!$U$35-2451545)))+0.7*COS(RADIANS(200+1.97129*(OBSERVATIONS!$U$35-2451545))) -> -2.104130078 | I34: 171.9485437 | J34: -57.23575472 | O34: Dubhe | P34: 0 | Y34: =MOD(V$4+OBSERVATIONS!$AO$13+I29,360) -> 185.8735189 | Z34: 174.1264811 | AA34: 61.62029687 | AB34: 1 | AC34: =ABS(TAN(RADIANS(ABS(OBSERVATIONS!$AO$12)))/TAN(RADIANS(ABS(Z34)))) -> 14.18261468 | AD34: =IF(AB34=0,IF(OBSERVATIONS!$AY$35="N",-AC34,AC34),IF(OBSERVATIONS!$AY$35="N",AC34,-AC34)) -> 14.18261468 | AE34: 18.08832008 | AF34: 32.27093476 | AG34: =ABS(DEGREES(ATAN(1/(COS(RADIANS(ABS(OBSERVATIONS!$AO$12)))*AF34)))) -> 3.137318412 | AH34: 3.137318412 | AI34: =AA34-OBSERVATIONS!$AO$12 -> 6.046963541 | AJ34: =DEGREES(ASIN(SIN(RADIANS(OBSERVATIONS!$AO$12))*SIN(RADIANS(AA34))+COS(RADIANS(OBSERVATIONS!$AO$12))*COS(RADIANS(AA34))*COS(RADIANS(Y34)))) -> 27.28453955 | AK34: 27.28453955 | AL34: Dubhe | AM34: 3.137318412 | AN34: 27.28453955
B35: Gienah | C35: =(12+15/60+48/3600) -> 12.26333333 | D35: =-17-32.3/60 -> -17.53833333 | E35: =MOD(360-(C35+((3.075+1.336*SIN(RADIANS(C35))*TAN(RADIANS(D35)))*(OBSERVATIONS!$U$35-36526)/365)/3600)*15,360) -> 175.7553191 | F35: =D35+(20.04*COS(RADIANS(C35*15))*(OBSERVATIONS!$U$35-36526)/365)/3600 -> -17.66989669 | G35: =-17.3*SIN(RADIANS(125-0.05295*(OBSERVATIONS!$U$35-2451545)))-1.4*SIN(RADIANS(200+1.97129*(OBSERVATIONS!$U$35-2451545))) -> -15.50721343 | H35: =9.4*COS(RADIANS(125-0.05295*(OBSERVATIONS!$U$35-2451545)))+0.7*COS(RADIANS(200+1.97129*(OBSERVATIONS!$U$35-2451545))) -> -2.104130078 | I35: 175.7572136 | J35: -17.66831136 | O35: Elnath | P35: 0 | Y35: =MOD(V$4+OBSERVATIONS!$AO$13+I30,360) -> 270.266519 | Z35: 89.73348096 | AA35: 28.62568207 | AB35: 0 | AC35: =ABS(TAN(RADIANS(ABS(OBSERVATIONS!$AO$12)))/TAN(RADIANS(ABS(Z35)))) -> 0.006786812019 | AD35: =IF(AB35=0,IF(OBSERVATIONS!$AY$35="N",-AC35,AC35),IF(OBSERVATIONS!$AY$35="N",AC35,-AC35)) -> -0.006786812019 | AE35: 0.5458052271 | AF35: 0.5390184151 | AG35: =ABS(DEGREES(ATAN(1/(COS(RADIANS(ABS(OBSERVATIONS!$AO$12)))*AF35)))) -> 73.05220819 | AH35: 73.05220819 | AI35: =AA35-OBSERVATIONS!$AO$12 -> -26.94765126 | AJ35: =DEGREES(ASIN(SIN(RADIANS(OBSERVATIONS!$AO$12))*SIN(RADIANS(AA35))+COS(RADIANS(OBSERVATIONS!$AO$12))*COS(RADIANS(AA35))*COS(RADIANS(Y35)))) -> 23.42086819 | AK35: 23.42086819 | AL35: Elnath | AM35: 73.05220819 | AN35: 23.42086819
B36: Hadar | C36: =(14+3/60+48/3600) -> 14.06333333 | D36: =-60-22/60 -> -60.36666667 | E36: =MOD(360-(C36+((3.075+1.336*SIN(RADIANS(C36))*TAN(RADIANS(D36)))*(OBSERVATIONS!$U$35-36526)/365)/3600)*15,360) -> 148.8028001 | F36: =D36+(20.04*COS(RADIANS(C36*15))*(OBSERVATIONS!$U$35-36526)/365)/3600 -> -60.47976622 | G36: =-17.3*SIN(RADIANS(125-0.05295*(OBSERVATIONS!$U$35-2451545)))-1.4*SIN(RADIANS(200+1.97129*(OBSERVATIONS!$U$35-2451545))) -> -15.50721343 | H36: =9.4*COS(RADIANS(125-0.05295*(OBSERVATIONS!$U$35-2451545)))+0.7*COS(RADIANS(200+1.97129*(OBSERVATIONS!$U$35-2451545))) -> -2.104130078 | I36: =E36+(0.9175+0.3978*SIN(RADIANS(C36*15)*TAN(RADIANS(D36)))*G36-COS(RADIANS(C36*15))*TAN(RADIANS(D36))*H36)/3600 -> 148.8042584 | J36: =F36+(0.3978*COS(RADIANS(C36*15))*G36+SIN(RADIANS(C36))*H36)/3600 -> -60.47843868 | O36: Eltanin | P36: 0 | Y36: =MOD(V$4+OBSERVATIONS!$AO$13+I31,360) -> 82.65739408 | Z36: 82.65739408 | AA36: 51.48620341 | AB36: 0 | AC36: =ABS(TAN(RADIANS(ABS(OBSERVATIONS!$AO$12)))/TAN(RADIANS(ABS(Z36)))) -> 0.188005827 | AD36: =IF(AB36=0,IF(OBSERVATIONS!$AY$35="N",-AC36,AC36),IF(OBSERVATIONS!$AY$35="N",AC36,-AC36)) -> -0.188005827 | AE36: 1.266940432 | AF36: 1.078934605 | AG36: =ABS(DEGREES(ATAN(1/(COS(RADIANS(ABS(OBSERVATIONS!$AO$12)))*AF36)))) -> 58.61778095 | AH36: 301.3822191 | AI36: =AA36-OBSERVATIONS!$AO$12 -> -4.087129926 | AJ36: =DEGREES(ASIN(SIN(RADIANS(OBSERVATIONS!$AO$12))*SIN(RADIANS(AA36))+COS(RADIANS(OBSERVATIONS!$AO$12))*COS(RADIANS(AA36))*COS(RADIANS(Y36)))) -> 43.66203787 | AK36: 43.66203787 | AL36: Eltanin | AM36: 301.3822191 | AN36: 43.66203787
B37: Hamal | C37: =(2+7/60+10/3600) -> 2.119444444 | D37: =23+27.8/60 -> 23.46333333 | E37: =MOD(360-(C37+((3.075+1.336*SIN(RADIANS(C37))*TAN(RADIANS(D37)))*(OBSERVATIONS!$U$35-36526)/365)/3600)*15,360) -> 327.902683 | F37: =D37+(20.04*COS(RADIANS(C37*15))*(OBSERVATIONS!$U$35-36526)/365)/3600 -> 23.57542442 | G37: =-17.3*SIN(RADIANS(125-0.05295*(OBSERVATIONS!$U$35-2451545)))-1.4*SIN(RADIANS(200+1.97129*(OBSERVATIONS!$U$35-2451545))) -> -15.50721343 | H37: =9.4*COS(RADIANS(125-0.05295*(OBSERVATIONS!$U$35-2451545)))+0.7*COS(RADIANS(200+1.97129*(OBSERVATIONS!$U$35-2451545))) -> -2.104130078 | I37: =E37+(0.9175+0.3978*SIN(RADIANS(C37*15)*TAN(RADIANS(D37)))*G37-COS(RADIANS(C37*15))*TAN(RADIANS(D37))*H37)/3600 -> 327.9027448 | J37: =F37+(0.3978*COS(RADIANS(C37*15))*G37+SIN(RADIANS(C37))*H37)/3600 -> 23.57394634 | O37: Enif | P37: 0 | Y37: =MOD(V$4+OBSERVATIONS!$AO$13+I32,360) -> 25.79797236 | Z37: 25.79797236 | AA37: 9.98274653 | AB37: 0 | AC37: =ABS(TAN(RADIANS(ABS(OBSERVATIONS!$AO$12)))/TAN(RADIANS(ABS(Z37)))) -> 3.018371493 | AD37: =IF(AB37=0,IF(OBSERVATIONS!$AY$35="N",-AC37,AC37),IF(OBSERVATIONS!$AY$35="N",AC37,-AC37)) -> -3.018371493 | AE37: 0.4044503978 | AF37: -2.613921095 | AG37: =ABS(DEGREES(ATAN(1/(COS(RADIANS(ABS(OBSERVATIONS!$AO$12)))*AF37)))) -> 34.08579626 | AH37: 214.0857963 | AI37: =AA37-OBSERVATIONS!$AO$12 -> -45.5905868 | AJ37: =DEGREES(ASIN(SIN(RADIANS(OBSERVATIONS!$AO$12))*SIN(RADIANS(AA37))+COS(RADIANS(OBSERVATIONS!$AO$12))*COS(RADIANS(AA37))*COS(RADIANS(Y37)))) -> 40.11228482 | AK37: 40.11228482 | AL37: Enif | AM37: 214.0857963 | AN37: 40.11228482
B38: Kaus Austr. | C38: =(18+24/60+7/3600) -> 18.40194444 | D38: =-34-23/60 -> -34.38333333 | E38: =MOD(360-(C38+((3.075+1.336*SIN(RADIANS(C38))*TAN(RADIANS(D38)))*(OBSERVATIONS!$U$35-36526)/365)/3600)*15,360) -> 83.69578748 | F38: =D38+(20.04*COS(RADIANS(C38*15))*(OBSERVATIONS!$U$35-36526)/365)/3600 -> -34.36948171 | G38: =-17.3*SIN(RADIANS(125-0.05295*(OBSERVATIONS!$U$35-2451545)))-1.4*SIN(RADIANS(200+1.97129*(OBSERVATIONS!$U$35-2451545))) -> -15.50721343 | H38: =9.4*COS(RADIANS(125-0.05295*(OBSERVATIONS!$U$35-2451545)))+0.7*COS(RADIANS(200+1.97129*(OBSERVATIONS!$U$35-2451545))) -> -2.104130078 | I38: 83.69573573 | J38: -34.3698462 | O38: Formalhaut | P38: 0 | Y38: =MOD(V$4+OBSERVATIONS!$AO$13+I33,360) -> 7.473790308 | Z38: 7.473790308 | AA38: -29.50152392 | AB38: 0 | AC38: =ABS(TAN(RADIANS(ABS(OBSERVATIONS!$AO$12)))/TAN(RADIANS(ABS(Z38)))) -> 11.1215618 | AD38: =IF(AB38=0,IF(OBSERVATIONS!$AY$35="N",-AC38,AC38),IF(OBSERVATIONS!$AY$35="N",AC38,-AC38)) -> -11.1215618 | AE38: -4.34993755 | AF38: -15.47149935 | AG38: =ABS(DEGREES(ATAN(1/(COS(RADIANS(ABS(OBSERVATIONS!$AO$12)))*AF38)))) -> 6.522146407 | AH38: 186.5221464 | AI38: =AA38-OBSERVATIONS!$AO$12 -> -85.07485726 | AJ38: =DEGREES(ASIN(SIN(RADIANS(OBSERVATIONS!$AO$12))*SIN(RADIANS(AA38))+COS(RADIANS(OBSERVATIONS!$AO$12))*COS(RADIANS(AA38))*COS(RADIANS(Y38)))) -> 4.684788955 | AK38: 4.684788955 | AL38: Formalhaut | AM38: 186.5221464 | AN38: 4.684788955
B39: Kochab | C39: =(14+50/60+39/3600) -> 14.84416667 | D39: =74+9.2/60 -> 74.15333333 | E39: =MOD(360-(C39+((3.075+1.336*SIN(RADIANS(C39))*TAN(RADIANS(D39)))*(OBSERVATIONS!$U$35-36526)/365)/3600)*15,360) -> 136.914941 | F39: =D39+(20.04*COS(RADIANS(C39*15))*(OBSERVATIONS!$U$35-36526)/365)/3600 -> 74.05635677 | G39: =-17.3*SIN(RADIANS(125-0.05295*(OBSERVATIONS!$U$35-2451545)))-1.4*SIN(RADIANS(200+1.97129*(OBSERVATIONS!$U$35-2451545))) -> -15.50721343 | H39: =9.4*COS(RADIANS(125-0.05295*(OBSERVATIONS!$U$35-2451545)))+0.7*COS(RADIANS(200+1.97129*(OBSERVATIONS!$U$35-2451545))) -> -2.104130078 | I39: 136.9121359 | J39: 74.0574671 | O39: Gacrux | P39: 0 | Y39: =MOD(V$4+OBSERVATIONS!$AO$13+I34,360) -> 164.1013117 | Z39: =IF(Y39>180,360-Y39,Y39) -> 164.1013117 | AA39: -57.23575472 | AB39: =IF(Y39>90,IF(Y39<270,1,0),0) -> 1 | AC39: =ABS(TAN(RADIANS(ABS(OBSERVATIONS!$AO$12)))/TAN(RADIANS(ABS(Z39)))) -> 5.122325467 | AD39: =IF(AB39=0,IF(OBSERVATIONS!$AY$35="N",-AC39,AC39),IF(OBSERVATIONS!$AY$35="N",AC39,-AC39)) -> 5.122325467 | AE39: =IF(AA39>0,ABS(TAN(RADIANS(AA39))/SIN(RADIANS(Y39))),-ABS(TAN(RADIANS(AA39))/SIN(RADIANS(Y39)))) -> -5.672193782 | AF39: =AD39+AE39 -> -0.5498683149 | AG39: =ABS(DEGREES(ATAN(1/(COS(RADIANS(ABS(OBSERVATIONS!$AO$12)))*AF39)))) -> 72.73117201 | AH39: =IF(AF39<0,IF(Y39<180,180+AG39,180-AG39),IF(Y39<180,360-AG39,AG39)) -> 252.731172 | AI39: =AA39-OBSERVATIONS!$AO$12 -> -112.8090881 | AJ39: =DEGREES(ASIN(SIN(RADIANS(OBSERVATIONS!$AO$12))*SIN(RADIANS(AA39))+COS(RADIANS(OBSERVATIONS!$AO$12))*COS(RADIANS(AA39))*COS(RADIANS(Y39)))) -> -81.06878931 | AK39: =AJ39 -> -81.06878931 | AL39: Gacrux | AM39: =AH39 -> 252.731172 | AN39: =AJ39 -> -81.06878931
B40: Markab | C40: =(23+4/60+44/3600) -> 23.07888889 | D40: =15+12.3/60 -> 15.205 | E40: =MOD(360-(C40+((3.075+1.336*SIN(RADIANS(C40))*TAN(RADIANS(D40)))*(OBSERVATIONS!$U$35-36526)/365)/3600)*15,360) -> 13.4990831 | F40: =D40+(20.04*COS(RADIANS(C40*15))*(OBSERVATIONS!$U$35-36526)/365)/3600 -> 15.33306075 | G40: =-17.3*SIN(RADIANS(125-0.05295*(OBSERVATIONS!$U$35-2451545)))-1.4*SIN(RADIANS(200+1.97129*(OBSERVATIONS!$U$35-2451545))) -> -15.50721343 | H40: =9.4*COS(RADIANS(125-0.05295*(OBSERVATIONS!$U$35-2451545)))+0.7*COS(RADIANS(200+1.97129*(OBSERVATIONS!$U$35-2451545))) -> -2.104130078 | I40: 13.49778304 | J40: 15.33116767 | O40: Gienah | P40: 0 | Y40: =MOD(V$4+OBSERVATIONS!$AO$13+I35,360) -> 167.9099815 | Z40: =IF(Y40>180,360-Y40,Y40) -> 167.9099815 | AA40: -17.66831136 | AB40: =IF(Y40>90,IF(Y40<270,1,0),0) -> 1 | AC40: =ABS(TAN(RADIANS(ABS(OBSERVATIONS!$AO$12)))/TAN(RADIANS(ABS(Z40)))) -> 6.811444299 | AD40: =IF(AB40=0,IF(OBSERVATIONS!$AY$35="N",-AC40,AC40),IF(OBSERVATIONS!$AY$35="N",AC40,-AC40)) -> 6.811444299 | AE40: =IF(AA40>0,ABS(TAN(RADIANS(AA40))/SIN(RADIANS(Y40))),-ABS(TAN(RADIANS(AA40))/SIN(RADIANS(Y40)))) -> -1.520812236 | AF40: =AD40+AE40 -> 5.290632063 | AG40: =ABS(DEGREES(ATAN(1/(COS(RADIANS(ABS(OBSERVATIONS!$AO$12)))*AF40)))) -> 18.4862862 | AH40: =IF(AF40<0,IF(Y40<180,180+AG40,180-AG40),IF(Y40<180,360-AG40,AG40)) -> 341.5137138 | AI40: =AA40-OBSERVATIONS!$AO$12 -> -73.24164469 | AJ40: =DEGREES(ASIN(SIN(RADIANS(OBSERVATIONS!$AO$12))*SIN(RADIANS(AA40))+COS(RADIANS(OBSERVATIONS!$AO$12))*COS(RADIANS(AA40))*COS(RADIANS(Y40)))) -> -50.99418698 | AK40: =AJ40 -> -50.99418698 | AL40: Gienah | AM40: =AH40 -> 341.5137138 | AN40: =AJ40 -> -50.99418698
B41: Menkar | C41: =(3+2/60+17/3600) -> 3.038055556 | D41: =4+5.2/60 -> 4.086666667 | E41: =MOD(360-(C41+((3.075+1.336*SIN(RADIANS(C41))*TAN(RADIANS(D41)))*(OBSERVATIONS!$U$35-36526)/365)/3600)*15,360) -> 314.1251339 | F41: =D41+(20.04*COS(RADIANS(C41*15))*(OBSERVATIONS!$U$35-36526)/365)/3600 -> 4.178983856 | G41: =-17.3*SIN(RADIANS(125-0.05295*(OBSERVATIONS!$U$35-2451545)))-1.4*SIN(RADIANS(200+1.97129*(OBSERVATIONS!$U$35-2451545))) -> -15.50721343 | H41: =9.4*COS(RADIANS(125-0.05295*(OBSERVATIONS!$U$35-2451545)))+0.7*COS(RADIANS(200+1.97129*(OBSERVATIONS!$U$35-2451545))) -> -2.104130078 | I41: 314.1253207 | J41: 4.17775335 | O41: Hadar | P41: 0 | Y41: =MOD(V$4+OBSERVATIONS!$AO$13+I36,360) -> 140.9570263 | Z41: 140.9570263 | AA41: -60.47843868 | AB41: 1 | AC41: =ABS(TAN(RADIANS(ABS(OBSERVATIONS!$AO$12)))/TAN(RADIANS(ABS(Z41)))) -> 1.798961854 | AD41: =IF(AB41=0,IF(OBSERVATIONS!$AY$35="N",-AC41,AC41),IF(OBSERVATIONS!$AY$35="N",AC41,-AC41)) -> 1.798961854 | AE41: -2.803515511 | AF41: -1.004553657 | AG41: =ABS(DEGREES(ATAN(1/(COS(RADIANS(ABS(OBSERVATIONS!$AO$12)))*AF41)))) -> 60.4066575 | AH41: 240.4066575 | AI41: =AA41-OBSERVATIONS!$AO$12 -> -116.051772 | AJ41: =DEGREES(ASIN(SIN(RADIANS(OBSERVATIONS!$AO$12))*SIN(RADIANS(AA41))+COS(RADIANS(OBSERVATIONS!$AO$12))*COS(RADIANS(AA41))*COS(RADIANS(Y41)))) -> -69.08708777 | AK41: -69.08708777 | AL41: Hadar | AM41: 240.4066575 | AN41: -69.08708777
B42: Menkent | C42: =(14+6/60+40/3600) -> 14.11111111 | D42: =-36-21.9/60 -> -36.365 | E42: =MOD(360-(C42+((3.075+1.336*SIN(RADIANS(C42))*TAN(RADIANS(D42)))*(OBSERVATIONS!$U$35-36526)/365)/3600)*15,360) -> 148.0534741 | F42: =D42+(20.04*COS(RADIANS(C42*15))*(OBSERVATIONS!$U$35-36526)/365)/3600 -> -36.47724239 | G42: =-17.3*SIN(RADIANS(125-0.05295*(OBSERVATIONS!$U$35-2451545)))-1.4*SIN(RADIANS(200+1.97129*(OBSERVATIONS!$U$35-2451545))) -> -15.50721343 | H42: =9.4*COS(RADIANS(125-0.05295*(OBSERVATIONS!$U$35-2451545)))+0.7*COS(RADIANS(200+1.97129*(OBSERVATIONS!$U$35-2451545))) -> -2.104130078 | I42: 148.0547962 | J42: -36.47592646 | O42: Hamal | P42: 0 | Y42: =MOD(V$4+OBSERVATIONS!$AO$13+I37,360) -> 320.0555127 | Z42: 39.94448726 | AA42: 23.57394634 | AB42: 0 | AC42: =ABS(TAN(RADIANS(ABS(OBSERVATIONS!$AO$12)))/TAN(RADIANS(ABS(Z42)))) -> 1.742200922 | AD42: =IF(AB42=0,IF(OBSERVATIONS!$AY$35="N",-AC42,AC42),IF(OBSERVATIONS!$AY$35="N",AC42,-AC42)) -> -1.742200922 | AE42: 0.6796218008 | AF42: -1.062579121 | AG42: =ABS(DEGREES(ATAN(1/(COS(RADIANS(ABS(OBSERVATIONS!$AO$12)))*AF42)))) -> 59.00549337 | AH42: 120.9945066 | AI42: =AA42-OBSERVATIONS!$AO$12 -> -31.999387 | AJ42: =DEGREES(ASIN(SIN(RADIANS(OBSERVATIONS!$AO$12))*SIN(RADIANS(AA42))+COS(RADIANS(OBSERVATIONS!$AO$12))*COS(RADIANS(AA42))*COS(RADIANS(Y42)))) -> 46.6478032 | AK42: 46.6478032 | AL42: Hamal | AM42: 120.9945066 | AN42: 46.6478032
B43: Miaplacidus | C43: =(9+13/60+16/3600) -> 9.221111111 | D43: =-69-42.8/60 -> -69.71333333 | E43: =MOD(360-(C43+((3.075+1.336*SIN(RADIANS(C43))*TAN(RADIANS(D43)))*(OBSERVATIONS!$U$35-36526)/365)/3600)*15,360) -> 221.4369695 | F43: =D43+(20.04*COS(RADIANS(C43*15))*(OBSERVATIONS!$U$35-36526)/365)/3600 -> -69.81182297 | G43: =-17.3*SIN(RADIANS(125-0.05295*(OBSERVATIONS!$U$35-2451545)))-1.4*SIN(RADIANS(200+1.97129*(OBSERVATIONS!$U$35-2451545))) -> -15.50721343 | H43: =9.4*COS(RADIANS(125-0.05295*(OBSERVATIONS!$U$35-2451545)))+0.7*COS(RADIANS(200+1.97129*(OBSERVATIONS!$U$35-2451545))) -> -2.104130078 | I43: 221.4388252 | J43: -69.8106369 | O43: Jupiter | P43: 1 | Q43: =GZ4 -> 301.8415678 | R43: =GZ5 -> 319.480611 | S43: =GZ6 -> 314.3757004 | T43: =GY4 -> 15.23816349 | U43: =GY5 -> 8.343255103 | V43: =GY6 -> 15.23807523 | Y43: =MOD(Q43+OBSERVATIONS!$AO$13,360) -> 308.6249011 | Z43: 51.37509887 | AA43: =T43 -> 15.23816349 | AB43: 0 | AC43: =ABS(TAN(RADIANS(ABS(OBSERVATIONS!$AO$12)))/TAN(RADIANS(ABS(Z43)))) -> 1.16574774 | AD43: =IF(AB43=0,IF(OBSERVATIONS!$AY$35="N",-AC43,AC43),IF(OBSERVATIONS!$AY$35="N",AC43,-AC43)) -> -1.16574774 | AE43: 0.3486843167 | AF43: -0.817063423 | AG43: =ABS(DEGREES(ATAN(1/(COS(RADIANS(ABS(OBSERVATIONS!$AO$12)))*AF43)))) -> 65.20648171 | AH43: 114.7935183 | AI43: =AA43-OBSERVATIONS!$AO$12 -> -40.33516985 | AJ43: =DEGREES(ASIN(SIN(RADIANS(OBSERVATIONS!$AO$12))*SIN(RADIANS(AA43))+COS(RADIANS(OBSERVATIONS!$AO$12))*COS(RADIANS(AA43))*COS(RADIANS(Y43)))) -> 33.86875853 | AK43: 33.86875853 | AL43: Jupiter | AM43: 114.7935183 | AN43: 33.86875853
B44: Mirfak | C44: =(3+24/60+20/3600) -> 3.405555556 | D44: =49+51.7/60 -> 49.86166667 | E44: =MOD(360-(C44+((3.075+1.336*SIN(RADIANS(C44))*TAN(RADIANS(D44)))*(OBSERVATIONS!$U$35-36526)/365)/3600)*15,360) -> 308.6038429 | F44: =D44+(20.04*COS(RADIANS(C44*15))*(OBSERVATIONS!$U$35-36526)/365)/3600 -> 49.94451016 | G44: =-17.3*SIN(RADIANS(125-0.05295*(OBSERVATIONS!$U$35-2451545)))-1.4*SIN(RADIANS(200+1.97129*(OBSERVATIONS!$U$35-2451545))) -> -15.50721343 | H44: =9.4*COS(RADIANS(125-0.05295*(OBSERVATIONS!$U$35-2451545)))+0.7*COS(RADIANS(200+1.97129*(OBSERVATIONS!$U$35-2451545))) -> -2.104130078 | I44: 308.6030406 | J44: 49.94339901 | O44: Kaus Austr. | P44: 0 | Y44: =MOD(V$4+OBSERVATIONS!$AO$13+I38,360) -> 75.84850369 | Z44: 75.84850369 | AA44: =J38 -> -34.3698462 | AB44: 0 | AC44: =ABS(TAN(RADIANS(ABS(OBSERVATIONS!$AO$12)))/TAN(RADIANS(ABS(Z44)))) -> 0.367871356 | AD44: =IF(AB44=0,IF(OBSERVATIONS!$AY$35="N",-AC44,AC44),IF(OBSERVATIONS!$AY$35="N",AC44,-AC44)) -> -0.367871356 | AE44: -0.7053469449 | AF44: -1.073218301 | AG44: =ABS(DEGREES(ATAN(1/(COS(RADIANS(ABS(OBSERVATIONS!$AO$12)))*AF44)))) -> 58.75292687 | AH44: 238.7529269 | AI44: =AA44-OBSERVATIONS!$AO$12 -> -89.94317953 | AJ44: =DEGREES(ASIN(SIN(RADIANS(OBSERVATIONS!$AO$12))*SIN(RADIANS(AA44))+COS(RADIANS(OBSERVATIONS!$AO$12))*COS(RADIANS(AA44))*COS(RADIANS(Y44)))) -> -20.58313838 | AK44: -20.58313838 | AL44: Kaus Austr. | AM44: 238.7529269 | AN44: -20.58313838
B45: Nunki | C45: =(18+55/60+13/3600) -> 18.92027778 | D45: =-26-17.7/60 -> -26.295 | E45: =MOD(360-(C45+((3.075+1.336*SIN(RADIANS(C45))*TAN(RADIANS(D45)))*(OBSERVATIONS!$U$35-36526)/365)/3600)*15,360) -> 75.91342925 | F45: =D45+(20.04*COS(RADIANS(C45*15))*(OBSERVATIONS!$U$35-36526)/365)/3600 -> -26.2635337 | G45: =-17.3*SIN(RADIANS(125-0.05295*(OBSERVATIONS!$U$35-2451545)))-1.4*SIN(RADIANS(200+1.97129*(OBSERVATIONS!$U$35-2451545))) -> -15.50721343 | H45: =9.4*COS(RADIANS(125-0.05295*(OBSERVATIONS!$U$35-2451545)))+0.7*COS(RADIANS(200+1.97129*(OBSERVATIONS!$U$35-2451545))) -> -2.104130078 | I45: 75.91471127 | J45: -26.26413208 | O45: Kochab | P45: 0 | Y45: =MOD(V$4+OBSERVATIONS!$AO$13+I39,360) -> 129.0649038 | Z45: 129.0649038 | AA45: =J39 -> 74.0574671 | AB45: 1 | AC45: =ABS(TAN(RADIANS(ABS(OBSERVATIONS!$AO$12)))/TAN(RADIANS(ABS(Z45)))) -> 1.184218814 | AD45: =IF(AB45=0,IF(OBSERVATIONS!$AY$35="N",-AC45,AC45),IF(OBSERVATIONS!$AY$35="N",AC45,-AC45)) -> 1.184218814 | AE45: 4.508649304 | AF45: 5.692868118 | AG45: =ABS(DEGREES(ATAN(1/(COS(RADIANS(ABS(OBSERVATIONS!$AO$12)))*AF45)))) -> 17.26037416 | AH45: 342.7396258 | AI45: =AA45-OBSERVATIONS!$AO$12 -> 18.48413377 | AJ45: =DEGREES(ASIN(SIN(RADIANS(OBSERVATIONS!$AO$12))*SIN(RADIANS(AA45))+COS(RADIANS(OBSERVATIONS!$AO$12))*COS(RADIANS(AA45))*COS(RADIANS(Y45)))) -> 44.04818417 | AK45: 44.04818417 | AL45: Kochab | AM45: 342.7396258 | AN45: 44.04818417
B46: Peacock | C46: =(20+25/60+35/3600) -> 20.42638889 | D46: =-56-44.2/60 -> -56.73666667 | E46: =MOD(360-(C46+((3.075+1.336*SIN(RADIANS(C46))*TAN(RADIANS(D46)))*(OBSERVATIONS!$U$35-36526)/365)/3600)*15,360) -> 53.37079811 | F46: =D46+(20.04*COS(RADIANS(C46*15))*(OBSERVATIONS!$U$35-36526)/365)/3600 -> -56.65841631 | G46: =-17.3*SIN(RADIANS(125-0.05295*(OBSERVATIONS!$U$35-2451545)))-1.4*SIN(RADIANS(200+1.97129*(OBSERVATIONS!$U$35-2451545))) -> -15.50721343 | H46: =9.4*COS(RADIANS(125-0.05295*(OBSERVATIONS!$U$35-2451545)))+0.7*COS(RADIANS(200+1.97129*(OBSERVATIONS!$U$35-2451545))) -> -2.104130078 | I46: 53.37216211 | J46: -56.65963705 | O46: Markab | P46: 0 | Y46: =MOD(V$4+OBSERVATIONS!$AO$13+I40,360) -> 5.650550999 | Z46: 5.650550999 | AA46: =J40 -> 15.33116767 | AB46: 0 | AC46: =ABS(TAN(RADIANS(ABS(OBSERVATIONS!$AO$12)))/TAN(RADIANS(ABS(Z46)))) -> 14.74611858 | AD46: =IF(AB46=0,IF(OBSERVATIONS!$AY$35="N",-AC46,AC46),IF(OBSERVATIONS!$AY$35="N",AC46,-AC46)) -> -14.74611858 | AE46: 2.784391877 | AF46: -11.9617267 | AG46: =ABS(DEGREES(ATAN(1/(COS(RADIANS(ABS(OBSERVATIONS!$AO$12)))*AF46)))) -> 8.41152499 | AH46: 188.411525 | AI46: =AA46-OBSERVATIONS!$AO$12 -> -40.24216566 | AJ46: =DEGREES(ASIN(SIN(RADIANS(OBSERVATIONS!$AO$12))*SIN(RADIANS(AA46))+COS(RADIANS(OBSERVATIONS!$AO$12))*COS(RADIANS(AA46))*COS(RADIANS(Y46)))) -> 49.52343005 | AK46: 49.52343005 | AL46: Markab | AM46: 188.411525 | AN46: 49.52343005
B47: Pollux | C47: =(7+45/60+20/3600) -> 7.755555556 | D47: =28+1.5/60 -> 28.025 | E47: =MOD(360-(C47+((3.075+1.336*SIN(RADIANS(C47))*TAN(RADIANS(D47)))*(OBSERVATIONS!$U$35-36526)/365)/3600)*15,360) -> 243.3536608 | F47: =D47+(20.04*COS(RADIANS(C47*15))*(OBSERVATIONS!$U$35-36526)/365)/3600 -> 27.9665005 | G47: =-17.3*SIN(RADIANS(125-0.05295*(OBSERVATIONS!$U$35-2451545)))-1.4*SIN(RADIANS(200+1.97129*(OBSERVATIONS!$U$35-2451545))) -> -15.50721343 | H47: =9.4*COS(RADIANS(125-0.05295*(OBSERVATIONS!$U$35-2451545)))+0.7*COS(RADIANS(200+1.97129*(OBSERVATIONS!$U$35-2451545))) -> -2.104130078 | I47: 243.3522658 | J47: 27.96718174 | O47: Mars | P47: 1 | Q47: =EJ4 -> 160.7148895 | R47: =EJ5 -> 120.5635275 | S47: =EJ6 -> 173.2286528 | T47: =EI4 -> -1.348378191 | U47: =EI5 -> -15.52593108 | V47: =EI6 -> -1.357561138 | Y47: =MOD(Q47+OBSERVATIONS!$AO$13,360) -> 167.4982229 | Z47: 167.4982229 | AA47: =T47 -> -1.348378191 | AB47: 1 | AC47: =ABS(TAN(RADIANS(ABS(OBSERVATIONS!$AO$12)))/TAN(RADIANS(ABS(Z47)))) -> 6.580184951 | AD47: =IF(AB47=0,IF(OBSERVATIONS!$AY$35="N",-AC47,AC47),IF(OBSERVATIONS!$AY$35="N",AC47,-AC47)) -> 6.580184951 | AE47: -0.1087356025 | AF47: 6.471449348 | AG47: =ABS(DEGREES(ATAN(1/(COS(RADIANS(ABS(OBSERVATIONS!$AO$12)))*AF47)))) -> 15.28702193 | AH47: 344.7129781 | AI47: =AA47-OBSERVATIONS!$AO$12 -> -56.92171152 | AJ47: =DEGREES(ASIN(SIN(RADIANS(OBSERVATIONS!$AO$12))*SIN(RADIANS(AA47))+COS(RADIANS(OBSERVATIONS!$AO$12))*COS(RADIANS(AA47))*COS(RADIANS(Y47)))) -> -34.83417138 | AK47: -34.83417138 | AL47: Mars | AM47: 344.7129781 | AN47: -34.83417138
B48: Procyon | C48: =(7+39/60+19/3600) -> 7.655277778 | D48: =5+13.5/60 -> 5.225 | E48: =MOD(360-(C48+((3.075+1.336*SIN(RADIANS(C48))*TAN(RADIANS(D48)))*(OBSERVATIONS!$U$35-36526)/365)/3600)*15,360) -> 244.8656934 | F48: =D48+(20.04*COS(RADIANS(C48*15))*(OBSERVATIONS!$U$35-36526)/365)/3600 -> 5.169623143 | G48: =-17.3*SIN(RADIANS(125-0.05295*(OBSERVATIONS!$U$35-2451545)))-1.4*SIN(RADIANS(200+1.97129*(OBSERVATIONS!$U$35-2451545))) -> -15.50721343 | H48: =9.4*COS(RADIANS(125-0.05295*(OBSERVATIONS!$U$35-2451545)))+0.7*COS(RADIANS(200+1.97129*(OBSERVATIONS!$U$35-2451545))) -> -2.104130078 | I48: 244.8656136 | J48: 5.170264825 | O48: Menkar | P48: 0 | Y48: =MOD(V$4+OBSERVATIONS!$AO$13+I41,360) -> 306.2780886 | Z48: 53.72191136 | AA48: =J41 -> 4.17775335 | AB48: 0 | AC48: =ABS(TAN(RADIANS(ABS(OBSERVATIONS!$AO$12)))/TAN(RADIANS(ABS(Z48)))) -> 1.070887672 | AD48: =IF(AB48=0,IF(OBSERVATIONS!$AY$35="N",-AC48,AC48),IF(OBSERVATIONS!$AY$35="N",AC48,-AC48)) -> -1.070887672 | AE48: 0.09060922972 | AF48: -0.9802784419 | AG48: =ABS(DEGREES(ATAN(1/(COS(RADIANS(ABS(OBSERVATIONS!$AO$12)))*AF48)))) -> 61.00471998 | AH48: 118.99528 | AI48: =AA48-OBSERVATIONS!$AO$12 -> -51.39557998 | AJ48: =DEGREES(ASIN(SIN(RADIANS(OBSERVATIONS!$AO$12))*SIN(RADIANS(AA48))+COS(RADIANS(OBSERVATIONS!$AO$12))*COS(RADIANS(AA48))*COS(RADIANS(Y48)))) -> 23.18636851 | AK48: 23.18636851 | AL48: Menkar | AM48: 118.99528 | AN48: 23.18636851
B49: Rasalhague | C49: =(17+34/60+54/3600) -> 17.58166667 | D49: =12+33.7/60 -> 12.56166667 | E49: =MOD(360-(C49+((3.075+1.336*SIN(RADIANS(C49))*TAN(RADIANS(D49)))*(OBSERVATIONS!$U$35-36526)/365)/3600)*15,360) -> 95.96259035 | F49: =D49+(20.04*COS(RADIANS(C49*15))*(OBSERVATIONS!$U$35-36526)/365)/3600 -> 12.54725247 | G49: =-17.3*SIN(RADIANS(125-0.05295*(OBSERVATIONS!$U$35-2451545)))-1.4*SIN(RADIANS(200+1.97129*(OBSERVATIONS!$U$35-2451545))) -> -15.50721343 | H49: =9.4*COS(RADIANS(125-0.05295*(OBSERVATIONS!$U$35-2451545)))+0.7*COS(RADIANS(200+1.97129*(OBSERVATIONS!$U$35-2451545))) -> -2.104130078 | I49: 95.96136582 | J49: 12.54726321 | O49: Menkent | P49: 0 | Y49: =MOD(V$4+OBSERVATIONS!$AO$13+I42,360) -> 140.2075641 | Z49: 140.2075641 | AA49: =J42 -> -36.47592646 | AB49: 1 | AC49: =ABS(TAN(RADIANS(ABS(OBSERVATIONS!$AO$12)))/TAN(RADIANS(ABS(Z49)))) -> 1.751623575 | AD49: =IF(AB49=0,IF(OBSERVATIONS!$AY$35="N",-AC49,AC49),IF(OBSERVATIONS!$AY$35="N",AC49,-AC49)) -> 1.751623575 | AE49: -1.155158608 | AF49: 0.5964649671 | AG49: =ABS(DEGREES(ATAN(1/(COS(RADIANS(ABS(OBSERVATIONS!$AO$12)))*AF49)))) -> 71.36527396 | AH49: 288.634726 | AI49: =AA49-OBSERVATIONS!$AO$12 -> -92.04925979 | AJ49: =DEGREES(ASIN(SIN(RADIANS(OBSERVATIONS!$AO$12))*SIN(RADIANS(AA49))+COS(RADIANS(OBSERVATIONS!$AO$12))*COS(RADIANS(AA49))*COS(RADIANS(Y49)))) -> -57.10457601 | AK49: -57.10457601 | AL49: Menkent | AM49: 288.634726 | AN49: -57.10457601
B50: Regulus | C50: =(10+8/60+22/3600) -> 10.13944444 | D50: =11+58/60 -> 11.96666667 | E50: =MOD(360-(C50+((3.075+1.336*SIN(RADIANS(C50))*TAN(RADIANS(D50)))*(OBSERVATIONS!$U$35-36526)/365)/3600)*15,360) -> 207.5998793 | F50: =D50+(20.04*COS(RADIANS(C50*15))*(OBSERVATIONS!$U$35-36526)/365)/3600 -> 11.85012762 | G50: =-17.3*SIN(RADIANS(125-0.05295*(OBSERVATIONS!$U$35-2451545)))-1.4*SIN(RADIANS(200+1.97129*(OBSERVATIONS!$U$35-2451545))) -> -15.50721343 | H50: =9.4*COS(RADIANS(125-0.05295*(OBSERVATIONS!$U$35-2451545)))+0.7*COS(RADIANS(200+1.97129*(OBSERVATIONS!$U$35-2451545))) -> -2.104130078 | I50: 207.5991107 | J50: 11.85153898 | O50: Miaplacidus | P50: 0 | Y50: =MOD(V$4+OBSERVATIONS!$AO$13+I43,360) -> 213.5915932 | Z50: 146.4084068 | AA50: -69.8106369 | AB50: 1 | AC50: =ABS(TAN(RADIANS(ABS(OBSERVATIONS!$AO$12)))/TAN(RADIANS(ABS(Z50)))) -> 2.196679779 | AD50: =IF(AB50=0,IF(OBSERVATIONS!$AY$35="N",-AC50,AC50),IF(OBSERVATIONS!$AY$35="N",AC50,-AC50)) -> 2.196679779 | AE50: -4.91528826 | AF50: -2.718608481 | AG50: =ABS(DEGREES(ATAN(1/(COS(RADIANS(ABS(OBSERVATIONS!$AO$12)))*AF50)))) -> 33.04930239 | AH50: 146.9506976 | AI50: =AA50-OBSERVATIONS!$AO$12 -> -125.3839702 | AJ50: =DEGREES(ASIN(SIN(RADIANS(OBSERVATIONS!$AO$12))*SIN(RADIANS(AA50))+COS(RADIANS(OBSERVATIONS!$AO$12))*COS(RADIANS(AA50))*COS(RADIANS(Y50)))) -> -69.50479696 | AK50: -69.50479696 | AL50: Miaplacidus | AM50: 146.9506976 | AN50: -69.50479696
B51: Rigel | C51: =(5+14/60+33/3600) -> 5.2425 | D51: =-8-12.3/60 -> -8.205 | E51: =MOD(360-(C51+((3.075+1.336*SIN(RADIANS(C51))*TAN(RADIANS(D51)))*(OBSERVATIONS!$U$35-36526)/365)/3600)*15,360) -> 281.0607041 | F51: =D51+(20.04*COS(RADIANS(C51*15))*(OBSERVATIONS!$U$35-36526)/365)/3600 -> -8.179018234 | G51: =-17.3*SIN(RADIANS(125-0.05295*(OBSERVATIONS!$U$35-2451545)))-1.4*SIN(RADIANS(200+1.97129*(OBSERVATIONS!$U$35-2451545))) -> -15.50721343 | H51: =9.4*COS(RADIANS(125-0.05295*(OBSERVATIONS!$U$35-2451545)))+0.7*COS(RADIANS(200+1.97129*(OBSERVATIONS!$U$35-2451545))) -> -2.104130078 | I51: 281.0612792 | J51: -8.179409234 | O51: Mirfak | P51: 0 | Y51: =MOD(V$4+OBSERVATIONS!$AO$13+I44,360) -> 300.7558085 | Z51: 59.24419148 | AA51: 49.94339901 | AB51: 0 | AC51: =ABS(TAN(RADIANS(ABS(OBSERVATIONS!$AO$12)))/TAN(RADIANS(ABS(Z51)))) -> 0.8682176394 | AD51: =IF(AB51=0,IF(OBSERVATIONS!$AY$35="N",-AC51,AC51),IF(OBSERVATIONS!$AY$35="N",AC51,-AC51)) -> -0.8682176394 | AE51: 1.384021815 | AF51: 0.5158041753 | AG51: =ABS(DEGREES(ATAN(1/(COS(RADIANS(ABS(OBSERVATIONS!$AO$12)))*AF51)))) -> 73.74276698 | AH51: 73.74276698 | AI51: =AA51-OBSERVATIONS!$AO$12 -> -5.629934322 | AJ51: =DEGREES(ASIN(SIN(RADIANS(OBSERVATIONS!$AO$12))*SIN(RADIANS(AA51))+COS(RADIANS(OBSERVATIONS!$AO$12))*COS(RADIANS(AA51))*COS(RADIANS(Y51)))) -> 54.82562266 | AK51: 54.82562266 | AL51: Mirfak | AM51: 73.74276698 | AN51: 54.82562266
B52: Rigil Kent | C52: =(14+39/60+37/3600) -> 14.66027778 | D52: =-60-49.8/60 -> -60.83 | E52: =MOD(360-(C52+((3.075+1.336*SIN(RADIANS(C52))*TAN(RADIANS(D52)))*(OBSERVATIONS!$U$35-36526)/365)/3600)*15,360) -> 139.8520933 | F52: =D52+(20.04*COS(RADIANS(C52*15))*(OBSERVATIONS!$U$35-36526)/365)/3600 -> -60.931165 | G52: =-17.3*SIN(RADIANS(125-0.05295*(OBSERVATIONS!$U$35-2451545)))-1.4*SIN(RADIANS(200+1.97129*(OBSERVATIONS!$U$35-2451545))) -> -15.50721343 | H52: =9.4*COS(RADIANS(125-0.05295*(OBSERVATIONS!$U$35-2451545)))+0.7*COS(RADIANS(200+1.97129*(OBSERVATIONS!$U$35-2451545))) -> -2.104130078 | I52: 139.8541085 | J52: -60.92999843 | O52: Nunki | P52: 0 | Y52: =MOD(V$4+OBSERVATIONS!$AO$13+I45,360) -> 68.06747924 | Z52: 68.06747924 | AA52: -26.26413208 | AB52: 0 | AC52: =ABS(TAN(RADIANS(ABS(OBSERVATIONS!$AO$12)))/TAN(RADIANS(ABS(Z52)))) -> 0.5874788265 | AD52: =IF(AB52=0,IF(OBSERVATIONS!$AY$35="N",-AC52,AC52),IF(OBSERVATIONS!$AY$35="N",AC52,-AC52)) -> -0.5874788265 | AE52: -0.5319524789 | AF52: -1.119431305 | AG52: =ABS(DEGREES(ATAN(1/(COS(RADIANS(ABS(OBSERVATIONS!$AO$12)))*AF52)))) -> 57.67144331 | AH52: 237.6714433 | AI52: =AA52-OBSERVATIONS!$AO$12 -> -81.83746541 | AJ52: =DEGREES(ASIN(SIN(RADIANS(OBSERVATIONS!$AO$12))*SIN(RADIANS(AA52))+COS(RADIANS(OBSERVATIONS!$AO$12))*COS(RADIANS(AA52))*COS(RADIANS(Y52)))) -> -10.11578035 | AK52: -10.11578035 | AL52: Nunki | AM52: 237.6714433 | AN52: -10.11578035
B53: Sabik | C53: =(17+10/60+20/3600) -> 17.17222222 | D53: =-15-43.4/60 -> -15.72333333 | E53: =MOD(360-(C53+((3.075+1.336*SIN(RADIANS(C53))*TAN(RADIANS(D53)))*(OBSERVATIONS!$U$35-36526)/365)/3600)*15,360) -> 102.1240948 | F53: =D53+(20.04*COS(RADIANS(C53*15))*(OBSERVATIONS!$U$35-36526)/365)/3600 -> -15.75168937 | G53: =-17.3*SIN(RADIANS(125-0.05295*(OBSERVATIONS!$U$35-2451545)))-1.4*SIN(RADIANS(200+1.97129*(OBSERVATIONS!$U$35-2451545))) -> -15.50721343 | H53: =9.4*COS(RADIANS(125-0.05295*(OBSERVATIONS!$U$35-2451545)))+0.7*COS(RADIANS(200+1.97129*(OBSERVATIONS!$U$35-2451545))) -> -2.104130078 | I53: 102.1260194 | J53: -15.75149349 | O53: Peacock | P53: 0 | Y53: =MOD(V$4+OBSERVATIONS!$AO$13+I46,360) -> 45.52493008 | Z53: 45.52493008 | AA53: -56.65963705 | AB53: 0 | AC53: =ABS(TAN(RADIANS(ABS(OBSERVATIONS!$AO$12)))/TAN(RADIANS(ABS(Z53)))) -> 1.432513866 | AD53: =IF(AB53=0,IF(OBSERVATIONS!$AY$35="N",-AC53,AC53),IF(OBSERVATIONS!$AY$35="N",AC53,-AC53)) -> -1.432513866 | AE53: -2.130205998 | AF53: -3.562719864 | AG53: =ABS(DEGREES(ATAN(1/(COS(RADIANS(ABS(OBSERVATIONS!$AO$12)))*AF53)))) -> 26.40339653 | AH53: 206.4033965 | AI53: =AA53-OBSERVATIONS!$AO$12 -> -112.2329704 | AJ53: =DEGREES(ASIN(SIN(RADIANS(OBSERVATIONS!$AO$12))*SIN(RADIANS(AA53))+COS(RADIANS(OBSERVATIONS!$AO$12))*COS(RADIANS(AA53))*COS(RADIANS(Y53)))) -> -28.1255008 | AK53: -28.1255008 | AL53: Peacock | AM53: 206.4033965 | AN53: -28.1255008
B54: Schedar | C54: =(0+40/60+30/3600) -> 0.675 | D54: =56+32.4/60 -> 56.54 | E54: =MOD(360-(C54+((3.075+1.336*SIN(RADIANS(C54))*TAN(RADIANS(D54)))*(OBSERVATIONS!$U$35-36526)/365)/3600)*15,360) -> 349.5691158 | F54: =D54+(20.04*COS(RADIANS(C54*15))*(OBSERVATIONS!$U$35-36526)/365)/3600 -> 56.66982285 | G54: =-17.3*SIN(RADIANS(125-0.05295*(OBSERVATIONS!$U$35-2451545)))-1.4*SIN(RADIANS(200+1.97129*(OBSERVATIONS!$U$35-2451545))) -> -15.50721343 | H54: =9.4*COS(RADIANS(125-0.05295*(OBSERVATIONS!$U$35-2451545)))+0.7*COS(RADIANS(200+1.97129*(OBSERVATIONS!$U$35-2451545))) -> -2.104130078 | I54: 349.5697885 | J54: 56.6681291 | O54: Pollux | P54: 0 | Y54: =MOD(V$4+OBSERVATIONS!$AO$13+I47,360) -> 235.5050338 | Z54: 124.4949662 | AA54: 27.96718174 | AB54: 1 | AC54: =ABS(TAN(RADIANS(ABS(OBSERVATIONS!$AO$12)))/TAN(RADIANS(ABS(Z54)))) -> 1.002558333 | AD54: =IF(AB54=0,IF(OBSERVATIONS!$AY$35="N",-AC54,AC54),IF(OBSERVATIONS!$AY$35="N",AC54,-AC54)) -> 1.002558333 | AE54: 0.6442494891 | AF54: 1.646807822 | AG54: =ABS(DEGREES(ATAN(1/(COS(RADIANS(ABS(OBSERVATIONS!$AO$12)))*AF54)))) -> 47.04571809 | AH54: 47.04571809 | AI54: =AA54-OBSERVATIONS!$AO$12 -> -27.60615159 | AJ54: =DEGREES(ASIN(SIN(RADIANS(OBSERVATIONS!$AO$12))*SIN(RADIANS(AA54))+COS(RADIANS(OBSERVATIONS!$AO$12))*COS(RADIANS(AA54))*COS(RADIANS(Y54)))) -> 5.971900802 | AK54: 5.971900802 | AL54: Pollux | AM54: 47.04571809 | AN54: 5.971900802
B55: Shaula | C55: =(17+33/60+34/3600) -> 17.55944444 | D55: =-37-6.1/60 -> -37.10166667 | E55: =MOD(360-(C55+((3.075+1.336*SIN(RADIANS(C55))*TAN(RADIANS(D55)))*(OBSERVATIONS!$U$35-36526)/365)/3600)*15,360) -> 96.33489208 | F55: =D55+(20.04*COS(RADIANS(C55*15))*(OBSERVATIONS!$U$35-36526)/365)/3600 -> -37.11684324 | G55: =-17.3*SIN(RADIANS(125-0.05295*(OBSERVATIONS!$U$35-2451545)))-1.4*SIN(RADIANS(200+1.97129*(OBSERVATIONS!$U$35-2451545))) -> -15.50721343 | H55: =9.4*COS(RADIANS(125-0.05295*(OBSERVATIONS!$U$35-2451545)))+0.7*COS(RADIANS(200+1.97129*(OBSERVATIONS!$U$35-2451545))) -> -2.104130078 | I55: 96.3346339 | J55: -37.11682238 | O55: Procyon | P55: 0 | Y55: =MOD(V$4+OBSERVATIONS!$AO$13+I48,360) -> 237.0183815 | Z55: 122.9816185 | AA55: 5.170264825 | AB55: 1 | AC55: =ABS(TAN(RADIANS(ABS(OBSERVATIONS!$AO$12)))/TAN(RADIANS(ABS(Z55)))) -> 0.9468242453 | AD55: =IF(AB55=0,IF(OBSERVATIONS!$AY$35="N",-AC55,AC55),IF(OBSERVATIONS!$AY$35="N",AC55,-AC55)) -> 0.9468242453 | AE55: 0.1078671881 | AF55: 1.054691433 | AG55: =ABS(DEGREES(ATAN(1/(COS(RADIANS(ABS(OBSERVATIONS!$AO$12)))*AF55)))) -> 59.19360944 | AH55: 59.19360944 | AI55: =AA55-OBSERVATIONS!$AO$12 -> -50.40306851 | AJ55: =DEGREES(ASIN(SIN(RADIANS(OBSERVATIONS!$AO$12))*SIN(RADIANS(AA55))+COS(RADIANS(OBSERVATIONS!$AO$12))*COS(RADIANS(AA55))*COS(RADIANS(Y55)))) -> -13.42520961 | AK55: -13.42520961 | AL55: Procyon | AM55: 59.19360944 | AN55: -13.42520961
B56: Sirius | C56: =(6+45/60+10/3600) -> 6.752777778 | D56: =-16-42.9/60 -> -16.715 | E56: =MOD(360-(C56+((3.075+1.336*SIN(RADIANS(C56))*TAN(RADIANS(D56)))*(OBSERVATIONS!$U$35-36526)/365)/3600)*15,360) -> 258.4094566 | F56: =D56+(20.04*COS(RADIANS(C56*15))*(OBSERVATIONS!$U$35-36526)/365)/3600 -> -16.74082191 | G56: =-17.3*SIN(RADIANS(125-0.05295*(OBSERVATIONS!$U$35-2451545)))-1.4*SIN(RADIANS(200+1.97129*(OBSERVATIONS!$U$35-2451545))) -> -15.50721343 | H56: =9.4*COS(RADIANS(125-0.05295*(OBSERVATIONS!$U$35-2451545)))+0.7*COS(RADIANS(200+1.97129*(OBSERVATIONS!$U$35-2451545))) -> -2.104130078 | I56: 258.4106134 | J56: -16.74055511 | O56: Rasalhague | P56: 0 | Y56: =MOD(V$4+OBSERVATIONS!$AO$13+I49,360) -> 88.11413378 | Z56: 88.11413378 | AA56: 12.54726321 | AB56: 0 | AC56: =ABS(TAN(RADIANS(ABS(OBSERVATIONS!$AO$12)))/TAN(RADIANS(ABS(Z56)))) -> 0.04803991211 | AD56: =IF(AB56=0,IF(OBSERVATIONS!$AY$35="N",-AC56,AC56),IF(OBSERVATIONS!$AY$35="N",AC56,-AC56)) -> -0.04803991211 | AE56: 0.2226808743 | AF56: 0.1746409622 | AG56: =ABS(DEGREES(ATAN(1/(COS(RADIANS(ABS(OBSERVATIONS!$AO$12)))*AF56)))) -> 84.36126605 | AH56: 275.6387339 | AI56: =AA56-OBSERVATIONS!$AO$12 -> -43.02607012 | AJ56: =DEGREES(ASIN(SIN(RADIANS(OBSERVATIONS!$AO$12))*SIN(RADIANS(AA56))+COS(RADIANS(OBSERVATIONS!$AO$12))*COS(RADIANS(AA56))*COS(RADIANS(Y56)))) -> 11.3823368 | AK56: 11.3823368 | AL56: Rasalhague | AM56: 275.6387339 | AN56: 11.3823368
B57: Spica | C57: =(13+25/60+11/3600) -> 13.41972222 | D57: =-11-9.5/60 -> -11.15833333 | E57: =MOD(360-(C57+((3.075+1.336*SIN(RADIANS(C57))*TAN(RADIANS(D57)))*(OBSERVATIONS!$U$35-36526)/365)/3600)*15,360) -> 158.4066704 | F57: =D57+(20.04*COS(RADIANS(C57*15))*(OBSERVATIONS!$U$35-36526)/365)/3600 -> -11.28120511 | G57: =-17.3*SIN(RADIANS(125-0.05295*(OBSERVATIONS!$U$35-2451545)))-1.4*SIN(RADIANS(200+1.97129*(OBSERVATIONS!$U$35-2451545))) -> -15.50721343 | H57: =9.4*COS(RADIANS(125-0.05295*(OBSERVATIONS!$U$35-2451545)))+0.7*COS(RADIANS(200+1.97129*(OBSERVATIONS!$U$35-2451545))) -> -2.104130078 | I57: 158.4081273 | J57: -11.27974421 | O57: Regulus | P57: 0 | Y57: =MOD(V$4+OBSERVATIONS!$AO$13+I50,360) -> 199.7518787 | Z57: 160.2481213 | AA57: 11.85153898 | AB57: 1 | AC57: =ABS(TAN(RADIANS(ABS(OBSERVATIONS!$AO$12)))/TAN(RADIANS(ABS(Z57)))) -> 4.063249421 | AD57: =IF(AB57=0,IF(OBSERVATIONS!$AY$35="N",-AC57,AC57),IF(OBSERVATIONS!$AY$35="N",AC57,-AC57)) -> 4.063249421 | AE57: 0.6209538354 | AF57: 4.684203257 | AG57: =ABS(DEGREES(ATAN(1/(COS(RADIANS(ABS(OBSERVATIONS!$AO$12)))*AF57)))) -> 20.68715307 | AH57: 20.68715307 | AI57: =AA57-OBSERVATIONS!$AO$12 -> -43.72179435 | AJ57: =DEGREES(ASIN(SIN(RADIANS(OBSERVATIONS!$AO$12))*SIN(RADIANS(AA57))+COS(RADIANS(OBSERVATIONS!$AO$12))*COS(RADIANS(AA57))*COS(RADIANS(Y57)))) -> -20.5693654 | AK57: -20.5693654 | AL57: Regulus | AM57: 20.68715307 | AN57: -20.5693654
B58: Suhail | C58: =(9+8/60+1/3600) -> 9.133611111 | D58: =-43-25.8/60 -> -43.43 | E58: =MOD(360-(C58+((3.075+1.336*SIN(RADIANS(C58))*TAN(RADIANS(D58)))*(OBSERVATIONS!$U$35-36526)/365)/3600)*15,360) -> 222.7121168 | F58: =D58+(20.04*COS(RADIANS(C58*15))*(OBSERVATIONS!$U$35-36526)/365)/3600 -> -43.526455 | G58: =-17.3*SIN(RADIANS(125-0.05295*(OBSERVATIONS!$U$35-2451545)))-1.4*SIN(RADIANS(200+1.97129*(OBSERVATIONS!$U$35-2451545))) -> -15.50721343 | H58: =9.4*COS(RADIANS(125-0.05295*(OBSERVATIONS!$U$35-2451545)))+0.7*COS(RADIANS(200+1.97129*(OBSERVATIONS!$U$35-2451545))) -> -2.104130078 | I58: 222.7140948 | J58: -43.52529448 | O58: Rigel | P58: 0 | Y58: =MOD(V$4+OBSERVATIONS!$AO$13+I51,360) -> 273.2140472 | Z58: 86.7859528 | AA58: -8.179409234 | AB58: 0 | AC58: =ABS(TAN(RADIANS(ABS(OBSERVATIONS!$AO$12)))/TAN(RADIANS(ABS(Z58)))) -> 0.08192992738 | AD58: =IF(AB58=0,IF(OBSERVATIONS!$AY$35="N",-AC58,AC58),IF(OBSERVATIONS!$AY$35="N",AC58,-AC58)) -> -0.08192992738 | AE58: -0.143961826 | AF58: -0.2258917534 | AG58: =ABS(DEGREES(ATAN(1/(COS(RADIANS(ABS(OBSERVATIONS!$AO$12)))*AF58)))) -> 82.72225813 | AH58: 97.27774187 | AI58: =AA58-OBSERVATIONS!$AO$12 -> -63.75274257 | AJ58: =DEGREES(ASIN(SIN(RADIANS(OBSERVATIONS!$AO$12))*SIN(RADIANS(AA58))+COS(RADIANS(OBSERVATIONS!$AO$12))*COS(RADIANS(AA58))*COS(RADIANS(Y58)))) -> -4.932348993 | AK58: -4.932348993 | AL58: Rigel | AM58: 97.27774187 | AN58: -4.932348993
B59: Vega | C59: =(18+36/60+54/3600) -> 18.615 | D59: =38+47/60 -> 38.78333333 | E59: =MOD(360-(C59+((3.075+1.336*SIN(RADIANS(C59))*TAN(RADIANS(D59)))*(OBSERVATIONS!$U$35-36526)/365)/3600)*15,360) -> 80.43764072 | F59: =D59+(20.04*COS(RADIANS(C59*15))*(OBSERVATIONS!$U$35-36526)/365)/3600 -> 38.80447472 | G59: =-17.3*SIN(RADIANS(125-0.05295*(OBSERVATIONS!$U$35-2451545)))-1.4*SIN(RADIANS(200+1.97129*(OBSERVATIONS!$U$35-2451545))) -> -15.50721343 | H59: =9.4*COS(RADIANS(125-0.05295*(OBSERVATIONS!$U$35-2451545)))+0.7*COS(RADIANS(200+1.97129*(OBSERVATIONS!$U$35-2451545))) -> -2.104130078 | I59: 80.43916911 | J59: 38.80401345 | O59: Rigil Kent | P59: 0 | Y59: =MOD(V$4+OBSERVATIONS!$AO$13+I52,360) -> 132.0068765 | Z59: 132.0068765 | AA59: -60.92999843 | AB59: 1 | AC59: =ABS(TAN(RADIANS(ABS(OBSERVATIONS!$AO$12)))/TAN(RADIANS(ABS(Z59)))) -> 1.314012018 | AD59: =IF(AB59=0,IF(OBSERVATIONS!$AY$35="N",-AC59,AC59),IF(OBSERVATIONS!$AY$35="N",AC59,-AC59)) -> 1.314012018 | AE59: -2.420868008 | AF59: -1.10685599 | AG59: =ABS(DEGREES(ATAN(1/(COS(RADIANS(ABS(OBSERVATIONS!$AO$12)))*AF59)))) -> 57.96322772 | AH59: 237.9632277 | AI59: =AA59-OBSERVATIONS!$AO$12 -> -116.5033318 | AJ59: =DEGREES(ASIN(SIN(RADIANS(OBSERVATIONS!$AO$12))*SIN(RADIANS(AA59))+COS(RADIANS(OBSERVATIONS!$AO$12))*COS(RADIANS(AA59))*COS(RADIANS(Y59)))) -> -64.79237015 | AK59: -64.79237015 | AL59: Rigil Kent | AM59: 237.9632277 | AN59: -64.79237015
B60: Zuben'ubi | C60: =(14+50/60+51/3600) -> 14.8475 | D60: =-16-2.3/60 -> -16.03833333 | E60: =MOD(360-(C60+((3.075+1.336*SIN(RADIANS(C60))*TAN(RADIANS(D60)))*(OBSERVATIONS!$U$35-36526)/365)/3600)*15,360) -> 136.9936811 | F60: =D60+(20.04*COS(RADIANS(C60*15))*(OBSERVATIONS!$U$35-36526)/365)/3600 -> -16.13523187 | G60: =-17.3*SIN(RADIANS(125-0.05295*(OBSERVATIONS!$U$35-2451545)))-1.4*SIN(RADIANS(200+1.97129*(OBSERVATIONS!$U$35-2451545))) -> -15.50721343 | H60: =9.4*COS(RADIANS(125-0.05295*(OBSERVATIONS!$U$35-2451545)))+0.7*COS(RADIANS(200+1.97129*(OBSERVATIONS!$U$35-2451545))) -> -2.104130078 | I60: 136.9955998 | J60: -16.13412259 | O60: Sabik | P60: 0 | Y60: =MOD(V$4+OBSERVATIONS!$AO$13+I53,360) -> 94.27878737 | Z60: 94.27878737 | AA60: -15.75149349 | AB60: 1 | AC60: =ABS(TAN(RADIANS(ABS(OBSERVATIONS!$AO$12)))/TAN(RADIANS(ABS(Z60)))) -> 0.1091600062 | AD60: =IF(AB60=0,IF(OBSERVATIONS!$AY$35="N",-AC60,AC60),IF(OBSERVATIONS!$AY$35="N",AC60,-AC60)) -> 0.1091600062 | AE60: -0.2828456485 | AF60: -0.1736856423 | AG60: =ABS(DEGREES(ATAN(1/(COS(RADIANS(ABS(OBSERVATIONS!$AO$12)))*AF60)))) -> 84.39191386 | AH60: 264.3919139 | AI60: =AA60-OBSERVATIONS!$AO$12 -> -71.32482682 | AJ60: =DEGREES(ASIN(SIN(RADIANS(OBSERVATIONS!$AO$12))*SIN(RADIANS(AA60))+COS(RADIANS(OBSERVATIONS!$AO$12))*COS(RADIANS(AA60))*COS(RADIANS(Y60)))) -> -15.33814123 | AK60: -15.33814123 | AL60: Sabik | AM60: 264.3919139 | AN60: -15.33814123
O61: Saturnus | P61: 1 | Q61: =IK4 -> 9.528253186 | R61: =IK5 -> 11.09123663 | S61: =IK6 -> 22.06492728 | T61: =IJ4 -> -11.98060166 | U61: =IJ5 -> -13.2257473 | V61: =IJ6 -> -11.98156027 | Y61: =MOD(Q61+OBSERVATIONS!$AO$13,360) -> 16.31158652 | Z61: 16.31158652 | AA61: =T61 -> -11.98060166 | AB61: 0 | AC61: =ABS(TAN(RADIANS(ABS(OBSERVATIONS!$AO$12)))/TAN(RADIANS(ABS(Z61)))) -> 4.98566858 | AD61: =IF(AB61=0,IF(OBSERVATIONS!$AY$35="N",-AC61,AC61),IF(OBSERVATIONS!$AY$35="N",AC61,-AC61)) -> -4.98566858 | AE61: -0.7555441251 | AF61: -5.741212706 | AG61: =ABS(DEGREES(ATAN(1/(COS(RADIANS(ABS(OBSERVATIONS!$AO$12)))*AF61)))) -> 17.12356509 | AH61: 197.1235651 | AI61: =AA61-OBSERVATIONS!$AO$12 -> -67.55393499 | AJ61: =DEGREES(ASIN(SIN(RADIANS(OBSERVATIONS!$AO$12))*SIN(RADIANS(AA61))+COS(RADIANS(OBSERVATIONS!$AO$12))*COS(RADIANS(AA61))*COS(RADIANS(Y61)))) -> 21.07274902 | AK61: 21.07274902 | AL61: Saturnus | AM61: 197.1235651 | AN61: 21.07274902
O62: Schedar | P62: 0 | Y62: =MOD(V$4+OBSERVATIONS!$AO$13+I54,360) -> 341.7225565 | Z62: 18.27744349 | AA62: =J54 -> 56.6681291 | AB62: 0 | AC62: =ABS(TAN(RADIANS(ABS(OBSERVATIONS!$AO$12)))/TAN(RADIANS(ABS(Z62)))) -> 4.417459543 | AD62: =IF(AB62=0,IF(OBSERVATIONS!$AY$35="N",-AC62,AC62),IF(OBSERVATIONS!$AY$35="N",AC62,-AC62)) -> -4.417459543 | AE62: 4.848278742 | AF62: 0.4308191997 | AG62: =ABS(DEGREES(ATAN(1/(COS(RADIANS(ABS(OBSERVATIONS!$AO$12)))*AF62)))) -> 76.31133999 | AH62: 76.31133999 | AI62: =AA62-OBSERVATIONS!$AO$12 -> 1.094795769 | AJ62: =DEGREES(ASIN(SIN(RADIANS(OBSERVATIONS!$AO$12))*SIN(RADIANS(AA62))+COS(RADIANS(OBSERVATIONS!$AO$12))*COS(RADIANS(AA62))*COS(RADIANS(Y62)))) -> 79.78353667 | AK62: 79.78353667 | AL62: Schedar | AM62: 76.31133999 | AN62: 79.78353667
O63: Shaula | P63: 0 | Y63: =MOD(V$4+OBSERVATIONS!$AO$13+I55,360) -> 88.48740187 | Z63: 88.48740187 | AA63: =J55 -> -37.11682238 | AB63: 0 | AC63: =ABS(TAN(RADIANS(ABS(OBSERVATIONS!$AO$12)))/TAN(RADIANS(ABS(Z63)))) -> 0.03852644354 | AD63: =IF(AB63=0,IF(OBSERVATIONS!$AY$35="N",-AC63,AC63),IF(OBSERVATIONS!$AY$35="N",AC63,-AC63)) -> -0.03852644354 | AE63: -0.7570194926 | AF63: -0.7955459361 | AG63: =ABS(DEGREES(ATAN(1/(COS(RADIANS(ABS(OBSERVATIONS!$AO$12)))*AF63)))) -> 65.78356405 | AH63: 245.7835641 | AI63: =AA63-OBSERVATIONS!$AO$12 -> -92.69015571 | AJ63: =DEGREES(ASIN(SIN(RADIANS(OBSERVATIONS!$AO$12))*SIN(RADIANS(AA63))+COS(RADIANS(OBSERVATIONS!$AO$12))*COS(RADIANS(AA63))*COS(RADIANS(Y63)))) -> -29.06814314 | AK63: -29.06814314 | AL63: Shaula | AM63: 245.7835641 | AN63: -29.06814314
O64: Sirius | P64: 0 | Y64: =MOD(V$4+OBSERVATIONS!$AO$13+I56,360) -> 250.5633814 | Z64: 109.4366186 | AA64: =J56 -> -16.74055511 | AB64: 1 | AC64: =ABS(TAN(RADIANS(ABS(OBSERVATIONS!$AO$12)))/TAN(RADIANS(ABS(Z64)))) -> 0.5148454724 | AD64: =IF(AB64=0,IF(OBSERVATIONS!$AY$35="N",-AC64,AC64),IF(OBSERVATIONS!$AY$35="N",AC64,-AC64)) -> 0.5148454724 | AE64: -0.3189637606 | AF64: 0.1958817118 | AG64: =ABS(DEGREES(ATAN(1/(COS(RADIANS(ABS(OBSERVATIONS!$AO$12)))*AF64)))) -> 83.68070449 | AH64: 83.68070449 | AI64: =AA64-OBSERVATIONS!$AO$12 -> -72.31388845 | AJ64: =DEGREES(ASIN(SIN(RADIANS(OBSERVATIONS!$AO$12))*SIN(RADIANS(AA64))+COS(RADIANS(OBSERVATIONS!$AO$12))*COS(RADIANS(AA64))*COS(RADIANS(Y64)))) -> -24.69223285 | AK64: -24.69223285 | AL64: Sirius | AM64: 83.68070449 | AN64: -24.69223285
O65: Spica | P65: 0 | Y65: =MOD(V$4+OBSERVATIONS!$AO$13+I57,360) -> 150.5608953 | Z65: 150.5608953 | AA65: =J57 -> -11.27974421 | AB65: 1 | AC65: =ABS(TAN(RADIANS(ABS(OBSERVATIONS!$AO$12)))/TAN(RADIANS(ABS(Z65)))) -> 2.585191436 | AD65: =IF(AB65=0,IF(OBSERVATIONS!$AY$35="N",-AC65,AC65),IF(OBSERVATIONS!$AY$35="N",AC65,-AC65)) -> 2.585191436 | AE65: -0.4058042905 | AF65: 2.179387145 | AG65: =ABS(DEGREES(ATAN(1/(COS(RADIANS(ABS(OBSERVATIONS!$AO$12)))*AF65)))) -> 39.06313512 | AH65: 320.9368649 | AI65: =AA65-OBSERVATIONS!$AO$12 -> -66.85307755 | AJ65: =DEGREES(ASIN(SIN(RADIANS(OBSERVATIONS!$AO$12))*SIN(RADIANS(AA65))+COS(RADIANS(OBSERVATIONS!$AO$12))*COS(RADIANS(AA65))*COS(RADIANS(Y65)))) -> -40.10437256 | AK65: -40.10437256 | AL65: Spica | AM65: 320.9368649 | AN65: -40.10437256
O66: Suhail | P66: 0 | Y66: =MOD(V$4+OBSERVATIONS!$AO$13+I58,360) -> 214.8668628 | Z66: 145.1331372 | AA66: =J58 -> -43.52529448 | AB66: 1 | AC66: =ABS(TAN(RADIANS(ABS(OBSERVATIONS!$AO$12)))/TAN(RADIANS(ABS(Z66)))) -> 2.09401594 | AD66: =IF(AB66=0,IF(OBSERVATIONS!$AY$35="N",-AC66,AC66),IF(OBSERVATIONS!$AY$35="N",AC66,-AC66)) -> 2.09401594 | AE66: -1.661450764 | AF66: 0.4325651757 | AG66: =ABS(DEGREES(ATAN(1/(COS(RADIANS(ABS(OBSERVATIONS!$AO$12)))*AF66)))) -> 76.25796329 | AH66: 76.25796329 | AI66: =AA66-OBSERVATIONS!$AO$12 -> -99.09862781 | AJ66: =DEGREES(ASIN(SIN(RADIANS(OBSERVATIONS!$AO$12))*SIN(RADIANS(AA66))+COS(RADIANS(OBSERVATIONS!$AO$12))*COS(RADIANS(AA66))*COS(RADIANS(Y66)))) -> -64.74062198 | AK66: -64.74062198 | AL66: Suhail | AM66: 76.25796329 | AN66: -64.74062198
O67: Vega | P67: 0 | Y67: =MOD(V$4+OBSERVATIONS!$AO$13+I59,360) -> 72.59193707 | Z67: 72.59193707 | AA67: =J59 -> 38.80401345 | AB67: 0 | AC67: =ABS(TAN(RADIANS(ABS(OBSERVATIONS!$AO$12)))/TAN(RADIANS(ABS(Z67)))) -> 0.4574502613 | AD67: =IF(AB67=0,IF(OBSERVATIONS!$AY$35="N",-AC67,AC67),IF(OBSERVATIONS!$AY$35="N",AC67,-AC67)) -> -0.4574502613 | AE67: 0.8427347155 | AF67: 0.3852844542 | AG67: =ABS(DEGREES(ATAN(1/(COS(RADIANS(ABS(OBSERVATIONS!$AO$12)))*AF67)))) -> 77.71172296 | AH67: 282.288277 | AI67: =AA67-OBSERVATIONS!$AO$12 -> -16.76931988 | AJ67: =DEGREES(ASIN(SIN(RADIANS(OBSERVATIONS!$AO$12))*SIN(RADIANS(AA67))+COS(RADIANS(OBSERVATIONS!$AO$12))*COS(RADIANS(AA67))*COS(RADIANS(Y67)))) -> 40.44429342 | AK67: 40.44429342 | AL67: Vega | AM67: 282.288277 | AN67: 40.44429342
O68: Venus | P68: 1 | Q68: =FQ4 -> 212.6858544 | R68: =FQ5 -> 35.94050615 | S68: =FQ6 -> 225.2188608 | T68: =FP4 -> 10.38085637 | U68: =FP5 -> -21.09503555 | V68: =FP6 -> 10.3852258 | Y68: =MOD(Q68+OBSERVATIONS!$AO$13,360) -> 219.4691877 | Z68: 140.5308123 | AA68: =T68 -> 10.38085637 | AB68: 1 | AC68: =ABS(TAN(RADIANS(ABS(OBSERVATIONS!$AO$12)))/TAN(RADIANS(ABS(Z68)))) -> 1.771856354 | AD68: =IF(AB68=0,IF(OBSERVATIONS!$AY$35="N",-AC68,AC68),IF(OBSERVATIONS!$AY$35="N",AC68,-AC68)) -> 1.771856354 | AE68: 0.2881856319 | AF68: 2.060041986 | AG68: =ABS(DEGREES(ATAN(1/(COS(RADIANS(ABS(OBSERVATIONS!$AO$12)))*AF68)))) -> 40.6503603 | AH68: 40.6503603 | AI68: =AA68-OBSERVATIONS!$AO$12 -> -45.19247696 | AJ68: =DEGREES(ASIN(SIN(RADIANS(OBSERVATIONS!$AO$12))*SIN(RADIANS(AA68))+COS(RADIANS(OBSERVATIONS!$AO$12))*COS(RADIANS(AA68))*COS(RADIANS(Y68)))) -> -16.29949036 | AK68: -16.29949036 | AL68: Venus | AM68: 40.6503603 | AN68: -16.29949036
O69: Zuben'ubi | P69: 0 | Y69: =MOD(V$4+OBSERVATIONS!$AO$13+I60,360) -> 129.1483678 | Z69: 129.1483678 | AA69: =J60 -> -16.13412259 | AB69: 1 | AC69: =ABS(TAN(RADIANS(ABS(OBSERVATIONS!$AO$12)))/TAN(RADIANS(ABS(Z69)))) -> 1.187748532 | AD69: =IF(AB69=0,IF(OBSERVATIONS!$AY$35="N",-AC69,AC69),IF(OBSERVATIONS!$AY$35="N",AC69,-AC69)) -> 1.187748532 | AE69: -0.3730178282 | AF69: 0.8147307035 | AG69: =ABS(DEGREES(ATAN(1/(COS(RADIANS(ABS(OBSERVATIONS!$AO$12)))*AF69)))) -> 65.26878707 | AH69: 294.7312129 | AI69: =AA69-OBSERVATIONS!$AO$12 -> -71.70745592 | AJ69: =DEGREES(ASIN(SIN(RADIANS(OBSERVATIONS!$AO$12))*SIN(RADIANS(AA69))+COS(RADIANS(OBSERVATIONS!$AO$12))*COS(RADIANS(AA69))*COS(RADIANS(Y69)))) -> -34.89544221 | AK69: -34.89544221 | AL69: Zuben'ubi | AM69: 294.7312129 | AN69: -34.89544221
O70: Aries | Q70: =V4 -> 345.3694346 | R70: =V5 -> 342.86259 | S70: =V6 -> 357.9036576

Sheet OBSERVATIONS
A1: 0
B7: OBJECTS | G7: /v | J7: Height | P7: Azimuth: | U7: =AN42 -> Altair
AE8: =DEGREES(ASIN(SIN(RADIANS(AO12))*SIN(RADIANS(AC22))+COS(RADIANS(AO12))*COS(RADIANS(AC22))*COS(RADIANS(AD19)))) -> 27.07034361
B9: Sun | G9: =IF('TABLE (observations)'!AK7<0,"",'TABLE (observations)'!AH7) ->  | J9: =IF('TABLE (observations)'!AK7<0,"",INT(ABS('TABLE (observations)'!AK7))) ->  | L9: =IF('TABLE (observations)'!AK7<0,"",('TABLE (observations)'!AK7-J9)*60) ->  | P9: =IF(AC9<0,-INT(ABS(AC9)),INT(ABS(AC9))) -> 27 | V9: =(ABS(AC9)-ABS(P9))*60 -> 4.22061669 | AC9: =VLOOKUP(U7,'TABLE (observations)'!AL7:AN69,3,FALSE) -> 27.07034361
B10: Moon | G10: =IF('TABLE (observations)'!AK8<0,"",'TABLE (observations)'!AH8) -> 126.7079831 | J10: =IF('TABLE (observations)'!AK8<0,"",INT(ABS('TABLE (observations)'!AK8))) -> 38 | L10: =IF('TABLE (observations)'!AK8<0,"",('TABLE (observations)'!AK8-J10)*60) -> 8.241945547 | P10: Your bearing | U10: =AF42 -> 245
B11: Acamar | G11: =IF('TABLE (observations)'!AK9<0,"",'TABLE (observations)'!AH9) ->  | J11: =IF('TABLE (observations)'!AK9<0,"",INT(ABS('TABLE (observations)'!AK9))) ->  | L11: =IF('TABLE (observations)'!AK9<0,"",('TABLE (observations)'!AK9-J11)*60) -> 
B12: Achernar | G12: =IF('TABLE (observations)'!AK10<0,"",'TABLE (observations)'!AH10) ->  | J12: =IF('TABLE (observations)'!AK10<0,"",INT(ABS('TABLE (observations)'!AK10))) ->  | L12: =IF('TABLE (observations)'!AK10<0,"",('TABLE (observations)'!AK10-J12)*60) ->  | AO12: =IF(AY35="S",-AS35-AV35/60,AS35+AV35/60) -> 55.57333333
B13: Acrux | G13: =IF('TABLE (observations)'!AK11<0,"",'TABLE (observations)'!AH11) ->  | J13: =IF('TABLE (observations)'!AK11<0,"",INT(ABS('TABLE (observations)'!AK11))) ->  | L13: =IF('TABLE (observations)'!AK11<0,"",('TABLE (observations)'!AK11-J13)*60) ->  | P13: =IF('TABLE (observations)'!K7=1,"GHA","GHA Aries") -> GHA Aries | U13: =INT(AC14) -> 342 | W13: =(AC14-U13)*60 -> 51.75540199 | AO13: =IF(AY37="W",-AS37-AV37/60,AS37+AV37/60) -> 6.783333333
B14: Adhara | G14: =IF('TABLE (observations)'!AK12<0,"",'TABLE (observations)'!AH12) ->  | J14: =IF('TABLE (observations)'!AK12<0,"",INT(ABS('TABLE (observations)'!AK12))) ->  | L14: =IF('TABLE (observations)'!AK12<0,"",('TABLE (observations)'!AK12-J14)*60) ->  | P14: Incr. | U14: =INT(AC15) -> 2 | W14: =(AC15-U14)*60 -> 30.41067578 | AC14: =IF('TABLE (observations)'!K7=1,VLOOKUP(U7,'TABLE (observations)'!O7:S69,4,FALSE),'TABLE (observations)'!R70) -> 342.86259
B15: Aldebaran | G15: =IF('TABLE (observations)'!AK13<0,"",'TABLE (observations)'!AH13) -> 90.91478845 | J15: =IF('TABLE (observations)'!AK13<0,"",INT(ABS('TABLE (observations)'!AK13))) -> 20 | L15: =IF('TABLE (observations)'!AK13<0,"",('TABLE (observations)'!AK13-J15)*60) -> 50.0546341 | P15: =IF('TABLE (observations)'!K7=1,"GHA","GHA Aries") -> GHA Aries | U15: =INT(AC16) -> 345 | W15: =(AC16-U15)*60 -> 22.16607777 | AC15: =AC16-AC14 -> 2.506844596 | AH15: =(U37+X37/60+AA37/3600)/24+U35 -> 2023-09-04T00:10:00 | AI15: =AH15+5/24/60 -> 2023-09-04T00:15:00
B16: Alioth | G16: =IF('TABLE (observations)'!AK14<0,"",'TABLE (observations)'!AH14) -> 346.9857015 | J16: =IF('TABLE (observations)'!AK14<0,"",INT(ABS('TABLE (observations)'!AK14))) -> 22 | L16: =IF('TABLE (observations)'!AK14<0,"",('TABLE (observations)'!AK14-J16)*60) -> 47.64063013 | P16: g | U16: =AS37 -> 6 | W16: =AV37 -> 47 | Y16: =AY37 -> E | AC16: =IF('TABLE (observations)'!K7=1,VLOOKUP(U7,'TABLE (observations)'!O7:S69,3,FALSE),'TABLE (observations)'!Q70) -> 345.3694346
B17: Alkaid | G17: =IF('TABLE (observations)'!AK15<0,"",'TABLE (observations)'!AH15) -> 336.6374155 | J17: =IF('TABLE (observations)'!AK15<0,"",INT(ABS('TABLE (observations)'!AK15))) -> 18 | L17: =IF('TABLE (observations)'!AK15<0,"",('TABLE (observations)'!AK15-J17)*60) -> 46.94099736 | P17: =IF('TABLE (observations)'!K7=1,"LHA","LHA Aries") -> LHA Aries | U17: =INT(AC18) -> 352 | W17: =(AC18-U17)*60 -> 9.166077767 | AC17: =AO13 -> 6.783333333 | AH17: =HOUR(AI15) -> 0 | AI17: =MINUTE(AI15) -> 1900-01-15 | AJ17: =SECOND(AI15) -> 0
B18: Al Na'ir | G18: =IF('TABLE (observations)'!AK16<0,"",'TABLE (observations)'!AH16) ->  | J18: =IF('TABLE (observations)'!AK16<0,"",INT(ABS('TABLE (observations)'!AK16))) ->  | L18: =IF('TABLE (observations)'!AK16<0,"",('TABLE (observations)'!AK16-J18)*60) ->  | P18: =IF('TABLE (observations)'!K7=1,"","SHA") -> SHA | U18: =IF('TABLE (observations)'!K7=1,"",INT(AC19)) -> 62 | W18: =IF('TABLE (observations)'!K7=1,"",(AC19-U18)*60) -> 0.06218228834 | AC18: =MOD(AC16+AC17,360) -> 352.152768
B19: Alnilam | G19: =IF('TABLE (observations)'!AK17<0,"",'TABLE (observations)'!AH17) ->  | J19: =IF('TABLE (observations)'!AK17<0,"",INT(ABS('TABLE (observations)'!AK17))) ->  | L19: =IF('TABLE (observations)'!AK17<0,"",('TABLE (observations)'!AK17-J19)*60) ->  | P19: P | U19: =INT(AC20) -> 54 | W19: =(AC20-U19)*60 -> 9.228260056 | Y19: =IF(MOD(AC18+AC19,360)>180,"E","W") -> W | AC19: =IF('TABLE (observations)'!K7=1,0,VLOOKUP(U7,'TABLE (observations)'!B4:I60,8,FALSE)) -> 62.00103637 | AD19: =MOD(AC18+AC19,360) -> 54.15380433
B20: Alphard | G20: =IF('TABLE (observations)'!AK18<0,"",'TABLE (observations)'!AH18) ->  | J20: =IF('TABLE (observations)'!AK18<0,"",INT(ABS('TABLE (observations)'!AK18))) ->  | L20: =IF('TABLE (observations)'!AK18<0,"",('TABLE (observations)'!AK18-J20)*60) ->  | P20: decl. | U20: =INT(ABS(AC22)) -> 8 | W20: =(ABS(AC22)-U20)*60 -> 55.71690199 | Y20: =IF(AC22<0,"S","N") -> N | AC20: =IF(AD19>180,360-AD19,AD19) -> 54.15380433
B21: Alphecca | G21: =IF('TABLE (observations)'!AK19<0,"",'TABLE (observations)'!AH19) -> 307.356124 | J21: =IF('TABLE (observations)'!AK19<0,"",INT(ABS('TABLE (observations)'!AK19))) -> 7 | L21: =IF('TABLE (observations)'!AK19<0,"",('TABLE (observations)'!AK19-J21)*60) -> 32.58540757 | P21: d | U21: =INT(ABS(AC23)) -> 0 | W21: =(ABS(AC23)-U21)*60 -> 0 | Y21: =IF(AC23<0,"S","N") -> N
B22: Alpheratz | G22: =IF('TABLE (observations)'!AK20<0,"",'TABLE (observations)'!AH20) -> 160.2583453 | J22: =IF('TABLE (observations)'!AK20<0,"",INT(ABS('TABLE (observations)'!AK20))) -> 62 | L22: =IF('TABLE (observations)'!AK20<0,"",('TABLE (observations)'!AK20-J22)*60) -> 39.06173347 | P22: decl. | U22: =INT(ABS(AC24)) -> 8 | W22: =(ABS(AC24)-U22)*60 -> 55.71690199 | Y22: =IF(AC24<0,"S","N") -> N | AC22: =IF('TABLE (observations)'!K7=1,VLOOKUP(U7,'TABLE (observations)'!O7:V69,7,FALSE),VLOOKUP(U7,'TABLE (observations)'!B4:J60,9,FALSE)) -> 8.928615033
B23: Altair | G23: =IF('TABLE (observations)'!AK21<0,"",'TABLE (observations)'!AH21) -> 244.0646246 | J23: =IF('TABLE (observations)'!AK21<0,"",INT(ABS('TABLE (observations)'!AK21))) -> 27 | L23: =IF('TABLE (observations)'!AK21<0,"",('TABLE (observations)'!AK21-J23)*60) -> 4.22061669 | AC23: =AC24-AC22 -> 0
B24: Ankaa | G24: =IF('TABLE (observations)'!AK22<0,"",'TABLE (observations)'!AH22) ->  | J24: =IF('TABLE (observations)'!AK22<0,"",INT(ABS('TABLE (observations)'!AK22))) ->  | L24: =IF('TABLE (observations)'!AK22<0,"",('TABLE (observations)'!AK22-J24)*60) ->  | P24: A | U24: =ABS(AC27) -> 1.054057604 | W24: =IF(AC27<0,"S","N") -> S | AC24: =IF('TABLE (observations)'!K7=1,VLOOKUP(U7,'TABLE (observations)'!O7:V69,6,FALSE),VLOOKUP(U7,'TABLE (observations)'!B4:J60,9,FALSE)) -> 8.928615033
B25: Antares | G25: =IF('TABLE (observations)'!AK23<0,"",'TABLE (observations)'!AH23) ->  | J25: =IF('TABLE (observations)'!AK23<0,"",INT(ABS('TABLE (observations)'!AK23))) ->  | L25: =IF('TABLE (observations)'!AK23<0,"",('TABLE (observations)'!AK23-J25)*60) ->  | P25: B | U25: =ABS(AC28) -> 0.1938182828 | W25: =IF(AC28<0,"S","N") -> N
B26: Arcturus | G26: =IF('TABLE (observations)'!AK24<0,"",'TABLE (observations)'!AH24) ->  | J26: =IF('TABLE (observations)'!AK24<0,"",INT(ABS('TABLE (observations)'!AK24))) ->  | L26: =IF('TABLE (observations)'!AK24<0,"",('TABLE (observations)'!AK24-J26)*60) ->  | P26: C | U26: =ABS(AC29) -> 0.8602393214 | W26: =IF(AC29<0,"S","N") -> S | AC26: =IF(AD19>90,IF(AD19<270,1,0),0) -> 0 | AD26: =ABS(TAN(RADIANS(ABS(AO12)))/TAN(RADIANS(ABS(AC20)))) -> 1.054057604
B27: Atria | G27: =IF('TABLE (observations)'!AK25<0,"",'TABLE (observations)'!AH25) ->  | J27: =IF('TABLE (observations)'!AK25<0,"",INT(ABS('TABLE (observations)'!AK25))) ->  | L27: =IF('TABLE (observations)'!AK25<0,"",('TABLE (observations)'!AK25-J27)*60) ->  | P27: Z | U27: =W26 -> S | V27: =AC30 -> 64.06462459 | X27: =Y19 -> W | AC27: =IF(AC26=0,IF(AY35="N",-AD26,AD26),IF(AY35="N",AD26,-AD26)) -> -1.054057604
B28: Avior | G28: =IF('TABLE (observations)'!AK26<0,"",'TABLE (observations)'!AH26) ->  | J28: =IF('TABLE (observations)'!AK26<0,"",INT(ABS('TABLE (observations)'!AK26))) ->  | L28: =IF('TABLE (observations)'!AK26<0,"",('TABLE (observations)'!AK26-J28)*60) ->  | AC28: =IF(Y22="N",ABS(TAN(RADIANS(AC24))/SIN(RADIANS(AD19))),-ABS(TAN(RADIANS(AC24))/SIN(RADIANS(AD19)))) -> 0.1938182828
B29: Bellatrix | G29: =IF('TABLE (observations)'!AK27<0,"",'TABLE (observations)'!AH27) -> 86.8535887 | J29: =IF('TABLE (observations)'!AK27<0,"",INT(ABS('TABLE (observations)'!AK27))) -> 5 | L29: =IF('TABLE (observations)'!AK27<0,"",('TABLE (observations)'!AK27-J29)*60) -> 34.06650923 | AC29: =AC27+AC28 -> -0.8602393214
B30: Betelgeuse | G30: =IF('TABLE (observations)'!AK28<0,"",'TABLE (observations)'!AH28) -> 80.09750377 | J30: =IF('TABLE (observations)'!AK28<0,"",INT(ABS('TABLE (observations)'!AK28))) -> 2 | L30: =IF('TABLE (observations)'!AK28<0,"",('TABLE (observations)'!AK28-J30)*60) -> 12.4665319 | AC30: =ABS(DEGREES(ATAN(1/(COS(RADIANS(ABS(AO12)))*AC29)))) -> 64.06462459
B31: Canopus | G31: =IF('TABLE (observations)'!AK29<0,"",'TABLE (observations)'!AH29) ->  | J31: =IF('TABLE (observations)'!AK29<0,"",INT(ABS('TABLE (observations)'!AK29))) ->  | L31: =IF('TABLE (observations)'!AK29<0,"",('TABLE (observations)'!AK29-J31)*60) ->  | AC31: =IF(W26="S",IF(Y19="W",180+AC30,180-AC30),IF(Y19="W",360-AC30,AC30)) -> 244.0646246
B32: Capella | G32: =IF('TABLE (observations)'!AK30<0,"",'TABLE (observations)'!AH30) -> 61.26808182 | J32: =IF('TABLE (observations)'!AK30<0,"",INT(ABS('TABLE (observations)'!AK30))) -> 37 | L32: =IF('TABLE (observations)'!AK30<0,"",('TABLE (observations)'!AK30-J32)*60) -> 43.16829932
B33: Deneb | G33: =IF('TABLE (observations)'!AK31<0,"",'TABLE (observations)'!AH31) -> 266.0597271 | J33: =IF('TABLE (observations)'!AK31<0,"",INT(ABS('TABLE (observations)'!AK31))) -> 62 | L33: =IF('TABLE (observations)'!AK31<0,"",('TABLE (observations)'!AK31-J33)*60) -> 12.63681349
B34: Denebola | G34: =IF('TABLE (observations)'!AK32<0,"",'TABLE (observations)'!AH32) ->  | J34: =IF('TABLE (observations)'!AK32<0,"",INT(ABS('TABLE (observations)'!AK32))) ->  | L34: =IF('TABLE (observations)'!AK32<0,"",('TABLE (observations)'!AK32-J34)*60) -> 
B35: Diphda | G35: =IF('TABLE (observations)'!AK33<0,"",'TABLE (observations)'!AH33) -> 161.2642626 | J35: =IF('TABLE (observations)'!AK33<0,"",INT(ABS('TABLE (observations)'!AK33))) -> 14 | L35: =IF('TABLE (observations)'!AK33<0,"",('TABLE (observations)'!AK33-J35)*60) -> 48.72647847 | P35: DATE | U35: 2023-09-04 | AN35: Latitude | AS35: 55 | AV35: 34.4 | AY35: N
B36: Dubhe | G36: =IF('TABLE (observations)'!AK34<0,"",'TABLE (observations)'!AH34) -> 3.137318412 | J36: =IF('TABLE (observations)'!AK34<0,"",INT(ABS('TABLE (observations)'!AK34))) -> 27 | L36: =IF('TABLE (observations)'!AK34<0,"",('TABLE (observations)'!AK34-J36)*60) -> 17.07237277
B37: Elnath | G37: =IF('TABLE (observations)'!AK35<0,"",'TABLE (observations)'!AH35) -> 73.05220819 | J37: =IF('TABLE (observations)'!AK35<0,"",INT(ABS('TABLE (observations)'!AK35))) -> 23 | L37: =IF('TABLE (observations)'!AK35<0,"",('TABLE (observations)'!AK35-J37)*60) -> 25.25209118 | P37: UTC | U37: 0 | X37: 10 | AA37: 0 | AN37: Longitude | AS37: 6 | AV37: 47 | AY37: E
B38: Eltanin | G38: =IF('TABLE (observations)'!AK36<0,"",'TABLE (observations)'!AH36) -> 301.3822191 | J38: =IF('TABLE (observations)'!AK36<0,"",INT(ABS('TABLE (observations)'!AK36))) -> 43 | L38: =IF('TABLE (observations)'!AK36<0,"",('TABLE (observations)'!AK36-J38)*60) -> 39.72227241
B39: Enif | G39: =IF('TABLE (observations)'!AK37<0,"",'TABLE (observations)'!AH37) -> 214.0857963 | J39: =IF('TABLE (observations)'!AK37<0,"",INT(ABS('TABLE (observations)'!AK37))) -> 40 | L39: =IF('TABLE (observations)'!AK37<0,"",('TABLE (observations)'!AK37-J39)*60) -> 6.73708923
B40: Formalhaut | G40: =IF('TABLE (observations)'!AK38<0,"",'TABLE (observations)'!AH38) -> 186.5221464 | J40: =IF('TABLE (observations)'!AK38<0,"",INT(ABS('TABLE (observations)'!AK38))) -> 4 | L40: =IF('TABLE (observations)'!AK38<0,"",('TABLE (observations)'!AK38-J40)*60) -> 41.08733732 | P40: SHIP'S HEAD | AB40: BEARING | AN40: OBJECT | AS40: ERROR | BE40: VARIATION | BI40: DEVIATION
B41: Gacrux | G41: =IF('TABLE (observations)'!AK39<0,"",'TABLE (observations)'!AH39) ->  | J41: =IF('TABLE (observations)'!AK39<0,"",INT(ABS('TABLE (observations)'!AK39))) ->  | L41: =IF('TABLE (observations)'!AK39<0,"",('TABLE (observations)'!AK39-J41)*60) ->  | P41: GYRO | T41: STANDART | X41: STEERING | AB41: TRUE | AF41: GYRO | AJ41: STANDART | AS41: GYRO | AW41: STANDART | BA41: STEERING | BI41: STANDART | BM41: STEERING
B42: Gienah | G42: =IF('TABLE (observations)'!AK40<0,"",'TABLE (observations)'!AH40) ->  | J42: =IF('TABLE (observations)'!AK40<0,"",INT(ABS('TABLE (observations)'!AK40))) ->  | L42: =IF('TABLE (observations)'!AK40<0,"",('TABLE (observations)'!AK40-J42)*60) ->  | P42: 122 | T42: 123 | X42: =P42+AS42 -> 121.0646246 | AB42: =AC31 -> 244.0646246 | AF42: 245 | AJ42: =AB42-AW42 -> 246 | AN42: Altair | AS42: =AB42-AF42 -> -0.935375409 | AW42: =X42-T42 -> -1.935375409 | BE42: -2 | BI42: =AW42-BE42 -> 0.06462459099
B43: Hadar | G43: =IF('TABLE (observations)'!AK41<0,"",'TABLE (observations)'!AH41) ->  | J43: =IF('TABLE (observations)'!AK41<0,"",INT(ABS('TABLE (observations)'!AK41))) ->  | L43: =IF('TABLE (observations)'!AK41<0,"",('TABLE (observations)'!AK41-J43)*60) -> 
B44: Hamal | G44: =IF('TABLE (observations)'!AK42<0,"",'TABLE (observations)'!AH42) -> 120.9945066 | J44: =IF('TABLE (observations)'!AK42<0,"",INT(ABS('TABLE (observations)'!AK42))) -> 46 | L44: =IF('TABLE (observations)'!AK42<0,"",('TABLE (observations)'!AK42-J44)*60) -> 38.86819204
B45: Jupiter | G45: =IF('TABLE (observations)'!AK43<0,"",'TABLE (observations)'!AH43) -> 114.7935183 | J45: =IF('TABLE (observations)'!AK43<0,"",INT(ABS('TABLE (observations)'!AK43))) -> 33 | L45: =IF('TABLE (observations)'!AK43<0,"",('TABLE (observations)'!AK43-J45)*60) -> 52.12551208
B46: Kaus Austr. | G46: =IF('TABLE (observations)'!AK44<0,"",'TABLE (observations)'!AH44) ->  | J46: =IF('TABLE (observations)'!AK44<0,"",INT(ABS('TABLE (observations)'!AK44))) ->  | L46: =IF('TABLE (observations)'!AK44<0,"",('TABLE (observations)'!AK44-J46)*60) -> 
B47: Kochab | G47: =IF('TABLE (observations)'!AK45<0,"",'TABLE (observations)'!AH45) -> 342.7396258 | J47: =IF('TABLE (observations)'!AK45<0,"",INT(ABS('TABLE (observations)'!AK45))) -> 44 | L47: =IF('TABLE (observations)'!AK45<0,"",('TABLE (observations)'!AK45-J47)*60) -> 2.891050305
B48: Markab | G48: =IF('TABLE (observations)'!AK46<0,"",'TABLE (observations)'!AH46) -> 188.411525 | J48: =IF('TABLE (observations)'!AK46<0,"",INT(ABS('TABLE (observations)'!AK46))) -> 49 | L48: =IF('TABLE (observations)'!AK46<0,"",('TABLE (observations)'!AK46-J48)*60) -> 31.40580273
B49: Mars | G49: =IF('TABLE (observations)'!AK47<0,"",'TABLE (observations)'!AH47) ->  | J49: =IF('TABLE (observations)'!AK47<0,"",INT(ABS('TABLE (observations)'!AK47))) ->  | L49: =IF('TABLE (observations)'!AK47<0,"",('TABLE (observations)'!AK47-J49)*60) -> 
B50: Menkar | G50: =IF('TABLE (observations)'!AK48<0,"",'TABLE (observations)'!AH48) -> 118.99528 | J50: =IF('TABLE (observations)'!AK48<0,"",INT(ABS('TABLE (observations)'!AK48))) -> 23 | L50: =IF('TABLE (observations)'!AK48<0,"",('TABLE (observations)'!AK48-J50)*60) -> 11.18211089
B51: Menkent | G51: =IF('TABLE (observations)'!AK49<0,"",'TABLE (observations)'!AH49) ->  | J51: =IF('TABLE (observations)'!AK49<0,"",INT(ABS('TABLE (observations)'!AK49))) ->  | L51: =IF('TABLE (observations)'!AK49<0,"",('TABLE (observations)'!AK49-J51)*60) -> 
B52: Miaplacidus | G52: =IF('TABLE (observations)'!AK50<0,"",'TABLE (observations)'!AH50) ->  | J52: =IF('TABLE (observations)'!AK50<0,"",INT(ABS('TABLE (observations)'!AK50))) ->  | L52: =IF('TABLE (observations)'!AK50<0,"",('TABLE (observations)'!AK50-J52)*60) -> 
B53: Mirfak | G53: =IF('TABLE (observations)'!AK51<0,"",'TABLE (observations)'!AH51) -> 73.74276698 | J53: =IF('TABLE (observations)'!AK51<0,"",INT(ABS('TABLE (observations)'!AK51))) -> 54 | L53: =IF('TABLE (observations)'!AK51<0,"",('TABLE (observations)'!AK51-J53)*60) -> 49.53735987
B54: Nunki | G54: =IF('TABLE (observations)'!AK52<0,"",'TABLE (observations)'!AH52) ->  | J54: =IF('TABLE (observations)'!AK52<0,"",INT(ABS('TABLE (observations)'!AK52))) ->  | L54: =IF('TABLE (observations)'!AK52<0,"",('TABLE (observations)'!AK52-J54)*60) -> 
B55: Peacock | G55: =IF('TABLE (observations)'!AK53<0,"",'TABLE (observations)'!AH53) ->  | J55: =IF('TABLE (observations)'!AK53<0,"",INT(ABS('TABLE (observations)'!AK53))) ->  | L55: =IF('TABLE (observations)'!AK53<0,"",('TABLE (observations)'!AK53-J55)*60) -> 
B56: Pollux | G56: =IF('TABLE (observations)'!AK54<0,"",'TABLE (observations)'!AH54) -> 47.04571809 | J56: =IF('TABLE (observations)'!AK54<0,"",INT(ABS('TABLE (observations)'!AK54))) -> 5 | L56: =IF('TABLE (observations)'!AK54<0,"",('TABLE (observations)'!AK54-J56)*60) -> 58.31404813
B57: Procyon | G57: =IF('TABLE (observations)'!AK55<0,"",'TABLE (observations)'!AH55) ->  | J57: =IF('TABLE (observations)'!AK55<0,"",INT(ABS('TABLE (observations)'!AK55))) ->  | L57: =IF('TABLE (observations)'!AK55<0,"",('TABLE (observations)'!AK55-J57)*60) -> 
B58: Rasalhague | G58: =IF('TABLE (observations)'!AK56<0,"",'TABLE (observations)'!AH56) -> 275.6387339 | J58: =IF('TABLE (observations)'!AK56<0,"",INT(ABS('TABLE (observations)'!AK56))) -> 11 | L58: =IF('TABLE (observations)'!AK56<0,"",('TABLE (observations)'!AK56-J58)*60) -> 22.94020791
B59: Regulus | G59: =IF('TABLE (observations)'!AK57<0,"",'TABLE (observations)'!AH57) ->  | J59: =IF('TABLE (observations)'!AK57<0,"",INT(ABS('TABLE (observations)'!AK57))) ->  | L59: =IF('TABLE (observations)'!AK57<0,"",('TABLE (observations)'!AK57-J59)*60) -> 
B60: Rigel | G60: =IF('TABLE (observations)'!AK58<0,"",'TABLE (observations)'!AH58) ->  | J60: =IF('TABLE (observations)'!AK58<0,"",INT(ABS('TABLE (observations)'!AK58))) ->  | L60: =IF('TABLE (observations)'!AK58<0,"",('TABLE (observations)'!AK58-J60)*60) -> 
B61: Rigil Kent | G61: =IF('TABLE (observations)'!AK59<0,"",'TABLE (observations)'!AH59) ->  | J61: =IF('TABLE (observations)'!AK59<0,"",INT(ABS('TABLE (observations)'!AK59))) ->  | L61: =IF('TABLE (observations)'!AK59<0,"",('TABLE (observations)'!AK59-J61)*60) -> 
B62: Sabik | G62: =IF('TABLE (observations)'!AK60<0,"",'TABLE (observations)'!AH60) ->  | J62: =IF('TABLE (observations)'!AK60<0,"",INT(ABS('TABLE (observations)'!AK60))) ->  | L62: =IF('TABLE (observations)'!AK60<0,"",('TABLE (observations)'!AK60-J62)*60) -> 
B63: Saturnus | G63: =IF('TABLE (observations)'!AK61<0,"",'TABLE (observations)'!AH61) -> 197.1235651 | J63: =IF('TABLE (observations)'!AK61<0,"",INT(ABS('TABLE (observations)'!AK61))) -> 21 | L63: =IF('TABLE (observations)'!AK61<0,"",('TABLE (observations)'!AK61-J63)*60) -> 4.364940975
B64: Schedar | G64: =IF('TABLE (observations)'!AK62<0,"",'TABLE (observations)'!AH62) -> 76.31133999 | J64: =IF('TABLE (observations)'!AK62<0,"",INT(ABS('TABLE (observations)'!AK62))) -> 79 | L64: =IF('TABLE (observations)'!AK62<0,"",('TABLE (observations)'!AK62-J64)*60) -> 47.01220017
B65: Shaula | G65: =IF('TABLE (observations)'!AK63<0,"",'TABLE (observations)'!AH63) ->  | J65: =IF('TABLE (observations)'!AK63<0,"",INT(ABS('TABLE (observations)'!AK63))) ->  | L65: =IF('TABLE (observations)'!AK63<0,"",('TABLE (observations)'!AK63-J65)*60) -> 
B66: Sirius | G66: =IF('TABLE (observations)'!AK64<0,"",'TABLE (observations)'!AH64) ->  | J66: =IF('TABLE (observations)'!AK64<0,"",INT(ABS('TABLE (observations)'!AK64))) ->  | L66: =IF('TABLE (observations)'!AK64<0,"",('TABLE (observations)'!AK64-J66)*60) -> 
B67: Spica | G67: =IF('TABLE (observations)'!AK65<0,"",'TABLE (observations)'!AH65) ->  | J67: =IF('TABLE (observations)'!AK65<0,"",INT(ABS('TABLE (observations)'!AK65))) ->  | L67: =IF('TABLE (observations)'!AK65<0,"",('TABLE (observations)'!AK65-J67)*60) -> 
B68: Suhail | G68: =IF('TABLE (observations)'!AK66<0,"",'TABLE (observations)'!AH66) ->  | J68: =IF('TABLE (observations)'!AK66<0,"",INT(ABS('TABLE (observations)'!AK66))) ->  | L68: =IF('TABLE (observations)'!AK66<0,"",('TABLE (observations)'!AK66-J68)*60) -> 
B69: Vega | G69: =IF('TABLE (observations)'!AK67<0,"",'TABLE (observations)'!AH67) -> 282.288277 | J69: =IF('TABLE (observations)'!AK67<0,"",INT(ABS('TABLE (observations)'!AK67))) -> 40 | L69: =IF('TABLE (observations)'!AK67<0,"",('TABLE (observations)'!AK67-J69)*60) -> 26.65760543
B70: Venus | G70: =IF('TABLE (observations)'!AK68<0,"",'TABLE (observations)'!AH68) ->  | J70: =IF('TABLE (observations)'!AK68<0,"",INT(ABS('TABLE (observations)'!AK68))) ->  | L70: =IF('TABLE (observations)'!AK68<0,"",('TABLE (observations)'!AK68-J70)*60) -> 
B71: Zuben'ubi | G71: =IF('TABLE (observations)'!AK69<0,"",'TABLE (observations)'!AH69) ->  | J71: =IF('TABLE (observations)'!AK69<0,"",INT(ABS('TABLE (observations)'!AK69))) ->  | L71: =IF('TABLE (observations)'!AK69<0,"",('TABLE (observations)'!AK69-J71)*60) -> 
